Body Name,Body,Service Area Catergorisation,Service Division Catergorisation,Responsible Unit,Expenses Type,Detailed Expenses Type,Expenses Code,Date,Transaction Number,Amount,Capital / Revenue,Supplier Name,Supplier ID
North East Lincolnshire Council,http://statistics.data.gov.uk/id/local-authority/00FC,Cap People And Communities,Cap Childrens Hlth & Fam Supp,Capital Fund - For Two Yr Olds,Cap Grants To O/Side Sources,Cap Grants To O/Side Sources,YJ101,11/13/2013,241275,931.73,CAPITAL,UNIBUILD BUILDING CONT LTD,101469
North East Lincolnshire Council,http://statistics.data.gov.uk/id/local-authority/00FC,Cap People And Communities,Cap Childrens Hlth & Fam Supp,Capital Fund - For Two Yr Olds,Cap Grants To O/Side Sources,Cap Grants To O/Side Sources,YJ101,11/14/2013,241513,8479.67,CAPITAL,UNIBUILD BUILDING CONT LTD,101469
North East Lincolnshire Council,http://statistics.data.gov.uk/id/local-authority/00FC,Cap People And Communities,Cap Childrens Hlth & Fam Supp,Capital Fund - For Two Yr Olds,Cap Grants To O/Side Sources,Cap Grants To O/Side Sources,YJ101,11/14/2013,241677,2232.8,CAPITAL,UNIBUILD BUILDING CONT LTD,101469
North East Lincolnshire Council,http://statistics.data.gov.uk/id/local-authority/00FC,Cap People And Communities,Cap Childrens Hlth & Fam Supp,Capital Fund - For Two Yr Olds,Cap Grants To O/Side Sources,Cap Grants To O/Side Sources,YJ101,11/14/2013,241514,9961.3,CAPITAL,UNIBUILD BUILDING CONT LTD,101469
North East Lincolnshire Council,http://statistics.data.gov.uk/id/local-authority/00FC,Cap People And Communities,Cap Schools Capital,Devolved Formula Cap Grant,Cap Veh Plt Eqp-Purchase,Cap Veh Plt Eqp-Purchase,YB101,11/13/2013,241115,9942,CAPITAL,TECHNOLOGY SUPPORT SOLUTIONS LTD,119571
North East Lincolnshire Council,http://statistics.data.gov.uk/id/local-authority/00FC,Cap People And Communities,Cap Schools Capital,Devolved Formula Cap Grant,Cap Veh Plt Eqp-Purchase,Cap Veh Plt Eqp-Purchase,YB101,11/13/2013,241040,8603,CAPITAL,TECHNOLOGY SUPPORT SOLUTIONS LTD,119571
North East Lincolnshire Council,http://statistics.data.gov.uk/id/local-authority/00FC,Cap People And Communities,Cap Schools Capital,Devolved Formula Cap Grant,Cap Veh Plt Eqp-Purchase,Cap Veh Plt Eqp-Purchase,YB101,11/13/2013,241112,2650,CAPITAL,TECHNOLOGY SUPPORT SOLUTIONS LTD,119571
North East Lincolnshire Council,http://statistics.data.gov.uk/id/local-authority/00FC,Cap People And Communities,Cap Schools Capital,Devolved Formula Cap Grant,Cap Land/Build-Build Enh Wrk,Cap Land/Build-Build Enh Wrk,YA102,11/25/2013,243118,8056,CAPITAL,E S RUDKIN LTD,100632
North East Lincolnshire Council,http://statistics.data.gov.uk/id/local-authority/00FC,Cap People And Communities,Cap Schools Capital,Devolved Formula Cap Grant,Cap Veh Plt Eqp-Purchase,Cap Veh Plt Eqp-Purchase,YB101,11/14/2013,241503,409,CAPITAL,TECHNOLOGY SUPPORT SOLUTIONS LTD,119571
North East Lincolnshire Council,http://statistics.data.gov.uk/id/local-authority/00FC,Cap People And Communities,Cap Schools Capital,Devolved Formula Cap Grant,Cap Veh Plt Eqp-Purchase,Cap Veh Plt Eqp-Purchase,YB101,11/14/2013,241504,2290,CAPITAL,JASON FRANKLIN,101891
North East Lincolnshire Council,http://statistics.data.gov.uk/id/local-authority/00FC,Cap People And Communities,Cap Schools Capital,Devolved Formula Cap Grant,Cap Veh Plt Eqp-Build Enh Wrk,Cap Veh Plt Eqp-Build Enh Wrk,YB102,11/25/2013,242732,1015.96,CAPITAL,INSIGHT DIRECT (UK) LTD,101011
North East Lincolnshire Council,http://statistics.data.gov.uk/id/local-authority/00FC,Cap People And Communities,Cap Schools Capital,Devolved Formula Cap Grant,Cap Veh Plt Eqp-Build Enh Wrk,Cap Veh Plt Eqp-Build Enh Wrk,YB102,11/20/2013,242843,3992,CAPITAL,DELL COMPUTER CORPORATION LTD,100892
North East Lincolnshire Council,http://statistics.data.gov.uk/id/local-authority/00FC,Cap People And Communities,Cap Schools Capital,Devolved Formula Cap Grant,Cap Veh Plt Eqp-Build Enh Wrk,Cap Veh Plt Eqp-Build Enh Wrk,YB102,11/21/2013,242856,943,CAPITAL,TECHNOLOGY SUPPORT SOLUTIONS LTD,119571
North East Lincolnshire Council,http://statistics.data.gov.uk/id/local-authority/00FC,Cap People And Communities,Cap Schools Capital,Devolved Formula Cap Grant,Cap Land/Build-Build Enh Wrk,Cap Land/Build-Build Enh Wrk,YA102,11/14/2013,241512,6900,CAPITAL,NEWBY LEISURE LTD,101227
North East Lincolnshire Council,http://statistics.data.gov.uk/id/local-authority/00FC,Cap People And Communities,Cap Schools Capital,Devolved Formula Cap Grant,Cap Land/Build-Build Enh Wrk,Cap Land/Build-Build Enh Wrk,YA102,11/14/2013,241676,17915,CAPITAL,NEWBY LEISURE LTD,101227
North East Lincolnshire Council,http://statistics.data.gov.uk/id/local-authority/00FC,Cap People And Communities,Cap Schools Capital,Devolved Formula Cap Grant,Cap Veh Plt Eqp-Purchase,Cap Veh Plt Eqp-Purchase,YB101,11/20/2013,241267,5584,CAPITAL,DELL COMPUTER CORPORATION LTD,100892
North East Lincolnshire Council,http://statistics.data.gov.uk/id/local-authority/00FC,Cap People And Communities,Cap Schools Capital,Devolved Formula Cap Grant,Cap Veh Plt Eqp-Purchase,Cap Veh Plt Eqp-Purchase,YB101,11/20/2013,241126,997,CAPITAL,INFORMATION & DATA NETWORKS SUPPLIES LTD,101911
North East Lincolnshire Council,http://statistics.data.gov.uk/id/local-authority/00FC,Cap People And Communities,Cap Schools Capital,Devolved Formula Cap Grant,Cap Veh Plt Eqp-Purchase,Cap Veh Plt Eqp-Purchase,YB101,11/14/2013,241142,3075,CAPITAL,TECHNOLOGY SUPPORT SOLUTIONS LTD,119571
North East Lincolnshire Council,http://statistics.data.gov.uk/id/local-authority/00FC,Cap People And Communities,Cap Schools Capital,Devolved Formula Cap Grant,Cap Veh Plt Eqp-Purchase,Cap Veh Plt Eqp-Purchase,YB101,11/14/2013,241143,6010,CAPITAL,TECHNOLOGY SUPPORT SOLUTIONS LTD,119571
North East Lincolnshire Council,http://statistics.data.gov.uk/id/local-authority/00FC,Cap People And Communities,Cap Schools Capital,Devolved Formula Cap Grant,Cap Veh Plt Eqp-Purchase,Cap Veh Plt Eqp-Purchase,YB101,11/13/2013,241266,892,CAPITAL,DELL COMPUTER CORPORATION LTD,100892
North East Lincolnshire Council,http://statistics.data.gov.uk/id/local-authority/00FC,Cap People And Communities,Cap Schools Capital,Devolved Formula Cap Grant,Cap Land/Build-Build Enh Wrk,Cap Land/Build-Build Enh Wrk,YA102,11/4/2013,238550,2380,CAPITAL,TECHNOLOGY SUPPORT SOLUTIONS LTD,119571
North East Lincolnshire Council,http://statistics.data.gov.uk/id/local-authority/00FC,Cap People And Communities,Cap Schools Capital,Devolved Formula Cap Grant,Cap Veh Plt Eqp-Purchase,Cap Veh Plt Eqp-Purchase,YB101,11/18/2013,241264,11866,CAPITAL,DELL COMPUTER CORPORATION LTD,100892
North East Lincolnshire Council,http://statistics.data.gov.uk/id/local-authority/00FC,Cap People And Communities,Cap Schools Capital,Devolved Formula Cap Grant,Cap Land/Build-Build Enh Wrk,Cap Land/Build-Build Enh Wrk,YA102,11/4/2013,238315,1751.88,CAPITAL,HALL CONSTRUCTION GROUP LTD,101372
North East Lincolnshire Council,http://statistics.data.gov.uk/id/local-authority/00FC,Cap People And Communities,Cap Schools Capital,Devolved Formula Cap Grant,Cap Land/Build-Build Enh Wrk,Cap Land/Build-Build Enh Wrk,YA102,11/4/2013,238513,15738.34,CAPITAL,HALL CONSTRUCTION GROUP LTD,101372
North East Lincolnshire Council,http://statistics.data.gov.uk/id/local-authority/00FC,Cap People And Communities,Cap Schools Capital,Devolved Formula Cap Grant,Cap Veh Plt Eqp-Purchase,Cap Veh Plt Eqp-Purchase,YB101,11/25/2013,243479,14805,CAPITAL,CONTRAC,101099
North East Lincolnshire Council,http://statistics.data.gov.uk/id/local-authority/00FC,Cap People And Communities,Cap Schools Capital,Devolved Formula Cap Grant,Cap Veh Plt Eqp-Purchase,Cap Veh Plt Eqp-Purchase,YB101,11/13/2013,241039,3815,CAPITAL,TECHNOLOGY SUPPORT SOLUTIONS LTD,119571
North East Lincolnshire Council,http://statistics.data.gov.uk/id/local-authority/00FC,Cap People And Communities,Cap Schools Capital,Devolved Formula Cap Grant,Cap Veh Plt Eqp-Purchase,Cap Veh Plt Eqp-Purchase,YB101,11/19/2013,241518,1925,CAPITAL,RSB FLOORING,103570
North East Lincolnshire Council,http://statistics.data.gov.uk/id/local-authority/00FC,Cap People And Communities,Cap Schools Capital,Devolved Formula Cap Grant,Cap Land/Build-Build Enh Wrk,Cap Land/Build-Build Enh Wrk,YA102,11/7/2013,239104,2390,CAPITAL,TECHNOLOGY SUPPORT SOLUTIONS LTD,119571
North East Lincolnshire Council,http://statistics.data.gov.uk/id/local-authority/00FC,Cap People And Communities,Cap Schools Capital,Devolved Formula Cap Grant,Cap Land/Build-Build Enh Wrk,Cap Land/Build-Build Enh Wrk,YA102,11/11/2013,238860,2674.48,CAPITAL,M.S.S.,123149
North East Lincolnshire Council,http://statistics.data.gov.uk/id/local-authority/00FC,Cap People And Communities,Cap Schools Capital,Devolved Formula Cap Grant,Cap Land/Build-Build Enh Wrk,Cap Land/Build-Build Enh Wrk,YA102,11/11/2013,238862,1093.31,CAPITAL,M.S.S.,123149
North East Lincolnshire Council,http://statistics.data.gov.uk/id/local-authority/00FC,Cap People And Communities,Cap Schools Capital,Devolved Formula Cap Grant,Cap Land/Build-Build Enh Wrk,Cap Land/Build-Build Enh Wrk,YA102,11/12/2013,240451,10424,CAPITAL,HAITH'S HEATING LTD,101342
North East Lincolnshire Council,http://statistics.data.gov.uk/id/local-authority/00FC,Cap People And Communities,Cap Schools Capital,Devolved Formula Cap Grant,Cap Land/Build-Build Enh Wrk,Cap Land/Build-Build Enh Wrk,YA102,11/5/2013,238859,3310,CAPITAL,J MELTON LTD,100636
North East Lincolnshire Council,http://statistics.data.gov.uk/id/local-authority/00FC,Cap People And Communities,Cap Schools Capital,Devolved Formula Cap Grant,Cap Land/Build-Build Enh Wrk,Cap Land/Build-Build Enh Wrk,YA102,11/6/2013,238853,454,CAPITAL,SECOM PLC,104119
North East Lincolnshire Council,http://statistics.data.gov.uk/id/local-authority/00FC,Cap People And Communities,Cap Schools Capital,Schools - Capital Allocation,Cap Land/Build-Build Enh Wrk,Cap Land/Build-Build Enh Wrk,YA102,11/14/2013,241516,2209,CAPITAL,LUDAFLORS,100547
North East Lincolnshire Council,http://statistics.data.gov.uk/id/local-authority/00FC,Cap People And Communities,Cap Schools Capital,Schools - Basic Needs,Cap Land/Build-Build Enh Wrk,Cap Land/Build-Build Enh Wrk,YA102,11/12/2013,240726,10630.24,CAPITAL,JAMES BRATTON & CO LTD,100714
North East Lincolnshire Council,http://statistics.data.gov.uk/id/local-authority/00FC,Cap People And Communities,Cap Schools Capital,Schools - Basic Needs,Cap Land/Build-Build Enh Wrk,Cap Land/Build-Build Enh Wrk,YA102,11/18/2013,241908,17508,CAPITAL,THRUNSCOE PRIMARY AND NURSERY ACADEMY,118749
North East Lincolnshire Council,http://statistics.data.gov.uk/id/local-authority/00FC,Cap People And Communities,Cap Schools Capital,Schools - Basic Needs,Cap Land/Build-Build Enh Wrk,Cap Land/Build-Build Enh Wrk,YA102,11/25/2013,243504,17508,CAPITAL,THRUNSCOE PRIMARY AND NURSERY ACADEMY,118749
North East Lincolnshire Council,http://statistics.data.gov.uk/id/local-authority/00FC,Cap People And Communities,Cap Schools Capital,Schools - Basic Needs,Cap Land/Build-Build Enh Wrk,Cap Land/Build-Build Enh Wrk,YA102,11/25/2013,243648,-17508,CAPITAL,THRUNSCOE PRIMARY AND NURSERY ACADEMY,118749
North East Lincolnshire Council,http://statistics.data.gov.uk/id/local-authority/00FC,Cap People And Communities,Cap Schools Capital,Schools - Basic Needs,Cap Land/Build-Build Enh Wrk,Cap Land/Build-Build Enh Wrk,YA102,11/25/2013,243227,40348.99,CAPITAL,G S KELSEY LIMITED,101154
North East Lincolnshire Council,http://statistics.data.gov.uk/id/local-authority/00FC,Cap People And Communities,Cap Schools Capital,Schools - Basic Needs,Cap Land/Build-Build Enh Wrk,Cap Land/Build-Build Enh Wrk,YA102,11/12/2013,240800,325,CAPITAL,EXCELL ELECTRICAL CONTRACTORS,100601
North East Lincolnshire Council,http://statistics.data.gov.uk/id/local-authority/00FC,Cap People And Communities,Cap Schools Capital,Primary Capital Programme,Cap Auc-Build Enh Wrk,Cap Auc-Build Enh Wrk,YF102,11/25/2013,243125,2350,CAPITAL,DMBS DESIGN LTD,123492
North East Lincolnshire Council,http://statistics.data.gov.uk/id/local-authority/00FC,Cap Resources,Cap Commission & Inform System,Childcare Mgmt System (Ics),Cap Intangible Assets,Cap Intangible Assets,YH101,11/7/2013,229322,7150,CAPITAL,NORTHGATE INFORMATION SOLUTIONS UK LTD,101841
North East Lincolnshire Council,http://statistics.data.gov.uk/id/local-authority/00FC,Cap Resources,Cap Commission & Inform System,Isms Project,Cap Veh Plt Eqp-Purchase,Cap Veh Plt Eqp-Purchase,YB101,11/26/2013,241713,1280.66,CAPITAL,MATRIX SCM LTD,108117
North East Lincolnshire Council,http://statistics.data.gov.uk/id/local-authority/00FC,Cap Resources,Cap Commission & Inform System,Isms Project,Cap Veh Plt Eqp-Purchase,Cap Veh Plt Eqp-Purchase,YB101,11/26/2013,242502,662.65,CAPITAL,MATRIX SCM LTD,108117
North East Lincolnshire Council,http://statistics.data.gov.uk/id/local-authority/00FC,Cap Resources,Cap Commission & Inform System,Isms Project,Cap Veh Plt Eqp-Purchase,Cap Veh Plt Eqp-Purchase,YB101,11/4/2013,235440,4742.5,CAPITAL,TRUSTMARQUE SOLUTIONS LTD,101275
North East Lincolnshire Council,http://statistics.data.gov.uk/id/local-authority/00FC,Cap Resources,Cap Commission & Inform System,Isms Project,Cap Veh Plt Eqp-Purchase,Cap Veh Plt Eqp-Purchase,YB101,11/4/2013,235440,1730.6,CAPITAL,TRUSTMARQUE SOLUTIONS LTD,101275
North East Lincolnshire Council,http://statistics.data.gov.uk/id/local-authority/00FC,Cap Resources,Cap Commission & Inform System,Ict Design Fwk &I Ct Strategy,Cap Veh Plt Eqp-Purchase,Cap Veh Plt Eqp-Purchase,YB101,11/14/2013,239326,1818.84,CAPITAL,SPECIALIST COMPUTER CENTRES PLC,110715
North East Lincolnshire Council,http://statistics.data.gov.uk/id/local-authority/00FC,Cap Resources,Cap Commission & Inform System,Ict Design Fwk &I Ct Strategy,Cap Intangible Assets,Cap Intangible Assets,YH101,11/5/2013,238676,15000,CAPITAL,VISIONWARE LTD,103028
North East Lincolnshire Council,http://statistics.data.gov.uk/id/local-authority/00FC,Cap Resources,Cap Finance And Assets,Backlog Maintenance,Cap Land/Build-Build Enh Wrk,Cap Land/Build-Build Enh Wrk,YA102,11/26/2013,243092,3589.4,CAPITAL,HAITH'S HEATING LTD,101342
North East Lincolnshire Council,http://statistics.data.gov.uk/id/local-authority/00FC,Cap Resources,Cap Finance And Assets,Backlog Maintenance,Cap Land/Build-Build Enh Wrk,Cap Land/Build-Build Enh Wrk,YA102,11/12/2013,240716,15817.96,CAPITAL,EAST KIRKBY ENGINEERING CO LTD,122478
North East Lincolnshire Council,http://statistics.data.gov.uk/id/local-authority/00FC,Cap Resources,Cap Finance And Assets,Saltings Allotments Developmt,Cap Land/Build-Build Enh Wrk,Cap Land/Build-Build Enh Wrk,YA102,11/4/2013,238312,57915.01,CAPITAL,P G INGOLDBY & SONS LTD,100591
North East Lincolnshire Council,http://statistics.data.gov.uk/id/local-authority/00FC,Cap Resources,Cap Finance And Assets,Property Rationalisation,Cap Land/Build-Build Enh Wrk,Cap Land/Build-Build Enh Wrk,YA102,11/18/2013,241964,351915.36,CAPITAL,MANTA BRC LTD,102230
North East Lincolnshire Council,http://statistics.data.gov.uk/id/local-authority/00FC,Cap Resources,Cap Finance And Assets,Property Rationalisation,Cap Land/Build-Build Enh Wrk,Cap Land/Build-Build Enh Wrk,YA102,11/27/2013,243839,138632.93,CAPITAL,MANTA BRC LTD,102230
North East Lincolnshire Council,http://statistics.data.gov.uk/id/local-authority/00FC,Cap Resources,Cap Finance And Assets,Property Rationalisation,Cap Land/Build-Build Enh Wrk,Cap Land/Build-Build Enh Wrk,YA102,11/12/2013,240725,299739.22,CAPITAL,MANTA BRC LTD,102230
North East Lincolnshire Council,http://statistics.data.gov.uk/id/local-authority/00FC,Cap Resources,Cap Finance And Assets,Property Rationalisation,Cap Infrastr-Purchase,Cap Infrastr-Purchase,YC101,11/4/2013,237951,1300,CAPITAL,BADENOCH & CLARK,101427
North East Lincolnshire Council,http://statistics.data.gov.uk/id/local-authority/00FC,Cap Resources,Cap Finance And Assets,Property Rationalisation,Cap Infrastr-Purchase,Cap Infrastr-Purchase,YC101,11/13/2013,240324,1300,CAPITAL,BADENOCH & CLARK,101427
North East Lincolnshire Council,http://statistics.data.gov.uk/id/local-authority/00FC,Cap Resources,Cap Finance And Assets,Property Rationalisation,Cap Infrastr-Purchase,Cap Infrastr-Purchase,YC101,11/26/2013,243642,1170,CAPITAL,BADENOCH & CLARK,101427
North East Lincolnshire Council,http://statistics.data.gov.uk/id/local-authority/00FC,Cap Resources,Cap Finance And Assets,Property Rationalisation,Cap Infrastr-Purchase,Cap Infrastr-Purchase,YC101,11/21/2013,242807,349.04,CAPITAL,INSIGHT DIRECT (UK) LTD,101011
North East Lincolnshire Council,http://statistics.data.gov.uk/id/local-authority/00FC,Cap Resources,Cap Finance And Assets,Property Rationalisation,Cap Infrastr-Purchase,Cap Infrastr-Purchase,YC101,11/25/2013,242808,698.08,CAPITAL,INSIGHT DIRECT (UK) LTD,101011
North East Lincolnshire Council,http://statistics.data.gov.uk/id/local-authority/00FC,Cap Resources,Cap Finance And Assets,Property Rationalisation,Cap Infrastr-Purchase,Cap Infrastr-Purchase,YC101,11/25/2013,242806,1308.9,CAPITAL,INSIGHT DIRECT (UK) LTD,101011
North East Lincolnshire Council,http://statistics.data.gov.uk/id/local-authority/00FC,Cap Resources,Cap Finance And Assets,Property Rationalisation,Cap Infrastr-Purchase,Cap Infrastr-Purchase,YC101,11/26/2013,242809,785.34,CAPITAL,INSIGHT DIRECT (UK) LTD,101011
North East Lincolnshire Council,http://statistics.data.gov.uk/id/local-authority/00FC,Cap Resources,Cap Finance And Assets,Property Rationalisation,Cap Infrastr-Purchase,Cap Infrastr-Purchase,YC101,11/26/2013,242810,269.91,CAPITAL,INSIGHT DIRECT (UK) LTD,101011
North East Lincolnshire Council,http://statistics.data.gov.uk/id/local-authority/00FC,Cap Resources,Cap Finance And Assets,Property Rationalisation,Cap Infrastr-Purchase,Cap Infrastr-Purchase,YC101,11/26/2013,242811,449.85,CAPITAL,INSIGHT DIRECT (UK) LTD,101011
North East Lincolnshire Council,http://statistics.data.gov.uk/id/local-authority/00FC,Cap Resources,Cap Finance And Assets,Property Rationalisation,Cap Land/Build-Build Enh Wrk,Cap Land/Build-Build Enh Wrk,YA102,11/13/2013,240227,370,CAPITAL,W R CULLUM,100811
North East Lincolnshire Council,http://statistics.data.gov.uk/id/local-authority/00FC,Cap Resources,Cap Finance And Assets,Property Rationalisation,Cap Land/Build-Build Enh Wrk,Cap Land/Build-Build Enh Wrk,YA102,11/20/2013,242153,29192,CAPITAL,RILMAC GROUP,104621
North East Lincolnshire Council,http://statistics.data.gov.uk/id/local-authority/00FC,Cap Resources,Cap Finance And Assets,Property Rationalisation,Cap Land/Build-Build Enh Wrk,Cap Land/Build-Build Enh Wrk,YA102,11/4/2013,237973,394.86,CAPITAL,EXCELL ELECTRICAL CONTRACTORS,100601
North East Lincolnshire Council,http://statistics.data.gov.uk/id/local-authority/00FC,Cap Resources,Cap Finance And Assets,Property Rationalisation,Cap Land/Build-Build Enh Wrk,Cap Land/Build-Build Enh Wrk,YA102,11/19/2013,242154,1740,CAPITAL,HANSON RESOURCE MANAGEMENT LTD,101611
North East Lincolnshire Council,http://statistics.data.gov.uk/id/local-authority/00FC,Cap Resources,Cap Finance And Assets,Depot Investment,Cap Land/Build-Build Enh Wrk,Cap Land/Build-Build Enh Wrk,YA102,11/25/2013,242909,REDACTED COMMERCIALLY SENSITIVE,CAPITAL,BALFOUR BEATTY,102595
North East Lincolnshire Council,http://statistics.data.gov.uk/id/local-authority/00FC,Cap Economy Env And Housing,Cap Neighbourhood Services,Fleet,Cap Veh Plt Eqp-Purchase,Cap Veh Plt Eqp-Purchase,YB101,11/18/2013,232109,15210,CAPITAL,CHANDLERS (FARM EQUIPMENT) LTD,106814
North East Lincolnshire Council,http://statistics.data.gov.uk/id/local-authority/00FC,Cap Economy Env And Housing,Cap Neighbourhood Services,Fleet,Cap Veh Plt Eqp-Purchase,Cap Veh Plt Eqp-Purchase,YB101,11/7/2013,239040,23995,CAPITAL,LAWNMOWER SERVICE(LINCOLN)LTD,100544
North East Lincolnshire Council,http://statistics.data.gov.uk/id/local-authority/00FC,Cap Economy Env And Housing,Cap Neighbourhood Services,Waste Obc (Rev B),Cap Land/Build-Build Enh Wrk,Cap Land/Build-Build Enh Wrk,YA102,11/28/2013,244945,11921,CAPITAL,EGBERT H TAYLOR & CO LTD,100625
North East Lincolnshire Council,http://statistics.data.gov.uk/id/local-authority/00FC,Cap Economy Env And Housing,Cap Development,Hps-Disabled Fac. Grants,Cap Grants To O/Side Sources,Cap Grants To O/Side Sources,YJ101,11/27/2013,243526,23000,CAPITAL,BLAKES BUILDING SERVICES,101805
North East Lincolnshire Council,http://statistics.data.gov.uk/id/local-authority/00FC,Cap Economy Env And Housing,Cap Development,Hps-Disabled Fac. Grants,Cap Grants To O/Side Sources,Cap Grants To O/Side Sources,YJ101,11/5/2013,238896,4751.2,CAPITAL,M J QUICKFALL,102499
North East Lincolnshire Council,http://statistics.data.gov.uk/id/local-authority/00FC,Cap Economy Env And Housing,Cap Development,Hps-Disabled Fac. Grants,Cap Grants To O/Side Sources,Cap Grants To O/Side Sources,YJ101,11/19/2013,241704,5809.32,CAPITAL,MEARS LTD,102433
North East Lincolnshire Council,http://statistics.data.gov.uk/id/local-authority/00FC,Cap Economy Env And Housing,Cap Development,Hps-Disabled Fac. Grants,Cap Grants To O/Side Sources,Cap Grants To O/Side Sources,YJ101,11/27/2013,243527,2119,CAPITAL,HANDICARE ACCESSIIBILITY LTD,102647
North East Lincolnshire Council,http://statistics.data.gov.uk/id/local-authority/00FC,Cap Economy Env And Housing,Cap Development,Hps-Disabled Fac. Grants,Cap Grants To O/Side Sources,Cap Grants To O/Side Sources,YJ101,11/21/2013,241666,1795,CAPITAL,DOLPHIN MOBILITY EAST MIDLANDS LTD,101317
North East Lincolnshire Council,http://statistics.data.gov.uk/id/local-authority/00FC,Cap Economy Env And Housing,Cap Development,Hps-Disabled Fac. Grants,Cap Grants To O/Side Sources,Cap Grants To O/Side Sources,YJ101,11/6/2013,238664,3297.34,CAPITAL,VIC HANSEN BUILDING & JOINERY LTD,103981
North East Lincolnshire Council,http://statistics.data.gov.uk/id/local-authority/00FC,Cap Economy Env And Housing,Cap Development,Hps-Disabled Fac. Grants,Cap Grants To O/Side Sources,Cap Grants To O/Side Sources,YJ101,11/20/2013,242282,4878.4,CAPITAL,CLEVELAND JOINERY,102580
North East Lincolnshire Council,http://statistics.data.gov.uk/id/local-authority/00FC,Cap Economy Env And Housing,Cap Development,Hps-Disabled Fac. Grants,Cap Grants To O/Side Sources,Cap Grants To O/Side Sources,YJ101,11/21/2013,241705,4607.7,CAPITAL,MEARS LTD,102433
North East Lincolnshire Council,http://statistics.data.gov.uk/id/local-authority/00FC,Cap Economy Env And Housing,Cap Development,Hps-Disabled Fac. Grants,Cap Grants To O/Side Sources,Cap Grants To O/Side Sources,YJ101,11/27/2013,243513,4535,CAPITAL,DOLPHIN MOBILITY EAST MIDLANDS LTD,101317
North East Lincolnshire Council,http://statistics.data.gov.uk/id/local-authority/00FC,Cap Economy Env And Housing,Cap Development,Hps-Disabled Fac. Grants,Cap Grants To O/Side Sources,Cap Grants To O/Side Sources,YJ101,11/19/2013,232013,3150,CAPITAL,MARK BENNETT,101838
North East Lincolnshire Council,http://statistics.data.gov.uk/id/local-authority/00FC,Cap Economy Env And Housing,Cap Development,Hps-Disabled Fac. Grants,Cap Grants To O/Side Sources,Cap Grants To O/Side Sources,YJ101,11/25/2013,242266,5157,CAPITAL,CLEVELAND JOINERY,102580
North East Lincolnshire Council,http://statistics.data.gov.uk/id/local-authority/00FC,Cap Economy Env And Housing,Cap Development,Hps-Disabled Fac. Grants,Cap Grants To O/Side Sources,Cap Grants To O/Side Sources,YJ101,11/13/2013,240735,4150,CAPITAL,VIC HANSEN BUILDING & JOINERY LTD,103981
North East Lincolnshire Council,http://statistics.data.gov.uk/id/local-authority/00FC,Cap Economy Env And Housing,Cap Development,Hps-Disabled Fac. Grants,Cap Grants To O/Side Sources,Cap Grants To O/Side Sources,YJ101,11/29/2013,244893,595,CAPITAL,STEVE BENNETT ARCHITECTURAL DESIGN,103819
North East Lincolnshire Council,http://statistics.data.gov.uk/id/local-authority/00FC,Cap Economy Env And Housing,Cap Development,Local Transport Plan,Cap Land/Build-Build Enh Wrk,Cap Land/Build-Build Enh Wrk,YA102,11/18/2013,238371,759.68,CAPITAL,J MCCANN & CO LTD,100841
North East Lincolnshire Council,http://statistics.data.gov.uk/id/local-authority/00FC,Cap Economy Env And Housing,Cap Development,Local Transport Plan,Cap Land/Build-Build Enh Wrk,Cap Land/Build-Build Enh Wrk,YA102,11/18/2013,238366,532.66,CAPITAL,J MCCANN & CO LTD,100841
North East Lincolnshire Council,http://statistics.data.gov.uk/id/local-authority/00FC,Cap Economy Env And Housing,Cap Development,Local Transport Plan,Cap Land/Build-Build Enh Wrk,Cap Land/Build-Build Enh Wrk,YA102,11/18/2013,238466,461.29,CAPITAL,J MCCANN & CO LTD,100841
North East Lincolnshire Council,http://statistics.data.gov.uk/id/local-authority/00FC,Cap Economy Env And Housing,Cap Development,Local Transport Plan,Cap Infrastr-Build Enh Wrk,Cap Infrastr-Build Enh Wrk,YC102,11/13/2013,240880,309.35,CAPITAL,NORTHERN POWERGRID (YORKSHIRE) PLC,108328
North East Lincolnshire Council,http://statistics.data.gov.uk/id/local-authority/00FC,Cap Economy Env And Housing,Cap Development,Local Transport Plan,Cap Infrastr-Build Enh Wrk,Cap Infrastr-Build Enh Wrk,YC102,11/13/2013,240882,309.35,CAPITAL,NORTHERN POWERGRID (YORKSHIRE) PLC,108328
North East Lincolnshire Council,http://statistics.data.gov.uk/id/local-authority/00FC,Cap Economy Env And Housing,Cap Development,Local Transport Plan,Cap Infrastr-Prof Fees,Cap Infrastr-Prof Fees,YC103,11/6/2013,237931,2365,CAPITAL,TRAFFIC SURVEY PARTNERS (TSP) UK LTD,122554
North East Lincolnshire Council,http://statistics.data.gov.uk/id/local-authority/00FC,Cap Economy Env And Housing,Cap Development,Local Transport Plan,Cap Infrastr-Prof Fees,Cap Infrastr-Prof Fees,YC103,11/6/2013,237931,920,CAPITAL,TRAFFIC SURVEY PARTNERS (TSP) UK LTD,122554
North East Lincolnshire Council,http://statistics.data.gov.uk/id/local-authority/00FC,Cap Economy Env And Housing,Cap Development,Local Transport Plan,Cap Infrastr-Prof Fees,Cap Infrastr-Prof Fees,YC103,11/6/2013,237931,265,CAPITAL,TRAFFIC SURVEY PARTNERS (TSP) UK LTD,122554
North East Lincolnshire Council,http://statistics.data.gov.uk/id/local-authority/00FC,Cap Economy Env And Housing,Cap Development,Local Transport Plan,Cap Land/Build-Build Enh Wrk,Cap Land/Build-Build Enh Wrk,YA102,11/12/2013,240798,526.51,CAPITAL,NORTHERN POWERGRID (YORKSHIRE) PLC,108328
North East Lincolnshire Council,http://statistics.data.gov.uk/id/local-authority/00FC,Cap Economy Env And Housing,Cap Development,Local Transport Plan,Cap Land/Build-Build Enh Wrk,Cap Land/Build-Build Enh Wrk,YA102,11/12/2013,240808,336.1,CAPITAL,NORTHERN POWERGRID (YORKSHIRE) PLC,108328
North East Lincolnshire Council,http://statistics.data.gov.uk/id/local-authority/00FC,Cap Economy Env And Housing,Cap Development,Local Transport Plan,Cap Land/Build-Build Enh Wrk,Cap Land/Build-Build Enh Wrk,YA102,11/14/2013,241564,783.62,CAPITAL,J MCCANN & CO LTD,100841
North East Lincolnshire Council,http://statistics.data.gov.uk/id/local-authority/00FC,Cap Economy Env And Housing,Cap Development,Local Transport Plan,Cap Land/Build-Build Enh Wrk,Cap Land/Build-Build Enh Wrk,YA102,11/13/2013,240894,336.1,CAPITAL,NORTHERN POWERGRID (YORKSHIRE) PLC,108328
North East Lincolnshire Council,http://statistics.data.gov.uk/id/local-authority/00FC,Cap Economy Env And Housing,Cap Development,Local Transport Plan,Cap Land/Build-Build Enh Wrk,Cap Land/Build-Build Enh Wrk,YA102,11/13/2013,240895,526.51,CAPITAL,NORTHERN POWERGRID (YORKSHIRE) PLC,108328
North East Lincolnshire Council,http://statistics.data.gov.uk/id/local-authority/00FC,Cap Economy Env And Housing,Cap Development,Local Transport Plan,Cap Land/Build-Build Enh Wrk,Cap Land/Build-Build Enh Wrk,YA102,11/14/2013,240886,336.1,CAPITAL,NORTHERN POWERGRID (YORKSHIRE) PLC,108328
North East Lincolnshire Council,http://statistics.data.gov.uk/id/local-authority/00FC,Cap Economy Env And Housing,Cap Development,Local Transport Plan,Cap Land/Build-Build Enh Wrk,Cap Land/Build-Build Enh Wrk,YA102,11/14/2013,240888,336.1,CAPITAL,NORTHERN POWERGRID (YORKSHIRE) PLC,108328
North East Lincolnshire Council,http://statistics.data.gov.uk/id/local-authority/00FC,Cap Economy Env And Housing,Cap Development,Local Transport Plan,Cap Land/Build-Build Enh Wrk,Cap Land/Build-Build Enh Wrk,YA102,11/14/2013,240889,526.51,CAPITAL,NORTHERN POWERGRID (YORKSHIRE) PLC,108328
North East Lincolnshire Council,http://statistics.data.gov.uk/id/local-authority/00FC,Cap Economy Env And Housing,Cap Development,Local Transport Plan,Cap Land/Build-Build Enh Wrk,Cap Land/Build-Build Enh Wrk,YA102,11/14/2013,240890,460.34,CAPITAL,NORTHERN POWERGRID (YORKSHIRE) PLC,108328
North East Lincolnshire Council,http://statistics.data.gov.uk/id/local-authority/00FC,Cap Economy Env And Housing,Cap Development,Local Transport Plan,Cap Land/Build-Build Enh Wrk,Cap Land/Build-Build Enh Wrk,YA102,11/28/2013,244554,769.69,CAPITAL,NORTHERN POWERGRID (YORKSHIRE) PLC,108328
North East Lincolnshire Council,http://statistics.data.gov.uk/id/local-authority/00FC,Cap Economy Env And Housing,Cap Development,Local Transport Plan,Cap Land/Build-Build Enh Wrk,Cap Land/Build-Build Enh Wrk,YA102,11/19/2013,240896,336.1,CAPITAL,NORTHERN POWERGRID (YORKSHIRE) PLC,108328
North East Lincolnshire Council,http://statistics.data.gov.uk/id/local-authority/00FC,Cap Economy Env And Housing,Cap Development,Local Transport Plan,Cap Infrastr-Build Enh Wrk,Cap Infrastr-Build Enh Wrk,YC102,11/26/2013,243214,14209.52,CAPITAL,CYDEN HOMES LTD,116527
North East Lincolnshire Council,http://statistics.data.gov.uk/id/local-authority/00FC,Cap Economy Env And Housing,Cap Development,Local Transport Plan,Cap Infrastr-Build Enh Wrk,Cap Infrastr-Build Enh Wrk,YC102,11/12/2013,230136,522500,CAPITAL,KIELY BROS LTD,106644
North East Lincolnshire Council,http://statistics.data.gov.uk/id/local-authority/00FC,Cap Economy Env And Housing,Cap Development,Local Transport Plan,Cap Infrastr-Build Enh Wrk,Cap Infrastr-Build Enh Wrk,YC102,11/5/2013,238365,260,CAPITAL,J MCCANN & CO LTD,100841
North East Lincolnshire Council,http://statistics.data.gov.uk/id/local-authority/00FC,Cap Economy Env And Housing,Cap Development,Local Transport Plan,Cap Infrastr-Build Enh Wrk,Cap Infrastr-Build Enh Wrk,YC102,11/18/2013,241551,153329.65,CAPITAL,SPECIALIST SURFACING LIMITED,100579
North East Lincolnshire Council,http://statistics.data.gov.uk/id/local-authority/00FC,Cap Economy Env And Housing,Cap Development,Local Transport Plan,Cap Infrastr-Build Enh Wrk,Cap Infrastr-Build Enh Wrk,YC102,11/27/2013,243857,109193.09,CAPITAL,SPECIALIST SURFACING LIMITED,100579
North East Lincolnshire Council,http://statistics.data.gov.uk/id/local-authority/00FC,Cap Economy Env And Housing,Cap Development,Local Transport Plan,Cap Infrastr-Build Enh Wrk,Cap Infrastr-Build Enh Wrk,YC102,11/11/2013,239297,2402.9,CAPITAL,HUMBERSIDE MATERIALS LABORATORY LTD,122103
North East Lincolnshire Council,http://statistics.data.gov.uk/id/local-authority/00FC,Cap Economy Env And Housing,Cap Development,Local Transport Plan,Cap Infrastr-Build Enh Wrk,Cap Infrastr-Build Enh Wrk,YC102,11/20/2013,242320,2362,CAPITAL,THE CITY OF HULL ENVIRONMENT FORUM,108032
North East Lincolnshire Council,http://statistics.data.gov.uk/id/local-authority/00FC,Cap Economy Env And Housing,Cap Development,Local Transport Plan,Cap Infrastr-Build Enh Wrk,Cap Infrastr-Build Enh Wrk,YC102,11/18/2013,238371,2332,CAPITAL,J MCCANN & CO LTD,100841
North East Lincolnshire Council,http://statistics.data.gov.uk/id/local-authority/00FC,Cap Economy Env And Housing,Cap Development,Freeman Street Regeneration,Cap Land/Build-Build Enh Wrk,Cap Land/Build-Build Enh Wrk,YA102,11/27/2013,243851,132499.81,CAPITAL,BIRSE CIVILS LTD,121547
North East Lincolnshire Council,http://statistics.data.gov.uk/id/local-authority/00FC,Cap Economy Env And Housing,Cap Development,Freeman Street Regeneration,Cap Invest Prop-Build Enh Wrk,Cap Invest Prop-Build Enh Wrk,YE102,11/14/2013,241564,79498.94,CAPITAL,J MCCANN & CO LTD,100841
North East Lincolnshire Council,http://statistics.data.gov.uk/id/local-authority/00FC,Cap Economy Env And Housing,Cap Development,East Marsh Renewal,Cap Land/Build-Build Enh Wrk,Cap Land/Build-Build Enh Wrk,YA102,11/27/2013,243582,450,CAPITAL,GROUNDWORK AND LEISURE SERVICES,122716
North East Lincolnshire Council,http://statistics.data.gov.uk/id/local-authority/00FC,Cap Economy Env And Housing,Cap Development,Housing Assistance,Cap Grants To O/Side Sources,Cap Grants To O/Side Sources,YJ101,11/13/2013,240736,2530,CAPITAL,PANORAMIC,108694
North East Lincolnshire Council,http://statistics.data.gov.uk/id/local-authority/00FC,Cap Economy Env And Housing,Cap Development,Housing Assistance,Cap Grants To O/Side Sources,Cap Grants To O/Side Sources,YJ101,11/27/2013,243510,4815.6,CAPITAL,VALAM BUILDERS LTD,100566
North East Lincolnshire Council,http://statistics.data.gov.uk/id/local-authority/00FC,Cap Economy Env And Housing,Cap Development,Housing Assistance,Cap Grants To O/Side Sources,Cap Grants To O/Side Sources,YJ101,11/6/2013,238644,385,CAPITAL,GRADE 3 LIMITED,101924
North East Lincolnshire Council,http://statistics.data.gov.uk/id/local-authority/00FC,Cap Economy Env And Housing,Cap Development,Housing Assistance,Cap Grants To O/Side Sources,Cap Grants To O/Side Sources,YJ101,11/11/2013,238665,10933.33,CAPITAL,TRIMAR,110063
North East Lincolnshire Council,http://statistics.data.gov.uk/id/local-authority/00FC,Cap Economy Env And Housing,Cap Development,Housing Assistance,Cap Grants To O/Side Sources,Cap Grants To O/Side Sources,YJ101,11/12/2013,240732,405.9,CAPITAL,MACLAREN BRITTON SOLICITORS,119797
North East Lincolnshire Council,http://statistics.data.gov.uk/id/local-authority/00FC,Cap Economy Env And Housing,Cap Development,Housing Assistance,Cap Grants To O/Side Sources,Cap Grants To O/Side Sources,YJ101,11/20/2013,242310,15350,CAPITAL,LETSAND (GRIMSBY),123288
North East Lincolnshire Council,http://statistics.data.gov.uk/id/local-authority/00FC,Cap Economy Env And Housing,Cap Development,Housing Assistance,Cap Grants To O/Side Sources,Cap Grants To O/Side Sources,YJ101,11/12/2013,240787,10655.76,CAPITAL,SHEFFIELD CITY COUNCIL,119344
North East Lincolnshire Council,http://statistics.data.gov.uk/id/local-authority/00FC,Cap Economy Env And Housing,Cap Development,Housing Assistance,Cap Grants To O/Side Sources,Cap Grants To O/Side Sources,YJ101,11/12/2013,240790,15859.86,CAPITAL,SHEFFIELD CITY COUNCIL,119344
North East Lincolnshire Council,http://statistics.data.gov.uk/id/local-authority/00FC,Cap Economy Env And Housing,Cap Development,Housing Assistance,Cap Grants To O/Side Sources,Cap Grants To O/Side Sources,YJ101,11/12/2013,240840,21197.28,CAPITAL,SHEFFIELD CITY COUNCIL,119344
North East Lincolnshire Council,http://statistics.data.gov.uk/id/local-authority/00FC,Cap Economy Env And Housing,Cap Development,Housing Assistance,Cap Grants To O/Side Sources,Cap Grants To O/Side Sources,YJ101,11/12/2013,240908,31527.2,CAPITAL,SHEFFIELD CITY COUNCIL,119344
North East Lincolnshire Council,http://statistics.data.gov.uk/id/local-authority/00FC,Cap Economy Env And Housing,Cap Development,Catch 3 Feasibility,Cap Auc-Prof Fees,Cap Auc-Prof Fees,YF103,11/4/2013,237412,REDACTED COMMERCIALLY SENSITIVE,CAPITAL,BALFOUR BEATTY LIVING PLACES LTD,115102
North East Lincolnshire Council,http://statistics.data.gov.uk/id/local-authority/00FC,Cap Economy Env And Housing,Cap Development,Local Sustainable Trans Fund,Cap Infrastr-Build Enh Wrk,Cap Infrastr-Build Enh Wrk,YC102,11/7/2013,239057,200000,CAPITAL,BIRSE CIVILS LTD,121547
North East Lincolnshire Council,http://statistics.data.gov.uk/id/local-authority/00FC,Cap Economy Env And Housing,Cap Development,Local Sustainable Trans Fund,Cap Infrastr-Build Enh Wrk,Cap Infrastr-Build Enh Wrk,YC102,11/4/2013,238115,3242.03,CAPITAL,C E SMITH & SONS,104444
North East Lincolnshire Council,http://statistics.data.gov.uk/id/local-authority/00FC,Cap Economy Env And Housing,Cap Development,Energy Sol - Street Light Lant,Cap Land/Build-Build Enh Wrk,Cap Land/Build-Build Enh Wrk,YA102,11/14/2013,241469,REDACTED COMMERCIALLY SENSITIVE,CAPITAL,BALFOUR BEATTY,102595
North East Lincolnshire Council,http://statistics.data.gov.uk/id/local-authority/00FC,Cap Economy Env And Housing,Cap Culture Leisure And Sport,Leisure/Library - Library,Cap Land/Build-Build Enh Wrk,Cap Land/Build-Build Enh Wrk,YA102,11/4/2013,238580,1768,CAPITAL,W R CULLUM,100811
North East Lincolnshire Council,http://statistics.data.gov.uk/id/local-authority/00FC,Cap Economy Env And Housing,Cap Culture Leisure And Sport,Leisure/Library - Library,Cap Land/Build-Build Enh Wrk,Cap Land/Build-Build Enh Wrk,YA102,11/26/2013,243895,755,CAPITAL,EAST KIRKBY ENGINEERING CO LTD,122478
North East Lincolnshire Council,http://statistics.data.gov.uk/id/local-authority/00FC,Cap Economy Env And Housing,Cap Culture Leisure And Sport,Leisure/Library - Library,Cap Land/Build-Build Enh Wrk,Cap Land/Build-Build Enh Wrk,YA102,11/4/2013,238574,1523,CAPITAL,W R CULLUM,100811
North East Lincolnshire Council,http://statistics.data.gov.uk/id/local-authority/00FC,Cap Economy Env And Housing,Cap Culture Leisure And Sport,Leisure/Library - Kgv,Cap Land/Build-Build Enh Wrk,Cap Land/Build-Build Enh Wrk,YA102,11/13/2013,241068,REDACTED COMMERCIALLY SENSITIVE,CAPITAL,BALFOUR BEATTY,102595
North East Lincolnshire Council,http://statistics.data.gov.uk/id/local-authority/00FC,Cap Economy Env And Housing,Cap Culture Leisure And Sport,Grimsby Leisure Centre,Cap Land/Build-Build Enh Wrk,Cap Land/Build-Build Enh Wrk,YA102,11/5/2013,238118,REDACTED COMMERCIALLY SENSITIVE,CAPITAL,BALFOUR BEATTY,102595
North East Lincolnshire Council,http://statistics.data.gov.uk/id/local-authority/00FC,Cap Economy Env And Housing,Cap Culture Leisure And Sport,Cleethorpes Leis Cent Refurb,Cap Land/Build-Build Enh Wrk,Cap Land/Build-Build Enh Wrk,YA102,11/4/2013,238121,REDACTED COMMERCIALLY SENSITIVE,CAPITAL,BALFOUR BEATTY,102595
North East Lincolnshire Council,http://statistics.data.gov.uk/id/local-authority/00FC,Cap Economy Env And Housing,Cap Culture Leisure And Sport,Cleethorpes Leis Cent Refurb,Cap Land/Build-Build Enh Wrk,Cap Land/Build-Build Enh Wrk,YA102,11/21/2013,243131,81495.8,CAPITAL,THE GELDER GROUP,103601
North East Lincolnshire Council,http://statistics.data.gov.uk/id/local-authority/00FC,Cap Economy Env And Housing,Cap Culture Leisure And Sport,Cleethorpes Leis Cent Refurb,Cap Land/Build-Build Enh Wrk,Cap Land/Build-Build Enh Wrk,YA102,11/25/2013,243121,1120,CAPITAL,PB SCAFFOLD DESIGN LTD,123491
North East Lincolnshire Council,http://statistics.data.gov.uk/id/local-authority/00FC,Cap Economy Env And Housing,Cap Culture Leisure And Sport,Cleethorpes Leis Cent Refurb,Cap Land/Build-Build Enh Wrk,Cap Land/Build-Build Enh Wrk,YA102,11/4/2013,238119,REDACTED COMMERCIALLY SENSITIVE,CAPITAL,BALFOUR BEATTY,102595
North East Lincolnshire Council,http://statistics.data.gov.uk/id/local-authority/00FC,Cap Economy Env And Housing,Cap Culture Leisure And Sport,Cleethorpes Leis Cent Refurb,Cap Land/Build-Build Enh Wrk,Cap Land/Build-Build Enh Wrk,YA102,11/21/2013,243131,329686.2,CAPITAL,THE GELDER GROUP,103601
North East Lincolnshire Council,http://statistics.data.gov.uk/id/local-authority/00FC,Cap Governance And Trans,Cap Transformation Project,Transformation Programme,Cap Intangible Assets,Cap Intangible Assets,YH101,11/11/2013,240243,1045,CAPITAL,CAPITA BUSINESS SERVICES LTD,102314
North East Lincolnshire Council,http://statistics.data.gov.uk/id/local-authority/00FC,Cap Governance And Trans,Cap Transformation Project,Transformation Programme,Cap Intangible Assets,Cap Intangible Assets,YH101,11/14/2013,240256,5047.5,CAPITAL,CAPITA BUSINESS SERVICES LTD,102314
North East Lincolnshire Council,http://statistics.data.gov.uk/id/local-authority/00FC,Cap Governance And Trans,Cap Transformation Project,Transformation Programme,Cap Intangible Assets,Cap Intangible Assets,YH101,11/4/2013,237514,345.61,CAPITAL,COMPUTACENTER UK LTD,101303
North East Lincolnshire Council,http://statistics.data.gov.uk/id/local-authority/00FC,Chief Executive,Chief Executive,Chief Exec & Support,Car Allowances,Travel - Employees,JF101,11/7/2013,239976,461.55,REVENUE,NYS CORPORATE,102444
North East Lincolnshire Council,http://statistics.data.gov.uk/id/local-authority/00FC,Chief Executive,Chief Executive,Chief Exec & Support,Contributions To Provisions,Contributions - Communities,LK101,11/12/2013,240432,REDACTED COMMERCIALLY SENSITIVE,REVENUE,BALFOUR BEATTY,102595
North East Lincolnshire Council,http://statistics.data.gov.uk/id/local-authority/00FC,Chief Executive,Chief Executive,Chief Exec & Support,Contributions To Provisions,Contributions - Communities,LK101,11/25/2013,240477,850,REVENUE,BRIANPLANT (HUMBERSIDE) LTD,100583
North East Lincolnshire Council,http://statistics.data.gov.uk/id/local-authority/00FC,Chief Executive,Chief Executive,Chief Exec & Support,Contributions To Provisions,Contributions - Communities,LK101,11/6/2013,237989,360,REVENUE,BRIANPLANT (HUMBERSIDE) LTD,100583
North East Lincolnshire Council,http://statistics.data.gov.uk/id/local-authority/00FC,Chief Executive,Chief Executive,Chief Exec & Support,Contributions To Provisions,Contributions - Communities,LK101,11/12/2013,240429,1000,REVENUE,SAFER HOMES SERVICE,111706
North East Lincolnshire Council,http://statistics.data.gov.uk/id/local-authority/00FC,Chief Executive,Chief Executive,Chief Exec & Support,Contributions To Provisions,Contributions - Communities,LK101,11/25/2013,243128,250,REVENUE,CHATTERIS HOUSE SOCIAL FUND,107511
North East Lincolnshire Council,http://statistics.data.gov.uk/id/local-authority/00FC,Chief Executive,Chief Executive,Chief Exec & Support,Contributions To Provisions,Contributions - Communities,LK101,11/14/2013,241468,800,REVENUE,FRESHNEY COMMUNITY SWIMMING CLUB,112266
North East Lincolnshire Council,http://statistics.data.gov.uk/id/local-authority/00FC,Chief Executive,Chief Executive,Chief Exec & Support,Contributions To Provisions,Contributions - Communities,LK101,11/14/2013,241459,250,REVENUE,GREAT COATES PRIMARY SCHOOL,101104
North East Lincolnshire Council,http://statistics.data.gov.uk/id/local-authority/00FC,Chief Executive,Chief Executive,Chief Exec & Support,Contributions To Provisions,Contributions - Communities,LK101,11/14/2013,241467,250,REVENUE,GREAT COATES VILLAGE NURSERY SCHOOL,107544
North East Lincolnshire Council,http://statistics.data.gov.uk/id/local-authority/00FC,Chief Executive,Chief Executive,Chief Exec & Support,Contributions To Provisions,Contributions - Communities,LK101,11/25/2013,243129,500,REVENUE,JOHN WHITGIFT ACADEMY,106898
North East Lincolnshire Council,http://statistics.data.gov.uk/id/local-authority/00FC,Chief Executive,Chief Executive,Chief Exec & Support,Contributions To Provisions,Contributions - Communities,LK101,11/20/2013,241245,449.66,REVENUE,GOPAK LTD,106905
North East Lincolnshire Council,http://statistics.data.gov.uk/id/local-authority/00FC,Chief Executive,Chief Executive,Chief Exec & Support,Contributions To Provisions,Contributions - Communities,LK101,11/14/2013,241466,1000,REVENUE,IMMINGHAM SEA CADETS,107478
North East Lincolnshire Council,http://statistics.data.gov.uk/id/local-authority/00FC,Chief Executive,Chief Executive,Chief Exec & Support,Contributions To Provisions,Contributions - Communities,LK101,11/21/2013,242132,1100,REVENUE,CLEELINCS NEIGHBOURHOOD FORUM,109043
North East Lincolnshire Council,http://statistics.data.gov.uk/id/local-authority/00FC,Chief Executive,Chief Executive,Chief Exec & Support,Contributions To Provisions,Contributions - Communities,LK101,11/18/2013,242030,500,REVENUE,DAUBNEY STREET (SEA END) NHWG,109061
North East Lincolnshire Council,http://statistics.data.gov.uk/id/local-authority/00FC,Chief Executive,Chief Executive,Chief Exec & Support,Contributions To Provisions,Contributions - Communities,LK101,11/12/2013,240430,1000,REVENUE,SAFER HOMES SERVICE,111706
North East Lincolnshire Council,http://statistics.data.gov.uk/id/local-authority/00FC,Chief Executive,Chief Executive,Chief Exec & Support,Contributions To Provisions,Contributions - Communities,LK101,11/26/2013,243211,500,REVENUE,SAFER HOMES SERVICE,111706
North East Lincolnshire Council,http://statistics.data.gov.uk/id/local-authority/00FC,Chief Executive,Chief Executive,Chief Exec & Support,Contributions To Provisions,Contributions - Communities,LK101,11/25/2013,241928,695,REVENUE,BROOKDALE TREE SURGERY,108641
North East Lincolnshire Council,http://statistics.data.gov.uk/id/local-authority/00FC,Chief Executive,Chief Executive,Chief Exec & Support,Contributions To Provisions,Contributions - Communities,LK101,11/11/2013,240267,250,REVENUE,MACAULAY AREA ACTION GROUP,107480
North East Lincolnshire Council,http://statistics.data.gov.uk/id/local-authority/00FC,Chief Executive,Chief Executive,Chief Exec & Support,Contributions To Provisions,Contributions - Communities,LK101,11/27/2013,244501,250,REVENUE,WEST MARSH COMMUNITY CENTRE,101392
North East Lincolnshire Council,http://statistics.data.gov.uk/id/local-authority/00FC,Chief Executive,Chief Executive,Chief Exec & Support,Contributions To Provisions,Contributions - Communities,LK101,11/11/2013,240265,260,REVENUE,GRIMSBY IN BLOOM,109366
North East Lincolnshire Council,http://statistics.data.gov.uk/id/local-authority/00FC,Chief Executive,Chief Executive,Chief Exec & Support,Contributions To Provisions,Contributions - Communities,LK101,11/13/2013,240229,1250,REVENUE,WESTERN PRIMARY SCHOOL RESIDENTIAL FUND,107606
North East Lincolnshire Council,http://statistics.data.gov.uk/id/local-authority/00FC,Chief Executive,Chief Executive,Chief Exec & Support,Contributions To Provisions,Contributions - Third Sector,LK102,11/13/2013,240191,400,REVENUE,2ND IMMINGHAM (TRINITY) GUIDE UNIT,123275
North East Lincolnshire Council,http://statistics.data.gov.uk/id/local-authority/00FC,Chief Executive,Chief Executive,Chief Exec & Support,Contributions To Provisions,Contributions - Third Sector,LK102,11/4/2013,238257,400,REVENUE,GRIMSBY 16+ CLUB,123081
North East Lincolnshire Council,http://statistics.data.gov.uk/id/local-authority/00FC,Chief Executive,Chief Executive,Chief Exec & Support,Contributions To Provisions,Contributions - Communities,LK101,11/4/2013,237962,500,REVENUE,HINDU CULTURAL SOCIETY,106966
North East Lincolnshire Council,http://statistics.data.gov.uk/id/local-authority/00FC,Chief Executive,Public Health,Directors Public Health,Direct Employee Expenses,Agency Staff,EA105,11/25/2013,238645,1943.48,REVENUE,VOLUNTARY ACTION NORTH EAST LINCOLNSHIRE,103631
North East Lincolnshire Council,http://statistics.data.gov.uk/id/local-authority/00FC,Chief Executive,Public Health,Directors Public Health,Indirect Employee Expenses,Staff Training,EB122,11/6/2013,238687,2565,REVENUE,UNIVERSITY OF BIRMINGHAM,101913
North East Lincolnshire Council,http://statistics.data.gov.uk/id/local-authority/00FC,Chief Executive,Public Health,Directors Public Health,Car Allowances,Travel - Employees,JF101,11/28/2013,195128,276.1,REVENUE,REDACTED PERSONAL INFORMATION,REDACTED PERSONAL INFORMATION
North East Lincolnshire Council,http://statistics.data.gov.uk/id/local-authority/00FC,Chief Executive,Public Health,Directors Public Health,Car Allowances,Travel - Employees,JF101,11/18/2013,241982,-7.19,REVENUE,NYS CORPORATE,102444
North East Lincolnshire Council,http://statistics.data.gov.uk/id/local-authority/00FC,Chief Executive,Public Health,Directors Public Health,Car Allowances,Travel - Employees,JF101,11/19/2013,241983,-53.99,REVENUE,NYS CORPORATE,102444
North East Lincolnshire Council,http://statistics.data.gov.uk/id/local-authority/00FC,Chief Executive,Public Health,Directors Public Health,Communications And Computing,Computer S/Ware - Licences,LF103,11/27/2013,243585,300,REVENUE,DOTTED EYES LTD,102296
North East Lincolnshire Council,http://statistics.data.gov.uk/id/local-authority/00FC,Chief Executive,Public Health,Directors Public Health,Contributions To Provisions,Contributions - Third Sector,LK102,11/18/2013,241905,37500,REVENUE,NE LINCOLNSHIRE CLINICAL COMMISSIONING GROUP,121624
North East Lincolnshire Council,http://statistics.data.gov.uk/id/local-authority/00FC,Chief Executive,Public Health,Directors Public Health,Contributions To Provisions,Contributions - Third Sector,LK102,11/18/2013,241906,6750,REVENUE,WEST MARSH DEVELOPMENT TRUST,105846
North East Lincolnshire Council,http://statistics.data.gov.uk/id/local-authority/00FC,Chief Executive,Public Health,Directors Public Health,Voluntary Associations,Third Pp - Third Sector,PF101,11/25/2013,243538,340,REVENUE,WEST MARSH DEVELOPMENT TRUST,105846
North East Lincolnshire Council,http://statistics.data.gov.uk/id/local-authority/00FC,Chief Executive,Public Health,Directors Public Health,Private Contractors,Contract Payments,PH105,11/12/2013,240353,REDACTED COMMERCIALLY SENSITIVE,REVENUE,VIRGIN CARE SERVICES LTD,120538
North East Lincolnshire Council,http://statistics.data.gov.uk/id/local-authority/00FC,Chief Executive,Public Health,Directors Public Health,Private Contractors,Contract Payments,PH105,11/12/2013,240349,REDACTED COMMERCIALLY SENSITIVE,REVENUE,VIRGIN CARE SERVICES LTD,120538
North East Lincolnshire Council,http://statistics.data.gov.uk/id/local-authority/00FC,Chief Executive,Public Health,Directors Public Health,Private Contractors,Contract Payments,PH105,11/20/2013,242301,REDACTED COMMERCIALLY SENSITIVE,REVENUE,VIRGIN CARE SERVICES LTD,120538
North East Lincolnshire Council,http://statistics.data.gov.uk/id/local-authority/00FC,Chief Executive,Public Health,Directors Public Health,Private Contractors,Third Party Prov - Private,PH101,11/6/2013,238656,352.86,REVENUE,COTTINGHAM PHARMACY,104020
North East Lincolnshire Council,http://statistics.data.gov.uk/id/local-authority/00FC,Chief Executive,Public Health,Directors Public Health,Private Contractors,Third Party Prov - Private,PH101,11/25/2013,242304,352.58,REVENUE,COTTINGHAM PHARMACY,104020
North East Lincolnshire Council,http://statistics.data.gov.uk/id/local-authority/00FC,Chief Executive,Public Health,Directors Public Health,Other Agencies,Health Charges,PJ131,11/29/2013,244699,REDACTED COMMERCIALLY SENSITIVE,REVENUE,VIRGIN CARE SERVICES LTD,120538
North East Lincolnshire Council,http://statistics.data.gov.uk/id/local-authority/00FC,Chief Executive,Public Health,Public Hlth - Improved Health,Rents,Room Hire,GC103,11/25/2013,242920,379.5,REVENUE,ST JAMES CHURCHWARDENS MAIN ACCOUNT,106502
North East Lincolnshire Council,http://statistics.data.gov.uk/id/local-authority/00FC,Chief Executive,Public Health,Public Hlth - Improved Health,Print Stationery / Gen Off Exp,Printing And Stationery,LD103,11/5/2013,238369,389,REVENUE,LEE CREATIVE MARKETING LTD,104460
North East Lincolnshire Council,http://statistics.data.gov.uk/id/local-authority/00FC,Chief Executive,Public Health,Public Hlth - Improved Health,Miscellaneous Expenses,Medical Supplies And Services,LL109,11/26/2013,244120,572.1,REVENUE,BOOTS THE CHEMIST,103919
North East Lincolnshire Council,http://statistics.data.gov.uk/id/local-authority/00FC,Chief Executive,Public Health,Public Hlth - Improved Health,Miscellaneous Expenses,Medical Supplies And Services,LL109,11/26/2013,244125,526.27,REVENUE,ASDA PHARMACY,104011
North East Lincolnshire Council,http://statistics.data.gov.uk/id/local-authority/00FC,Chief Executive,Public Health,Public Hlth - Improved Health,Miscellaneous Expenses,Medical Supplies And Services,LL109,11/26/2013,244128,348.6,REVENUE,L ROWLAND & CO RETAIL,104668
North East Lincolnshire Council,http://statistics.data.gov.uk/id/local-authority/00FC,Chief Executive,Public Health,Public Hlth - Improved Health,Miscellaneous Expenses,Medical Supplies And Services,LL109,11/26/2013,244129,852.98,REVENUE,LLOYDS PHARMACY,104881
North East Lincolnshire Council,http://statistics.data.gov.uk/id/local-authority/00FC,Chief Executive,Public Health,Public Hlth - Improved Health,Miscellaneous Expenses,Medical Supplies And Services,LL109,11/26/2013,244131,581.62,REVENUE,LLOYDS PHARMACY,106385
North East Lincolnshire Council,http://statistics.data.gov.uk/id/local-authority/00FC,Chief Executive,Public Health,Public Hlth - Improved Health,Miscellaneous Expenses,Medical Supplies And Services,LL109,11/26/2013,244414,385.31,REVENUE,COTTINGHAM PHARMACY,104020
North East Lincolnshire Council,http://statistics.data.gov.uk/id/local-authority/00FC,Chief Executive,Public Health,Public Hlth - Improved Health,Rents,Room Hire,GC103,11/11/2013,239839,284.2,REVENUE,NORTH LINCOLNSHIRE COUNCIL,101186
North East Lincolnshire Council,http://statistics.data.gov.uk/id/local-authority/00FC,Chief Executive,Public Health,Public Hlth - Improved Health,Miscellaneous Expenses,Medical Supplies And Services,LL109,11/26/2013,244095,368.08,REVENUE,H I WELDRICK LTD,104015
North East Lincolnshire Council,http://statistics.data.gov.uk/id/local-authority/00FC,Chief Executive,Public Health,Public Hlth - Improved Health,Miscellaneous Expenses,Medical Supplies And Services,LL109,11/26/2013,244096,395.9,REVENUE,SEDGEMILL LTD,104018
North East Lincolnshire Council,http://statistics.data.gov.uk/id/local-authority/00FC,Chief Executive,Public Health,Public Hlth - Improved Health,Miscellaneous Expenses,Medical Supplies And Services,LL109,11/26/2013,244412,328.63,REVENUE,LLOYDS PHARMACY,103916
North East Lincolnshire Council,http://statistics.data.gov.uk/id/local-authority/00FC,Chief Executive,Public Health,Public Hlth - Improved Health,Miscellaneous Expenses,Medical Supplies And Services,LL109,11/26/2013,244097,280,REVENUE,LLOYDS PHARMACY,104025
North East Lincolnshire Council,http://statistics.data.gov.uk/id/local-authority/00FC,Chief Executive,Public Health,Public Hlth - Improved Health,Miscellaneous Expenses,Other Supplies & Services,LL110,11/6/2013,238674,450,REVENUE,MHFA ENGLAND CIC,108265
North East Lincolnshire Council,http://statistics.data.gov.uk/id/local-authority/00FC,Chief Executive,Public Health,Public Hlth - Improved Health,Private Contractors,Third Party Prov - Private,PH101,11/13/2013,239863,912,REVENUE,GET HOOKED ON POSITIVE ACTIVITIES,123262
North East Lincolnshire Council,http://statistics.data.gov.uk/id/local-authority/00FC,Chief Executive,Public Health,Public Hlth - Improved Health,Private Contractors,Third Party Prov - Private,PH101,11/18/2013,241739,500,REVENUE,CLEETHORPES RUGBY CLUB,123260
North East Lincolnshire Council,http://statistics.data.gov.uk/id/local-authority/00FC,Chief Executive,Public Health,Public Hlth - Improved Health,Private Contractors,Third Party Prov - Private,PH101,11/11/2013,239856,800,REVENUE,EVOLUTION JFC,123259
North East Lincolnshire Council,http://statistics.data.gov.uk/id/local-authority/00FC,Chief Executive,Public Health,Public Hlth - Improved Health,Private Contractors,Third Party Prov - Private,PH101,11/7/2013,239857,1421,REVENUE,GTFC FITC,123261
North East Lincolnshire Council,http://statistics.data.gov.uk/id/local-authority/00FC,Chief Executive,Public Health,Public Hlth - Improved Health,Indirect Employee Expenses,Staff Training,EB122,11/21/2013,241668,423,REVENUE,OCN YORKSHIRE & HUMBER REGION,101705
North East Lincolnshire Council,http://statistics.data.gov.uk/id/local-authority/00FC,Chief Executive,Public Health,Public Hlth - Improved Health,Private Contractors,Third Party Prov - Private,PH101,11/28/2013,243970,4800,REVENUE,VXII THEATRE COMPANY,123439
North East Lincolnshire Council,http://statistics.data.gov.uk/id/local-authority/00FC,Other Corporate Budgets,Borrowing Costs,Misc Interest Bank Charges Etc,Miscellaneous Expenses,Card Processing Charges,LL106,11/19/2013,241900,3953.65,REVENUE,ALLPAY LIMITED,112919
North East Lincolnshire Council,http://statistics.data.gov.uk/id/local-authority/00FC,Other Corporate Budgets,Other Corporate Budgets,Appropriations,Miscellaneous Expenses,Other Expenses General,LL119,11/28/2013,244928,4340.57,REVENUE,CORRECT COMPLIANCE LIMITED,123617
North East Lincolnshire Council,http://statistics.data.gov.uk/id/local-authority/00FC,Other Corporate Budgets,Other Corporate Budgets,Appropriations,Indirect Employee Expenses,Pension P/Ment Pension Inc Act,EB105,11/13/2013,239140,966.64,REVENUE,LINCOLNSHIRE COUNTY COUNCIL,101224
North East Lincolnshire Council,http://statistics.data.gov.uk/id/local-authority/00FC,People And Communities,Schools,Schools,Miscellaneous Expenses,Exam Fees,LL115,11/27/2013,243223,-29.85,REVENUE,ASSESSMENT AND QUALIFICATIONS ALLIANCE,101139
North East Lincolnshire Council,http://statistics.data.gov.uk/id/local-authority/00FC,People And Communities,Schools,Schools,Direct Employee Expenses,Agency Supply Teachers,EA104,11/18/2013,241651,600,REVENUE,VISION FOR EDUCATION LTD,102399
North East Lincolnshire Council,http://statistics.data.gov.uk/id/local-authority/00FC,People And Communities,Schools,Schools,Direct Employee Expenses,Agency Supply Teachers,EA104,11/18/2013,241652,444.2,REVENUE,TEACHING PERSONNEL LTD,101305
North East Lincolnshire Council,http://statistics.data.gov.uk/id/local-authority/00FC,People And Communities,Schools,Schools,Cleaning And Domestic Supplies,Cleaning - Consumables,GH103,11/28/2013,244083,262.45,REVENUE,DAVID BURY LTD,103135
North East Lincolnshire Council,http://statistics.data.gov.uk/id/local-authority/00FC,People And Communities,Schools,Schools,Equip / Furniture / Materials,Teaching Materials,LA117,11/19/2013,241680,-14.98,REVENUE,EAST RIDING OF YORKSHIRE COUNCIL,100654
North East Lincolnshire Council,http://statistics.data.gov.uk/id/local-authority/00FC,People And Communities,Schools,Schools,Equip / Furniture / Materials,Teaching Materials,LA117,11/26/2013,242752,-23.95,REVENUE,TECHNOLOGY TEACHING SYSTEMS LTD,100996
North East Lincolnshire Council,http://statistics.data.gov.uk/id/local-authority/00FC,People And Communities,Schools,Schools,Miscellaneous Expenses,Exam Fees,LL115,11/18/2013,241664,400,REVENUE,NCFE,107743
North East Lincolnshire Council,http://statistics.data.gov.uk/id/local-authority/00FC,People And Communities,Schools,Schools,Miscellaneous Expenses,Exam Fees,LL115,11/18/2013,241653,384,REVENUE,NCFE,107743
North East Lincolnshire Council,http://statistics.data.gov.uk/id/local-authority/00FC,People And Communities,Schools,Schools,Energy Costs,Electricity,GB102,11/11/2013,240048,-835.27,REVENUE,NPOWER LIMITED,101414
North East Lincolnshire Council,http://statistics.data.gov.uk/id/local-authority/00FC,People And Communities,Schools,Schools,Energy Costs,Electricity,GB102,11/11/2013,239798,854.02,REVENUE,NPOWER LIMITED,101414
North East Lincolnshire Council,http://statistics.data.gov.uk/id/local-authority/00FC,People And Communities,Schools,Schools,Energy Costs,Electricity,GB102,11/28/2013,244552,708.52,REVENUE,NPOWER LIMITED,101414
North East Lincolnshire Council,http://statistics.data.gov.uk/id/local-authority/00FC,People And Communities,Schools,Schools,Equip / Furniture / Materials,Teaching Materials,LA117,11/14/2013,239941,-29.25,REVENUE,YORKSHIRE PURCHASING,100573
North East Lincolnshire Council,http://statistics.data.gov.uk/id/local-authority/00FC,People And Communities,Schools,Schools,Print Stationery / Gen Off Exp,Photocopier - Running Costs,LD102,11/11/2013,239794,1093.49,REVENUE,UNITED CARLTON OFFICE SYSTEMS LTD,101652
North East Lincolnshire Council,http://statistics.data.gov.uk/id/local-authority/00FC,People And Communities,Schools,Schools,Communications And Computing,Computer S/Ware - Licences,LF103,11/14/2013,241160,621.6,REVENUE,123COMMS LIMITED,102160
North East Lincolnshire Council,http://statistics.data.gov.uk/id/local-authority/00FC,People And Communities,Schools,Schools,Direct Employee Expenses,Agency Supply Teachers,EA104,11/18/2013,242004,330,REVENUE,TEACHING PERSONNEL LTD,101305
North East Lincolnshire Council,http://statistics.data.gov.uk/id/local-authority/00FC,People And Communities,Schools,Schools,Direct Employee Expenses,Agency Supply Teachers,EA104,11/13/2013,240205,330,REVENUE,TEACHING PERSONNEL LTD,101305
North East Lincolnshire Council,http://statistics.data.gov.uk/id/local-authority/00FC,People And Communities,Schools,Schools,Water Services,Water,GE101,11/18/2013,242011,261.54,REVENUE,ANGLIAN WATER,100508
North East Lincolnshire Council,http://statistics.data.gov.uk/id/local-authority/00FC,People And Communities,Schools,Schools,Print Stationery / Gen Off Exp,Advertising,LD104,11/21/2013,242138,272,REVENUE,LOCAL WORLD LIMITED,118774
North East Lincolnshire Council,http://statistics.data.gov.uk/id/local-authority/00FC,People And Communities,Schools,Schools,Indirect Employee Expenses,Staff Training,EB122,11/11/2013,239846,REDACTED COMMERCIALLY SENSITIVE,REVENUE,SERCO SHARED SERVICES CENTRE,101875
North East Lincolnshire Council,http://statistics.data.gov.uk/id/local-authority/00FC,People And Communities,Schools,Schools,Rep Alterations Maint Building,Buildings - Repairs And Maint,GA102,11/25/2013,243120,5866,REVENUE,RSB FLOORING,103570
North East Lincolnshire Council,http://statistics.data.gov.uk/id/local-authority/00FC,People And Communities,Schools,Schools,Energy Costs,Gas,GB101,11/11/2013,240047,-102.13,REVENUE,BRITISH GAS TRADING LTD,101507
North East Lincolnshire Council,http://statistics.data.gov.uk/id/local-authority/00FC,People And Communities,Schools,Schools,Cleaning And Domestic Supplies,Refuse Collection,GH104,11/11/2013,239850,496.08,REVENUE,BELL WASTE CONTROL,101433
North East Lincolnshire Council,http://statistics.data.gov.uk/id/local-authority/00FC,People And Communities,Schools,Schools,Equip / Furniture / Materials,Teaching Materials,LA117,11/11/2013,239859,250,REVENUE,CCL (EUROPE) LTD,100836
North East Lincolnshire Council,http://statistics.data.gov.uk/id/local-authority/00FC,People And Communities,Schools,Schools,Equip / Furniture / Materials,Teaching Materials,LA117,11/11/2013,240046,-8.95,REVENUE,EAST RIDING OF YORKSHIRE COUNCIL,100654
North East Lincolnshire Council,http://statistics.data.gov.uk/id/local-authority/00FC,People And Communities,Schools,Schools,Print Stationery / Gen Off Exp,Photocopier - Running Costs,LD102,11/25/2013,242781,1292.07,REVENUE,DANWOOD CONTRACT RENTALS,101417
North East Lincolnshire Council,http://statistics.data.gov.uk/id/local-authority/00FC,People And Communities,Schools,Schools,Communications And Computing,Computer H/Ware - Teaching,LF104,11/11/2013,239849,260.9,REVENUE,JP-UK-JUST PRINT UK LTD,104380
North East Lincolnshire Council,http://statistics.data.gov.uk/id/local-authority/00FC,People And Communities,Schools,Schools,Communications And Computing,Computer H/Ware - Teaching,LF104,11/14/2013,241519,726.88,REVENUE,OFFICE FRIENDS LTD,102454
North East Lincolnshire Council,http://statistics.data.gov.uk/id/local-authority/00FC,People And Communities,Schools,Schools,Communications And Computing,Computer S/Ware - Licences,LF103,11/14/2013,241505,900,REVENUE,TECHNOLOGY SUPPORT SOLUTIONS LTD,119571
North East Lincolnshire Council,http://statistics.data.gov.uk/id/local-authority/00FC,People And Communities,Schools,Schools,Other Agencies,Educational Visits,PJ152,11/14/2013,241754,3800,REVENUE,PGL TRAVEL LTD,100693
North East Lincolnshire Council,http://statistics.data.gov.uk/id/local-authority/00FC,People And Communities,Schools,Schools,Direct Employee Expenses,Agency Supply Teachers,EA104,11/25/2013,242736,725,REVENUE,PRINCIPAL RESOURCING LTD,101601
North East Lincolnshire Council,http://statistics.data.gov.uk/id/local-authority/00FC,People And Communities,Schools,Schools,Direct Employee Expenses,Agency Supply Teachers,EA104,11/25/2013,242734,725,REVENUE,PRINCIPAL RESOURCING LTD,101601
North East Lincolnshire Council,http://statistics.data.gov.uk/id/local-authority/00FC,People And Communities,Schools,Schools,Direct Employee Expenses,Agency Supply Teachers,EA104,11/25/2013,242735,290,REVENUE,PRINCIPAL RESOURCING LTD,101601
North East Lincolnshire Council,http://statistics.data.gov.uk/id/local-authority/00FC,People And Communities,Schools,Schools,Direct Employee Expenses,Agency Supply Teachers,EA104,11/13/2013,239335,815,REVENUE,REED EMPLOYMENT LTD,102225
North East Lincolnshire Council,http://statistics.data.gov.uk/id/local-authority/00FC,People And Communities,Schools,Schools,Direct Employee Expenses,Agency Supply Teachers,EA104,11/11/2013,239343,815,REVENUE,REED EMPLOYMENT LTD,102225
North East Lincolnshire Council,http://statistics.data.gov.uk/id/local-authority/00FC,People And Communities,Schools,Schools,Direct Employee Expenses,Agency Supply Teachers,EA104,11/6/2013,239427,580,REVENUE,PRINCIPAL RESOURCING LTD,101601
North East Lincolnshire Council,http://statistics.data.gov.uk/id/local-authority/00FC,People And Communities,Schools,Schools,Indirect Employee Expenses,Staff Training,EB122,11/13/2013,239332,399.99,REVENUE,FORUM BUSINESS MEDIA LTD,101592
North East Lincolnshire Council,http://statistics.data.gov.uk/id/local-authority/00FC,People And Communities,Schools,Schools,Indirect Employee Expenses,Staff Training,EB122,11/27/2013,244502,1015,REVENUE,PBM INSPECTION SERVICES LTD,101758
North East Lincolnshire Council,http://statistics.data.gov.uk/id/local-authority/00FC,People And Communities,Schools,Schools,Indirect Employee Expenses,Staff Training,EB122,11/13/2013,239339,280,REVENUE,RUTH MISKIN LITERACY LTD,103122
North East Lincolnshire Council,http://statistics.data.gov.uk/id/local-authority/00FC,People And Communities,Schools,Schools,Indirect Employee Expenses,Staff Training,EB122,11/21/2013,242842,REDACTED COMMERCIALLY SENSITIVE,REVENUE,SERCO SHARED SERVICES CENTRE,101875
North East Lincolnshire Council,http://statistics.data.gov.uk/id/local-authority/00FC,People And Communities,Schools,Schools,Indirect Employee Expenses,Staff Training,EB122,11/21/2013,242850,1500,REVENUE,GLOBAL THINKING SYSTEMS LTD,123475
North East Lincolnshire Council,http://statistics.data.gov.uk/id/local-authority/00FC,People And Communities,Schools,Schools,Rep Alterations Maint Building,Buildings - Repairs And Maint,GA102,11/18/2013,241019,420,REVENUE,ARK JOINERY AND BUILDING MAINTENANCE LTD,101126
North East Lincolnshire Council,http://statistics.data.gov.uk/id/local-authority/00FC,People And Communities,Schools,Schools,Rep Alterations Maint Building,Buildings - Repairs And Maint,GA102,11/25/2013,242748,565,REVENUE,HAITH'S HEATING LTD,101342
North East Lincolnshire Council,http://statistics.data.gov.uk/id/local-authority/00FC,People And Communities,Schools,Schools,Rep Alterations Maint Building,Buildings - Repairs And Maint,GA102,11/13/2013,241063,850,REVENUE,FABRIQUE SPECIALIST GLAZING SYSTEMS LTD,101314
North East Lincolnshire Council,http://statistics.data.gov.uk/id/local-authority/00FC,People And Communities,Schools,Schools,Energy Costs,Electricity,GB102,11/28/2013,244520,738.93,REVENUE,NPOWER LIMITED,101414
North East Lincolnshire Council,http://statistics.data.gov.uk/id/local-authority/00FC,People And Communities,Schools,Schools,Energy Costs,Gas,GB101,11/6/2013,239443,-204.73,REVENUE,BRITISH GAS TRADING LTD,101507
North East Lincolnshire Council,http://statistics.data.gov.uk/id/local-authority/00FC,People And Communities,Schools,Schools,Energy Costs,Gas,GB101,11/25/2013,242887,543.89,REVENUE,BRITISH GAS TRADING LTD,101507
North East Lincolnshire Council,http://statistics.data.gov.uk/id/local-authority/00FC,People And Communities,Schools,Schools,Energy Costs,Gas,GB101,11/11/2013,239445,-201.36,REVENUE,BRITISH GAS TRADING LTD,101507
North East Lincolnshire Council,http://statistics.data.gov.uk/id/local-authority/00FC,People And Communities,Schools,Schools,Water Services,Water,GE101,11/6/2013,239341,410.72,REVENUE,ANGLIAN WATER,100508
North East Lincolnshire Council,http://statistics.data.gov.uk/id/local-authority/00FC,People And Communities,Schools,Schools,Cleaning And Domestic Supplies,Cleaning - Services,GH102,11/11/2013,239349,400,REVENUE,FRESHNEY CLEANERS,100813
North East Lincolnshire Council,http://statistics.data.gov.uk/id/local-authority/00FC,People And Communities,Schools,Schools,Cleaning And Domestic Supplies,Cleaning - Services,GH102,11/26/2013,242832,600,REVENUE,FRESHNEY CLEANERS,100813
North East Lincolnshire Council,http://statistics.data.gov.uk/id/local-authority/00FC,People And Communities,Schools,Schools,Equip / Furniture / Materials,Books,LA121,11/28/2013,244568,2575.03,REVENUE,OXFORD UNIVERSITY PRESS,100887
North East Lincolnshire Council,http://statistics.data.gov.uk/id/local-authority/00FC,People And Communities,Schools,Schools,Equip / Furniture / Materials,Books,LA121,11/6/2013,239345,4553.33,REVENUE,OXFORD UNIVERSITY PRESS,100887
North East Lincolnshire Council,http://statistics.data.gov.uk/id/local-authority/00FC,People And Communities,Schools,Schools,Equip / Furniture / Materials,Teaching Materials,LA117,11/13/2013,239449,-8.8,REVENUE,G F SMITH & SON LTD,100562
North East Lincolnshire Council,http://statistics.data.gov.uk/id/local-authority/00FC,People And Communities,Schools,Schools,Equip / Furniture / Materials,Teaching Materials,LA117,11/20/2013,242503,-79.8,REVENUE,YORKSHIRE PURCHASING,100573
North East Lincolnshire Council,http://statistics.data.gov.uk/id/local-authority/00FC,People And Communities,Schools,Schools,Equip / Furniture / Materials,Teaching Materials,LA117,11/21/2013,242841,1078.2,REVENUE,SCHOOL STICKERS,101288
North East Lincolnshire Council,http://statistics.data.gov.uk/id/local-authority/00FC,People And Communities,Schools,Schools,Print Stationery / Gen Off Exp,Photocopier - Running Costs,LD102,11/21/2013,242851,425.63,REVENUE,UNITED CARLTON OFFICE SYSTEMS LTD,101652
North East Lincolnshire Council,http://statistics.data.gov.uk/id/local-authority/00FC,People And Communities,Schools,Schools,Communications And Computing,Computer H/Ware - Teaching,LF104,11/13/2013,239432,866.45,REVENUE,DELL FINANCIAL SERVICES,101264
North East Lincolnshire Council,http://statistics.data.gov.uk/id/local-authority/00FC,People And Communities,Schools,Schools,Communications And Computing,Computer H/Ware - Teaching,LF104,11/21/2013,242844,502.75,REVENUE,RENAISSANCE LEARNING UK,103925
North East Lincolnshire Council,http://statistics.data.gov.uk/id/local-authority/00FC,People And Communities,Schools,Schools,Other Agencies,Educational Visits,PJ152,11/28/2013,244503,406.67,REVENUE,EAST LINDSEY DISTRICT COUNCIL,101582
North East Lincolnshire Council,http://statistics.data.gov.uk/id/local-authority/00FC,People And Communities,Schools,Schools,Consultancy,Consultancy,PL101,11/21/2013,242852,360,REVENUE,ALEXANDRA BLOY CENTRE OF DANCE,104835
North East Lincolnshire Council,http://statistics.data.gov.uk/id/local-authority/00FC,People And Communities,Schools,Schools,Rep Alterations Maint Building,Buildings - Repairs And Maint,GA102,11/21/2013,242873,440,REVENUE,J W PLATER LTD,100555
North East Lincolnshire Council,http://statistics.data.gov.uk/id/local-authority/00FC,People And Communities,Schools,Schools,Energy Costs,Electricity,GB102,11/28/2013,244529,872.31,REVENUE,NPOWER LIMITED,101414
North East Lincolnshire Council,http://statistics.data.gov.uk/id/local-authority/00FC,People And Communities,Schools,Schools,Print Stationery / Gen Off Exp,Photocopier - Running Costs,LD102,11/20/2013,242546,605.77,REVENUE,TODDS BUSINESS SYSTEMS LIMITED,102239
North East Lincolnshire Council,http://statistics.data.gov.uk/id/local-authority/00FC,People And Communities,Schools,Schools,Direct Employee Expenses,Agency Supply Teachers,EA104,11/13/2013,241014,296,REVENUE,VISION FOR EDUCATION LTD,102399
North East Lincolnshire Council,http://statistics.data.gov.uk/id/local-authority/00FC,People And Communities,Schools,Schools,Direct Employee Expenses,Agency Supply Teachers,EA104,11/25/2013,243424,370,REVENUE,VISION FOR EDUCATION LTD,102399
North East Lincolnshire Council,http://statistics.data.gov.uk/id/local-authority/00FC,People And Communities,Schools,Schools,Direct Employee Expenses,Agency Supply Teachers,EA104,11/19/2013,241100,888,REVENUE,VISION FOR EDUCATION LTD,102399
North East Lincolnshire Council,http://statistics.data.gov.uk/id/local-authority/00FC,People And Communities,Schools,Schools,Direct Employee Expenses,Agency Supply Teachers,EA104,11/4/2013,238290,830,REVENUE,VISION FOR EDUCATION LTD,102399
North East Lincolnshire Council,http://statistics.data.gov.uk/id/local-authority/00FC,People And Communities,Schools,Schools,Rep Alterations Maint Building,Buildings - Repairs And Maint,GA102,11/18/2013,241089,276,REVENUE,SYLVESTER-KEAL LTD,100593
North East Lincolnshire Council,http://statistics.data.gov.uk/id/local-authority/00FC,People And Communities,Schools,Schools,Water Services,Water,GE101,11/19/2013,240333,434.31,REVENUE,ANGLIAN WATER,100508
North East Lincolnshire Council,http://statistics.data.gov.uk/id/local-authority/00FC,People And Communities,Schools,Schools,Grounds Maintenance Costs,Grounds Maintenance,GJ101,11/4/2013,238289,1960,REVENUE,LINDSEY TREE SERVICES LTD,100981
North East Lincolnshire Council,http://statistics.data.gov.uk/id/local-authority/00FC,People And Communities,Schools,Schools,Grounds Maintenance Costs,Grounds Maintenance,GJ101,11/25/2013,243418,340,REVENUE,LINDSEY TREE SERVICES LTD,100981
North East Lincolnshire Council,http://statistics.data.gov.uk/id/local-authority/00FC,People And Communities,Schools,Schools,Equip / Furniture / Materials,Equipment - Teaching,LA109,11/13/2013,241268,896.67,REVENUE,XYLEM HOLDINGS LTD,108655
North East Lincolnshire Council,http://statistics.data.gov.uk/id/local-authority/00FC,People And Communities,Schools,Schools,Equip / Furniture / Materials,Furniture - Teaching,LA107,11/25/2013,243416,346.45,REVENUE,FINDEL EDUCATION LIMITED,101237
North East Lincolnshire Council,http://statistics.data.gov.uk/id/local-authority/00FC,People And Communities,Schools,Schools,Equip / Furniture / Materials,Teaching Materials,LA117,11/19/2013,240320,267,REVENUE,BLACK SHEEP PRESS,100890
North East Lincolnshire Council,http://statistics.data.gov.uk/id/local-authority/00FC,People And Communities,Schools,Schools,Equip / Furniture / Materials,Teaching Materials,LA117,11/12/2013,240454,-17.4,REVENUE,EAST RIDING OF YORKSHIRE COUNCIL,100654
North East Lincolnshire Council,http://statistics.data.gov.uk/id/local-authority/00FC,People And Communities,Schools,Schools,Equip / Furniture / Materials,Teaching Materials,LA117,11/26/2013,243548,372.29,REVENUE,EAST RIDING OF YORKSHIRE COUNCIL,100654
North East Lincolnshire Council,http://statistics.data.gov.uk/id/local-authority/00FC,People And Communities,Schools,Schools,Print Stationery / Gen Off Exp,Photocopier - Running Costs,LD102,11/26/2013,243545,2399.51,REVENUE,BNP PARIBAS LEASE GROUP (RENTALS),101823
North East Lincolnshire Council,http://statistics.data.gov.uk/id/local-authority/00FC,People And Communities,Schools,Schools,Communications And Computing,Computer H/Ware - Teaching,LF104,11/26/2013,243544,1698,REVENUE,SAFE CONTROL LTD,100989
North East Lincolnshire Council,http://statistics.data.gov.uk/id/local-authority/00FC,People And Communities,Schools,Schools,Communications And Computing,Computer S/Ware - Licences,LF103,11/14/2013,241138,924.21,REVENUE,INFORMATION & DATA NETWORKS SUPPLIES LTD,101911
North East Lincolnshire Council,http://statistics.data.gov.uk/id/local-authority/00FC,People And Communities,Schools,Schools,Communications And Computing,Computer S/Ware - Licences,LF103,11/11/2013,240303,1331.55,REVENUE,ESPRESSO EDUCATION LTD,101653
North East Lincolnshire Council,http://statistics.data.gov.uk/id/local-authority/00FC,People And Communities,Schools,Schools,Other Agencies,Educational Visits,PJ152,11/14/2013,241129,290,REVENUE,T W HALL,123360
North East Lincolnshire Council,http://statistics.data.gov.uk/id/local-authority/00FC,People And Communities,Schools,Schools,Consultancy,Consultancy,PL101,11/4/2013,238300,450,REVENUE,DW EDUCATION SERVICES LTD,112821
North East Lincolnshire Council,http://statistics.data.gov.uk/id/local-authority/00FC,People And Communities,Schools,Schools,Consultancy,Consultancy - Curriculum,PL102,11/25/2013,243428,520,REVENUE,STANFORD SCHOOL FUND,101492
North East Lincolnshire Council,http://statistics.data.gov.uk/id/local-authority/00FC,People And Communities,Schools,Schools,Consultancy,Consultancy - Curriculum,PL102,11/18/2013,241124,2750,REVENUE,DIMENSIONS CURRICULUM LTD,112222
North East Lincolnshire Council,http://statistics.data.gov.uk/id/local-authority/00FC,People And Communities,Schools,Schools,Consultancy,Consultancy - Curriculum,PL102,11/14/2013,241135,550,REVENUE,MARK EMERSON,101337
North East Lincolnshire Council,http://statistics.data.gov.uk/id/local-authority/00FC,People And Communities,Schools,Schools,Consultancy,Consultancy - Curriculum,PL102,11/11/2013,240285,1550,REVENUE,SWIMMING4SCHOOLS LTD,107232
North East Lincolnshire Council,http://statistics.data.gov.uk/id/local-authority/00FC,People And Communities,Schools,Schools,Consultancy,Consultancy - Curriculum,PL102,11/4/2013,237969,536,REVENUE,THE HAPPY PUZZLE COMPANY,101440
North East Lincolnshire Council,http://statistics.data.gov.uk/id/local-authority/00FC,People And Communities,Schools,Schools,Direct Employee Expenses,Agency Supply Teachers,EA104,11/25/2013,242724,296,REVENUE,VISION FOR EDUCATION LTD,102399
North East Lincolnshire Council,http://statistics.data.gov.uk/id/local-authority/00FC,People And Communities,Schools,Schools,Indirect Employee Expenses,Staff Training,EB122,11/21/2013,242823,REDACTED COMMERCIALLY SENSITIVE,REVENUE,SERCO SHARED SERVICES CENTRE,101875
North East Lincolnshire Council,http://statistics.data.gov.uk/id/local-authority/00FC,People And Communities,Schools,Schools,Indirect Employee Expenses,Staff Training,EB122,11/28/2013,244547,450,REVENUE,LEEDS METROPOLITAN UNIVERSITY,101632
North East Lincolnshire Council,http://statistics.data.gov.uk/id/local-authority/00FC,People And Communities,Schools,Schools,Rep Alterations Maint Building,Security Alarms And Cctv,GA101,11/19/2013,241172,-11.5,REVENUE,IBWEST SECURITY SERVICES LTD,100741
North East Lincolnshire Council,http://statistics.data.gov.uk/id/local-authority/00FC,People And Communities,Schools,Schools,Energy Costs,Gas,GB101,11/21/2013,242824,401.26,REVENUE,BRITISH GAS TRADING LTD,101507
North East Lincolnshire Council,http://statistics.data.gov.uk/id/local-authority/00FC,People And Communities,Schools,Schools,Cleaning And Domestic Supplies,Refuse Collection,GH104,11/14/2013,240194,467.22,REVENUE,BELL WASTE CONTROL,101433
North East Lincolnshire Council,http://statistics.data.gov.uk/id/local-authority/00FC,People And Communities,Schools,Schools,Equip / Furniture / Materials,Furniture - Teaching,LA107,11/19/2013,241149,269.8,REVENUE,YORKSHIRE PURCHASING,100573
North East Lincolnshire Council,http://statistics.data.gov.uk/id/local-authority/00FC,People And Communities,Schools,Schools,Equip / Furniture / Materials,Teaching Materials,LA117,11/14/2013,240199,299.75,REVENUE,BLACK FISH BRANDING SOLUTIONS,120696
North East Lincolnshire Council,http://statistics.data.gov.uk/id/local-authority/00FC,People And Communities,Schools,Schools,Equip / Furniture / Materials,Teaching Materials,LA117,11/13/2013,240215,306.5,REVENUE,GL EDUCATION GROUP LTD,118819
North East Lincolnshire Council,http://statistics.data.gov.uk/id/local-authority/00FC,People And Communities,Schools,Schools,Communications And Computing,Computer S/Ware - Licences,LF103,11/14/2013,240218,1682.93,REVENUE,ESPRESSO EDUCATION LTD,101653
North East Lincolnshire Council,http://statistics.data.gov.uk/id/local-authority/00FC,People And Communities,Schools,Schools,Other Agencies,Educational Visits,PJ152,11/21/2013,242826,995,REVENUE,PGL TRAVEL LTD,100693
North East Lincolnshire Council,http://statistics.data.gov.uk/id/local-authority/00FC,People And Communities,Schools,Schools,Other Agencies,Educational Visits,PJ152,11/21/2013,242827,-120,REVENUE,PGL TRAVEL LTD,100693
North East Lincolnshire Council,http://statistics.data.gov.uk/id/local-authority/00FC,People And Communities,Schools,Schools,Consultancy,Consultancy - Curriculum,PL102,11/11/2013,240157,450,REVENUE,PAUL BRITCHFORD,112423
North East Lincolnshire Council,http://statistics.data.gov.uk/id/local-authority/00FC,People And Communities,Schools,Schools,Indirect Employee Expenses,Staff Training,EB122,11/14/2013,241484,500,REVENUE,DFE SHARED SERVICES ACCOUNTS RECEIVABLE TEAM,112310
North East Lincolnshire Council,http://statistics.data.gov.uk/id/local-authority/00FC,People And Communities,Schools,Schools,Rep Alterations Maint Building,Buildings - Repairs And Maint,GA102,11/25/2013,242865,677.25,REVENUE,LINCS ELECTRICAL SERVICES LTD,102044
North East Lincolnshire Council,http://statistics.data.gov.uk/id/local-authority/00FC,People And Communities,Schools,Schools,Energy Costs,Electricity,GB102,11/4/2013,238314,-1546.14,REVENUE,NPOWER LIMITED,101414
North East Lincolnshire Council,http://statistics.data.gov.uk/id/local-authority/00FC,People And Communities,Schools,Schools,Energy Costs,Gas,GB101,11/18/2013,241683,-135.21,REVENUE,BRITISH GAS TRADING LTD,101507
North East Lincolnshire Council,http://statistics.data.gov.uk/id/local-authority/00FC,People And Communities,Schools,Schools,Equip / Furniture / Materials,Teaching Materials,LA117,11/4/2013,238294,844.95,REVENUE,RISING STARS UK LTD,101731
North East Lincolnshire Council,http://statistics.data.gov.uk/id/local-authority/00FC,People And Communities,Schools,Schools,Communications And Computing,Computer H/Ware - Purchases,LF105,11/5/2013,238858,1575,REVENUE,TECHNOLOGY SUPPORT SOLUTIONS LTD,119571
North East Lincolnshire Council,http://statistics.data.gov.uk/id/local-authority/00FC,People And Communities,Schools,Schools,Communications And Computing,Computer H/Ware - Teaching,LF104,11/5/2013,238858,6031.16,REVENUE,TECHNOLOGY SUPPORT SOLUTIONS LTD,119571
North East Lincolnshire Council,http://statistics.data.gov.uk/id/local-authority/00FC,People And Communities,Schools,Schools,Other Agencies,Educational Visits,PJ152,11/4/2013,238326,620,REVENUE,AMVALE LIMITED,101030
North East Lincolnshire Council,http://statistics.data.gov.uk/id/local-authority/00FC,People And Communities,Schools,Schools,Other Agencies,Educational Visits,PJ152,11/14/2013,241523,382.8,REVENUE,NSSC OPERATIONS LTD,120013
North East Lincolnshire Council,http://statistics.data.gov.uk/id/local-authority/00FC,People And Communities,Schools,Schools,Consultancy,Consultancy - Curriculum,PL102,11/14/2013,241491,570,REVENUE,J R SPORTS,103415
North East Lincolnshire Council,http://statistics.data.gov.uk/id/local-authority/00FC,People And Communities,Schools,Schools,Rep Alterations Maint Building,Buildings - Repairs And Maint,GA102,11/19/2013,241904,2306,REVENUE,FABRIQUE SPECIALIST GLAZING SYSTEMS LTD,101314
North East Lincolnshire Council,http://statistics.data.gov.uk/id/local-authority/00FC,People And Communities,Schools,Schools,Rep Alterations Maint Building,Buildings - Repairs And Maint,GA102,11/13/2013,241018,881.44,REVENUE,EXCELL ELECTRICAL CONTRACTORS,100601
North East Lincolnshire Council,http://statistics.data.gov.uk/id/local-authority/00FC,People And Communities,Schools,Schools,Print Stationery / Gen Off Exp,Photocopier - Running Costs,LD102,11/25/2013,242834,2571.77,REVENUE,BNP PARIBAS LEASE GROUP (RENTALS),101823
North East Lincolnshire Council,http://statistics.data.gov.uk/id/local-authority/00FC,People And Communities,Schools,Schools,Other Agencies,Educational Visits,PJ152,11/20/2013,242839,1054.12,REVENUE,QUEEN MARY AVENUE INFANT SCHOOL FUND,121367
North East Lincolnshire Council,http://statistics.data.gov.uk/id/local-authority/00FC,People And Communities,Schools,Schools,Other Agencies,Educational Visits,PJ152,11/15/2013,241991,-1500,REVENUE,NATIONAL EDUCATION SOCIETY,121148
North East Lincolnshire Council,http://statistics.data.gov.uk/id/local-authority/00FC,People And Communities,Schools,Schools,Direct Employee Expenses,Agency Supply Teachers,EA104,11/7/2013,239097,336,REVENUE,REED EMPLOYMENT LTD,102225
North East Lincolnshire Council,http://statistics.data.gov.uk/id/local-authority/00FC,People And Communities,Schools,Schools,Direct Employee Expenses,Agency Supply Teachers,EA104,11/26/2013,243563,336,REVENUE,REED EMPLOYMENT LTD,102225
North East Lincolnshire Council,http://statistics.data.gov.uk/id/local-authority/00FC,People And Communities,Schools,Schools,Direct Employee Expenses,Agency Supply Teachers,EA104,11/12/2013,239080,407.4,REVENUE,REED EMPLOYMENT LTD,102225
North East Lincolnshire Council,http://statistics.data.gov.uk/id/local-authority/00FC,People And Communities,Schools,Schools,Direct Employee Expenses,Agency Supply Teachers,EA104,11/25/2013,242898,336,REVENUE,REED EMPLOYMENT LTD,102225
North East Lincolnshire Council,http://statistics.data.gov.uk/id/local-authority/00FC,People And Communities,Schools,Schools,Direct Employee Expenses,Pay Teachers Supply Cover,EA106,11/6/2013,239122,740,REVENUE,SPEAKFRENCH LTD,121375
North East Lincolnshire Council,http://statistics.data.gov.uk/id/local-authority/00FC,People And Communities,Schools,Schools,Indirect Employee Expenses,Staff Advertising,EB113,11/11/2013,239105,377.7,REVENUE,JOHNSTON PUBLISHING LTD,112702
North East Lincolnshire Council,http://statistics.data.gov.uk/id/local-authority/00FC,People And Communities,Schools,Schools,Energy Costs,Gas,GB101,11/21/2013,242901,496.44,REVENUE,BRITISH GAS TRADING LTD,101507
North East Lincolnshire Council,http://statistics.data.gov.uk/id/local-authority/00FC,People And Communities,Schools,Schools,Print Stationery / Gen Off Exp,Photocopier - Running Costs,LD102,11/7/2013,239099,919.1,REVENUE,SIEMENS FINANCIAL SERVICES LTD,101161
North East Lincolnshire Council,http://statistics.data.gov.uk/id/local-authority/00FC,People And Communities,Schools,Schools,Consultancy,Consultancy,PL101,11/25/2013,242897,900,REVENUE,STEPHEN DISBREY EDUCATION LTD,121485
North East Lincolnshire Council,http://statistics.data.gov.uk/id/local-authority/00FC,People And Communities,Schools,Schools,Rep Alterations Maint Building,Buildings - Repairs And Maint,GA102,11/4/2013,238576,709,REVENUE,ARK JOINERY AND BUILDING MAINTENANCE LTD,101126
North East Lincolnshire Council,http://statistics.data.gov.uk/id/local-authority/00FC,People And Communities,Schools,Schools,Rep Alterations Maint Building,Buildings - Repairs And Maint,GA102,11/13/2013,241034,276,REVENUE,SYLVESTER-KEAL LTD,100593
North East Lincolnshire Council,http://statistics.data.gov.uk/id/local-authority/00FC,People And Communities,Schools,Schools,Rep Alterations Maint Building,Buildings - Repairs And Maint,GA102,11/4/2013,238583,297,REVENUE,ARK JOINERY AND BUILDING MAINTENANCE LTD,101126
North East Lincolnshire Council,http://statistics.data.gov.uk/id/local-authority/00FC,People And Communities,Schools,Schools,Equip / Furniture / Materials,Teaching Materials,LA117,11/13/2013,241280,2097.59,REVENUE,ESPO,100745
North East Lincolnshire Council,http://statistics.data.gov.uk/id/local-authority/00FC,People And Communities,Schools,Schools,Print Stationery / Gen Off Exp,Photocopier - Running Costs,LD102,11/13/2013,241281,468.56,REVENUE,UNITED CARLTON OFFICE SYSTEMS LTD,101652
North East Lincolnshire Council,http://statistics.data.gov.uk/id/local-authority/00FC,People And Communities,Schools,Schools,Print Stationery / Gen Off Exp,Photocopier - Running Costs,LD102,11/13/2013,241281,436.98,REVENUE,UNITED CARLTON OFFICE SYSTEMS LTD,101652
North East Lincolnshire Council,http://statistics.data.gov.uk/id/local-authority/00FC,People And Communities,Schools,Schools,Communications And Computing,Computer H/Ware - Teaching,LF104,11/13/2013,241075,350.4,REVENUE,TECHNOLOGY SUPPORT SOLUTIONS LTD,119571
North East Lincolnshire Council,http://statistics.data.gov.uk/id/local-authority/00FC,People And Communities,Schools,Schools,Communications And Computing,Telephones,LF112,11/13/2013,241120,495,REVENUE,CMM TECHNOLOGY LTD,102134
North East Lincolnshire Council,http://statistics.data.gov.uk/id/local-authority/00FC,People And Communities,Schools,Schools,Indirect Employee Expenses,Staff Training,EB122,11/25/2013,243100,REDACTED COMMERCIALLY SENSITIVE,REVENUE,SERCO SHARED SERVICES CENTRE,101875
North East Lincolnshire Council,http://statistics.data.gov.uk/id/local-authority/00FC,People And Communities,Schools,Schools,Indirect Employee Expenses,Staff Training,EB122,11/6/2013,239323,300,REVENUE,THE CAMBRIDGE PARK ACADEMY,112112
North East Lincolnshire Council,http://statistics.data.gov.uk/id/local-authority/00FC,People And Communities,Schools,Schools,Rep Alterations Maint Building,Buildings - Repairs And Maint,GA102,11/25/2013,242743,309.69,REVENUE,HAITH'S HEATING LTD,101342
North East Lincolnshire Council,http://statistics.data.gov.uk/id/local-authority/00FC,People And Communities,Schools,Schools,Rep Alterations Maint Building,Buildings - Repairs And Maint,GA102,11/14/2013,241517,1530,REVENUE,ARK JOINERY AND BUILDING MAINTENANCE LTD,101126
North East Lincolnshire Council,http://statistics.data.gov.uk/id/local-authority/00FC,People And Communities,Schools,Schools,Rep Alterations Maint Building,Buildings - Repairs And Maint,GA102,11/13/2013,241029,276,REVENUE,SYLVESTER-KEAL LTD,100593
North East Lincolnshire Council,http://statistics.data.gov.uk/id/local-authority/00FC,People And Communities,Schools,Schools,Rep Alterations Maint Building,Buildings - Repairs And Maint,GA102,11/21/2013,242867,879,REVENUE,LINCS ELECTRICAL SERVICES LTD,102044
North East Lincolnshire Council,http://statistics.data.gov.uk/id/local-authority/00FC,People And Communities,Schools,Schools,Rep Alterations Maint Building,Buildings - Repairs And Maint,GA102,11/13/2013,241282,376,REVENUE,ORCHARD FIRE & SECURITY LTD,100650
North East Lincolnshire Council,http://statistics.data.gov.uk/id/local-authority/00FC,People And Communities,Schools,Schools,Rep Alterations Maint Building,Electrical Testing,GA107,11/13/2013,239386,697,REVENUE,IT SERVICES (GRIMSBY) LTD,101060
North East Lincolnshire Council,http://statistics.data.gov.uk/id/local-authority/00FC,People And Communities,Schools,Schools,Water Services,Water,GE101,11/13/2013,241117,873.06,REVENUE,ANGLIAN WATER,100508
North East Lincolnshire Council,http://statistics.data.gov.uk/id/local-authority/00FC,People And Communities,Schools,Schools,Grounds Maintenance Costs,Grounds Maintenance,GJ101,11/28/2013,244509,265.32,REVENUE,NORTH WEST TURF LIMITED,118826
North East Lincolnshire Council,http://statistics.data.gov.uk/id/local-authority/00FC,People And Communities,Schools,Schools,Equip / Furniture / Materials,Teaching Materials,LA117,11/27/2013,244506,820,REVENUE,NEXUS THE EDUCATORS,100678
North East Lincolnshire Council,http://statistics.data.gov.uk/id/local-authority/00FC,People And Communities,Schools,Schools,Equip / Furniture / Materials,Teaching Materials,LA117,11/14/2013,239279,454.48,REVENUE,EAST RIDING OF YORKSHIRE COUNCIL,100654
North East Lincolnshire Council,http://statistics.data.gov.uk/id/local-authority/00FC,People And Communities,Schools,Schools,Communications And Computing,Computer H/Ware - Teaching,LF104,11/27/2013,244513,845,REVENUE,IT SERVICES (GRIMSBY) LTD,101060
North East Lincolnshire Council,http://statistics.data.gov.uk/id/local-authority/00FC,People And Communities,Schools,Schools,Communications And Computing,Computer H/Ware - Teaching,LF104,11/13/2013,241108,528.08,REVENUE,IT SERVICES (GRIMSBY) LTD,101060
North East Lincolnshire Council,http://statistics.data.gov.uk/id/local-authority/00FC,People And Communities,Schools,Schools,Communications And Computing,Computer S/Ware - Licences,LF103,11/11/2013,239362,700,REVENUE,I-EDUCATION LTD,104758
North East Lincolnshire Council,http://statistics.data.gov.uk/id/local-authority/00FC,People And Communities,Schools,Schools,Other Agencies,Educational Visits,PJ152,11/13/2013,239379,498,REVENUE,NORTH LINCOLNSHIRE COUNCIL,101186
North East Lincolnshire Council,http://statistics.data.gov.uk/id/local-authority/00FC,People And Communities,Schools,Schools,Consultancy,Consultancy - Curriculum,PL102,11/13/2013,241128,1080,REVENUE,PETER SCRIMSHAW,102324
North East Lincolnshire Council,http://statistics.data.gov.uk/id/local-authority/00FC,People And Communities,Schools,Schools,Direct Employee Expenses,Agency Supply Teachers,EA104,11/14/2013,241478,1790,REVENUE,PRINCIPAL RESOURCING LTD,101601
North East Lincolnshire Council,http://statistics.data.gov.uk/id/local-authority/00FC,People And Communities,Schools,Schools,Direct Employee Expenses,Agency Supply Teachers,EA104,11/20/2013,242881,1790,REVENUE,PRINCIPAL RESOURCING LTD,101601
North East Lincolnshire Council,http://statistics.data.gov.uk/id/local-authority/00FC,People And Communities,Schools,Schools,Direct Employee Expenses,Agency Supply Teachers,EA104,11/4/2013,238566,1790,REVENUE,PRINCIPAL RESOURCING LTD,101601
North East Lincolnshire Council,http://statistics.data.gov.uk/id/local-authority/00FC,People And Communities,Schools,Schools,Direct Employee Expenses,Agency Supply Teachers,EA104,11/4/2013,238567,358,REVENUE,PRINCIPAL RESOURCING LTD,101601
North East Lincolnshire Council,http://statistics.data.gov.uk/id/local-authority/00FC,People And Communities,Schools,Schools,Indirect Employee Expenses,Staff Training,EB122,11/13/2013,239419,299,REVENUE,OSIRIS EDUCATIONAL WOODHALL SPA LTD,107430
North East Lincolnshire Council,http://statistics.data.gov.uk/id/local-authority/00FC,People And Communities,Schools,Schools,Indirect Employee Expenses,Staff Training,EB122,11/4/2013,238569,289,REVENUE,OSIRIS EDUCATIONAL WOODHALL SPA LTD,107430
North East Lincolnshire Council,http://statistics.data.gov.uk/id/local-authority/00FC,People And Communities,Schools,Schools,Indirect Employee Expenses,Staff Training,EB122,11/11/2013,239404,279,REVENUE,OSIRIS EDUCATIONAL WOODHALL SPA LTD,107430
North East Lincolnshire Council,http://statistics.data.gov.uk/id/local-authority/00FC,People And Communities,Schools,Schools,Indirect Employee Expenses,Staff Training,EB122,11/21/2013,242883,1755,REVENUE,CREATIVE EDUCATION LTD,102883
North East Lincolnshire Council,http://statistics.data.gov.uk/id/local-authority/00FC,People And Communities,Schools,Schools,Energy Costs,Electricity,GB102,11/4/2013,238560,2628.14,REVENUE,NPOWER LIMITED,101414
North East Lincolnshire Council,http://statistics.data.gov.uk/id/local-authority/00FC,People And Communities,Schools,Schools,Energy Costs,Gas,GB101,11/27/2013,244008,749.72,REVENUE,BRITISH GAS TRADING LTD,101507
North East Lincolnshire Council,http://statistics.data.gov.uk/id/local-authority/00FC,People And Communities,Schools,Schools,Equip / Furniture / Materials,Teaching Materials,LA117,11/6/2013,239442,-59.95,REVENUE,TECHNOLOGY TEACHING SYSTEMS LTD,100996
North East Lincolnshire Council,http://statistics.data.gov.uk/id/local-authority/00FC,People And Communities,Schools,Schools,Equip / Furniture / Materials,Teaching Materials,LA117,11/11/2013,239400,254.1,REVENUE,YORKSHIRE PURCHASING,100573
North East Lincolnshire Council,http://statistics.data.gov.uk/id/local-authority/00FC,People And Communities,Schools,Schools,Equip / Furniture / Materials,Teaching Materials,LA117,11/25/2013,242885,395,REVENUE,WESTFIELD ADVERTISING,100797
North East Lincolnshire Council,http://statistics.data.gov.uk/id/local-authority/00FC,People And Communities,Schools,Schools,Equip / Furniture / Materials,Teaching Materials,LA117,11/4/2013,238570,1535.57,REVENUE,TECHNOLOGY TEACHING SYSTEMS LTD,100996
North East Lincolnshire Council,http://statistics.data.gov.uk/id/local-authority/00FC,People And Communities,Schools,Schools,Other Agencies,Educational Visits,PJ152,11/25/2013,242900,780,REVENUE,GRIMSBY COLLEGE TRADING LTD,100966
North East Lincolnshire Council,http://statistics.data.gov.uk/id/local-authority/00FC,People And Communities,Schools,Schools,Other Agencies,Educational Visits,PJ152,11/21/2013,242888,490,REVENUE,TJ'S COACH HIRE LIMITED,108742
North East Lincolnshire Council,http://statistics.data.gov.uk/id/local-authority/00FC,People And Communities,Schools,Schools,Consultancy,Consultancy - Curriculum,PL102,11/28/2013,244066,500,REVENUE,GTS INSPECTIONS TRAINING & CONSULTANCY,105258
North East Lincolnshire Council,http://statistics.data.gov.uk/id/local-authority/00FC,People And Communities,Schools,Schools,Consultancy,Consultancy - Curriculum,PL102,11/11/2013,239435,695,REVENUE,THE HAPPY PUZZLE COMPANY,101440
North East Lincolnshire Council,http://statistics.data.gov.uk/id/local-authority/00FC,People And Communities,Schools,Schools,Consultancy,Consultancy - Curriculum,PL102,11/14/2013,241608,390,REVENUE,IMAGE MUSICAL THEATRE (UK) LTD,123389
North East Lincolnshire Council,http://statistics.data.gov.uk/id/local-authority/00FC,People And Communities,Schools,Schools,Consultancy,Consultancy - Curriculum,PL102,11/4/2013,238546,2200,REVENUE,STEVE COOPER SPORTS CONSULTANT,112882
North East Lincolnshire Council,http://statistics.data.gov.uk/id/local-authority/00FC,People And Communities,Schools,Schools,Direct Employee Expenses,Agency Supply Teachers,EA104,11/14/2013,241134,1295,REVENUE,LINCOLNSHIRE SOCCER SCHOOL,101505
North East Lincolnshire Council,http://statistics.data.gov.uk/id/local-authority/00FC,People And Communities,Schools,Schools,Direct Employee Expenses,Agency Supply Teachers,EA104,11/13/2013,239331,852.35,REVENUE,TEACHING PERSONNEL LTD,101305
North East Lincolnshire Council,http://statistics.data.gov.uk/id/local-authority/00FC,People And Communities,Schools,Schools,Direct Employee Expenses,Pay Admin & Clerical,EA119,11/13/2013,240214,466.66,REVENUE,MCARTHUR DEAN TRAINING LTD,107184
North East Lincolnshire Council,http://statistics.data.gov.uk/id/local-authority/00FC,People And Communities,Schools,Schools,Direct Employee Expenses,Pay Teachers Supply Cover,EA106,11/18/2013,241757,405,REVENUE,MUSIQUEST,101882
North East Lincolnshire Council,http://statistics.data.gov.uk/id/local-authority/00FC,People And Communities,Schools,Schools,Indirect Employee Expenses,Redundancy,EB109,11/21/2013,194078,REDACTED PERSONAL INFORMATION,REVENUE,REDACTED PERSONAL INFORMATION,REDACTED PERSONAL INFORMATION
North East Lincolnshire Council,http://statistics.data.gov.uk/id/local-authority/00FC,People And Communities,Schools,Schools,Indirect Employee Expenses,Staff Training,EB122,11/21/2013,242820,REDACTED COMMERCIALLY SENSITIVE,REVENUE,SERCO SHARED SERVICES CENTRE,101875
North East Lincolnshire Council,http://statistics.data.gov.uk/id/local-authority/00FC,People And Communities,Schools,Schools,Indirect Employee Expenses,Staff Training,EB122,11/28/2013,244562,415,REVENUE,INFORMATION & DATA NETWORKS SUPPLIES LTD,101911
North East Lincolnshire Council,http://statistics.data.gov.uk/id/local-authority/00FC,People And Communities,Schools,Schools,Rep Alterations Maint Building,Buildings - Repairs And Maint,GA102,11/18/2013,241756,1198.02,REVENUE,E S RUDKIN LTD,100632
North East Lincolnshire Council,http://statistics.data.gov.uk/id/local-authority/00FC,People And Communities,Schools,Schools,Rep Alterations Maint Building,Buildings - Repairs And Maint,GA102,11/25/2013,243119,4766.85,REVENUE,LINCS ELECTRICAL SERVICES LTD,102044
North East Lincolnshire Council,http://statistics.data.gov.uk/id/local-authority/00FC,People And Communities,Schools,Schools,Rep Alterations Maint Building,Fire Safety,GA106,11/21/2013,242819,378.9,REVENUE,HUMBERSIDE FIRE & RESCUE SERVICE,100667
North East Lincolnshire Council,http://statistics.data.gov.uk/id/local-authority/00FC,People And Communities,Schools,Schools,Cleaning And Domestic Supplies,Cleaning - Consumables,GH103,11/25/2013,242723,250,REVENUE,CORDELLS,101962
North East Lincolnshire Council,http://statistics.data.gov.uk/id/local-authority/00FC,People And Communities,Schools,Schools,Cleaning And Domestic Supplies,Cleaning - Domestic Purchases,GH105,11/6/2013,239273,276.82,REVENUE,GREEN OF LINCOLN,100533
North East Lincolnshire Council,http://statistics.data.gov.uk/id/local-authority/00FC,People And Communities,Schools,Schools,Cleaning And Domestic Supplies,Refuse Collection,GH104,11/5/2013,238886,359.92,REVENUE,BELL WASTE CONTROL,101433
North East Lincolnshire Council,http://statistics.data.gov.uk/id/local-authority/00FC,People And Communities,Schools,Schools,Cleaning And Domestic Supplies,Refuse Collection,GH104,11/7/2013,238900,-387.61,REVENUE,BELL WASTE CONTROL,101433
North East Lincolnshire Council,http://statistics.data.gov.uk/id/local-authority/00FC,People And Communities,Schools,Schools,Equip / Furniture / Materials,Teaching Materials,LA117,11/4/2013,238532,267.58,REVENUE,TECHNOLOGY TEACHING SYSTEMS LTD,100996
North East Lincolnshire Council,http://statistics.data.gov.uk/id/local-authority/00FC,People And Communities,Schools,Schools,Equip / Furniture / Materials,Teaching Materials,LA117,11/13/2013,240168,518.05,REVENUE,AQUILA BUSINESS PRODUCTS  USE SUPPLIER 123664,100607
North East Lincolnshire Council,http://statistics.data.gov.uk/id/local-authority/00FC,People And Communities,Schools,Schools,Print Stationery / Gen Off Exp,Photocopier - Running Costs,LD102,11/4/2013,238534,726.71,REVENUE,SIEMENS FINANCIAL SERVICES LTD,101161
North East Lincolnshire Council,http://statistics.data.gov.uk/id/local-authority/00FC,People And Communities,Schools,Schools,Communications And Computing,Computer S/Ware - Licences,LF103,11/6/2013,238537,306,REVENUE,TECHNOLOGY SUPPORT SOLUTIONS LTD,119571
North East Lincolnshire Council,http://statistics.data.gov.uk/id/local-authority/00FC,People And Communities,Schools,Schools,Other Agencies,Educational Visits,PJ152,11/4/2013,238529,440,REVENUE,KINGSWOOD EDUCATIONAL ACTIVITY CENTRE,101287
North East Lincolnshire Council,http://statistics.data.gov.uk/id/local-authority/00FC,People And Communities,Schools,Schools,Other Agencies,Educational Visits,PJ152,11/4/2013,238530,990,REVENUE,KINGSWOOD EDUCATIONAL ACTIVITY CENTRE,101287
North East Lincolnshire Council,http://statistics.data.gov.uk/id/local-authority/00FC,People And Communities,Schools,Schools,Other Agencies,Educational Visits,PJ152,11/4/2013,238531,1125,REVENUE,KINGSWOOD EDUCATIONAL ACTIVITY CENTRE,101287
North East Lincolnshire Council,http://statistics.data.gov.uk/id/local-authority/00FC,People And Communities,Schools,Schools,Direct Employee Expenses,Agency Supply Teachers,EA104,11/18/2013,242000,438.9,REVENUE,TEACHING PERSONNEL LTD,101305
North East Lincolnshire Council,http://statistics.data.gov.uk/id/local-authority/00FC,People And Communities,Schools,Schools,Indirect Employee Expenses,Mandatory Compensation,EB106,11/19/2013,242473,7784.5,REVENUE,BRIDGE MCFARLAND,122150
North East Lincolnshire Council,http://statistics.data.gov.uk/id/local-authority/00FC,People And Communities,Schools,Schools,Indirect Employee Expenses,Staff Training,EB122,11/25/2013,243438,360,REVENUE,RUPERT COLLINS LIMITED,101901
North East Lincolnshire Council,http://statistics.data.gov.uk/id/local-authority/00FC,People And Communities,Schools,Schools,Cleaning And Domestic Supplies,Cleaning - Consumables,GH103,11/13/2013,239928,295.72,REVENUE,PETER HOGARTH & SONS LTD,100815
North East Lincolnshire Council,http://statistics.data.gov.uk/id/local-authority/00FC,People And Communities,Schools,Schools,Grounds Maintenance Costs,Grounds Maintenance,GJ101,11/4/2013,237967,257.29,REVENUE,MAINSERVE GCM LTD,102202
North East Lincolnshire Council,http://statistics.data.gov.uk/id/local-authority/00FC,People And Communities,Schools,Schools,Equip / Furniture / Materials,Equipment - Teaching,LA109,11/4/2013,237964,274.95,REVENUE,FINDEL EDUCATION LIMITED,101237
North East Lincolnshire Council,http://statistics.data.gov.uk/id/local-authority/00FC,People And Communities,Schools,Schools,Equip / Furniture / Materials,Equipment - Teaching,LA109,11/11/2013,239844,728.02,REVENUE,MAUDESPORT,100711
North East Lincolnshire Council,http://statistics.data.gov.uk/id/local-authority/00FC,People And Communities,Schools,Schools,Equip / Furniture / Materials,Equipment - Teaching,LA109,11/13/2013,240720,422.49,REVENUE,HUMBERSTON CLOVERFIELDS SCHOOL FUND,104118
North East Lincolnshire Council,http://statistics.data.gov.uk/id/local-authority/00FC,People And Communities,Schools,Schools,Equip / Furniture / Materials,Non-Teaching Resources,LA118,11/14/2013,241495,281,REVENUE,SG WORLD LTD,101678
North East Lincolnshire Council,http://statistics.data.gov.uk/id/local-authority/00FC,People And Communities,Schools,Schools,Equip / Furniture / Materials,Teaching Materials,LA117,11/11/2013,239852,254.95,REVENUE,RISING STARS UK LTD,101731
North East Lincolnshire Council,http://statistics.data.gov.uk/id/local-authority/00FC,People And Communities,Schools,Schools,Equip / Furniture / Materials,Teaching Materials,LA117,11/18/2013,241678,387.97,REVENUE,YORKSHIRE PURCHASING,100573
North East Lincolnshire Council,http://statistics.data.gov.uk/id/local-authority/00FC,People And Communities,Schools,Schools,Equip / Furniture / Materials,Teaching Materials,LA117,11/25/2013,243405,-47.98,REVENUE,KENT COUNTY COUNCIL,112260
North East Lincolnshire Council,http://statistics.data.gov.uk/id/local-authority/00FC,People And Communities,Schools,Schools,Equip / Furniture / Materials,Teaching Materials,LA117,11/13/2013,240720,483.13,REVENUE,HUMBERSTON CLOVERFIELDS SCHOOL FUND,104118
North East Lincolnshire Council,http://statistics.data.gov.uk/id/local-authority/00FC,People And Communities,Schools,Schools,Equip / Furniture / Materials,Teaching Materials,LA117,11/20/2013,241681,-64.27,REVENUE,YORKSHIRE PURCHASING,100573
North East Lincolnshire Council,http://statistics.data.gov.uk/id/local-authority/00FC,People And Communities,Schools,Schools,Communications And Computing,Computer H/Ware - Purchases,LF105,11/11/2013,239864,2279.7,REVENUE,TECHNOLOGY TEACHING SYSTEMS LTD,100996
North East Lincolnshire Council,http://statistics.data.gov.uk/id/local-authority/00FC,People And Communities,Schools,Schools,Communications And Computing,Computer H/Ware - Teaching,LF104,11/18/2013,242115,1263,REVENUE,INFORMATION & DATA NETWORKS SUPPLIES LTD,101911
North East Lincolnshire Council,http://statistics.data.gov.uk/id/local-authority/00FC,People And Communities,Schools,Schools,Communications And Computing,Computer S/Ware - Licences,LF103,11/18/2013,242003,1008,REVENUE,INSIGHT DIRECT (UK) LTD,101011
North East Lincolnshire Council,http://statistics.data.gov.uk/id/local-authority/00FC,People And Communities,Schools,Schools,Consultancy,Consultancy - Curriculum,PL102,11/21/2013,242130,262.5,REVENUE,CRAIGLAMB LTD,119755
North East Lincolnshire Council,http://statistics.data.gov.uk/id/local-authority/00FC,People And Communities,Schools,Schools,Direct Employee Expenses,Agency Supply Teachers,EA104,11/12/2013,240796,377.9,REVENUE,TEACHING PERSONNEL LTD,101305
North East Lincolnshire Council,http://statistics.data.gov.uk/id/local-authority/00FC,People And Communities,Schools,Schools,Indirect Employee Expenses,Staff Training,EB122,11/18/2013,241997,REDACTED COMMERCIALLY SENSITIVE,REVENUE,SERCO SHARED SERVICES CENTRE,101875
North East Lincolnshire Council,http://statistics.data.gov.uk/id/local-authority/00FC,People And Communities,Schools,Schools,Energy Costs,Electricity,GB102,11/27/2013,244055,761.05,REVENUE,NPOWER LIMITED,101414
North East Lincolnshire Council,http://statistics.data.gov.uk/id/local-authority/00FC,People And Communities,Schools,Schools,Energy Costs,Gas,GB101,11/5/2013,238897,-311.38,REVENUE,BRITISH GAS TRADING LTD,101507
North East Lincolnshire Council,http://statistics.data.gov.uk/id/local-authority/00FC,People And Communities,Schools,Schools,Energy Costs,Gas,GB101,11/5/2013,238898,-311.65,REVENUE,BRITISH GAS TRADING LTD,101507
North East Lincolnshire Council,http://statistics.data.gov.uk/id/local-authority/00FC,People And Communities,Schools,Schools,Energy Costs,Gas,GB101,11/19/2013,242229,527.21,REVENUE,BRITISH GAS TRADING LTD,101507
North East Lincolnshire Council,http://statistics.data.gov.uk/id/local-authority/00FC,People And Communities,Schools,Schools,Energy Costs,Gas,GB101,11/4/2013,238518,347.21,REVENUE,BRITISH GAS TRADING LTD,101507
North East Lincolnshire Council,http://statistics.data.gov.uk/id/local-authority/00FC,People And Communities,Schools,Schools,Equip / Furniture / Materials,Teaching Materials,LA117,11/18/2013,241996,257.95,REVENUE,CHRIS QUIGLEY EDUCATION LTD,101997
North East Lincolnshire Council,http://statistics.data.gov.uk/id/local-authority/00FC,People And Communities,Schools,Schools,Communications And Computing,Computer H/Ware - Purchases,LF105,11/27/2013,244052,324,REVENUE,EDUCATION LINCS LTD,101059
North East Lincolnshire Council,http://statistics.data.gov.uk/id/local-authority/00FC,People And Communities,Schools,Schools,Communications And Computing,Computer H/Ware - Purchases,LF105,11/28/2013,244051,595,REVENUE,EDUCATION LINCS LTD,101059
North East Lincolnshire Council,http://statistics.data.gov.uk/id/local-authority/00FC,People And Communities,Schools,Schools,Communications And Computing,Computer S/Ware - Licences,LF103,11/12/2013,240794,424.15,REVENUE,KUDLIAN SOFTWARE LTD,107730
North East Lincolnshire Council,http://statistics.data.gov.uk/id/local-authority/00FC,People And Communities,Schools,Schools,Consultancy,Consultancy - Curriculum,PL102,11/11/2013,240152,560,REVENUE,LINCOLNSHIRE SOCCER SCHOOL,101505
North East Lincolnshire Council,http://statistics.data.gov.uk/id/local-authority/00FC,People And Communities,Schools,Schools,Consultancy,Consultancy - Curriculum,PL102,11/18/2013,241998,365,REVENUE,SOLAR SPORTS COACHING LTD,101797
North East Lincolnshire Council,http://statistics.data.gov.uk/id/local-authority/00FC,People And Communities,Schools,Schools,Consultancy,Consultancy - Curriculum,PL102,11/18/2013,241999,300,REVENUE,SOLAR SPORTS COACHING LTD,101797
North East Lincolnshire Council,http://statistics.data.gov.uk/id/local-authority/00FC,People And Communities,Schools,Schools,Direct Employee Expenses,Pay Teachers Supply Cover,EA106,11/26/2013,243856,850,REVENUE,HAYS ACCOUNTANCY PERSONNEL,101026
North East Lincolnshire Council,http://statistics.data.gov.uk/id/local-authority/00FC,People And Communities,Schools,Schools,Direct Employee Expenses,Pay Teachers Supply Cover,EA106,11/26/2013,243871,680,REVENUE,HAYS ACCOUNTANCY PERSONNEL,101026
North East Lincolnshire Council,http://statistics.data.gov.uk/id/local-authority/00FC,People And Communities,Schools,Schools,Indirect Employee Expenses,Staff Training,EB122,11/20/2013,241722,REDACTED COMMERCIALLY SENSITIVE,REVENUE,SERCO SHARED SERVICES CENTRE,101875
North East Lincolnshire Council,http://statistics.data.gov.uk/id/local-authority/00FC,People And Communities,Schools,Schools,Rep Alterations Maint Building,Buildings - Repairs And Maint,GA102,11/21/2013,242859,297,REVENUE,LUDAFLORS,100547
North East Lincolnshire Council,http://statistics.data.gov.uk/id/local-authority/00FC,People And Communities,Schools,Schools,Energy Costs,Gas,GB101,11/26/2013,243858,833.31,REVENUE,BRITISH GAS TRADING LTD,101507
North East Lincolnshire Council,http://statistics.data.gov.uk/id/local-authority/00FC,People And Communities,Schools,Schools,Cleaning And Domestic Supplies,Cleaning - Domestic Purchases,GH105,11/5/2013,238902,-43.4,REVENUE,EAST RIDING OF YORKSHIRE COUNCIL,100654
North East Lincolnshire Council,http://statistics.data.gov.uk/id/local-authority/00FC,People And Communities,Schools,Schools,Cleaning And Domestic Supplies,Refuse Collection,GH104,11/5/2013,239245,-42.72,REVENUE,IMMINGHAM CHILDRENS CENTRE,101908
North East Lincolnshire Council,http://statistics.data.gov.uk/id/local-authority/00FC,People And Communities,Schools,Schools,Equip / Furniture / Materials,Teaching Materials,LA117,11/26/2013,243868,390,REVENUE,ONLINE OFFICE SUPPLIES UK LTD,120944
North East Lincolnshire Council,http://statistics.data.gov.uk/id/local-authority/00FC,People And Communities,Schools,Schools,Consultancy,Consultancy - Curriculum,PL102,11/4/2013,238548,595,REVENUE,M&M PRODUCTIONS,101593
North East Lincolnshire Council,http://statistics.data.gov.uk/id/local-authority/00FC,People And Communities,Schools,Schools,Consultancy,Consultancy - Curriculum,PL102,11/26/2013,243866,1650,REVENUE,SWIMMING4SCHOOLS LTD,107232
North East Lincolnshire Council,http://statistics.data.gov.uk/id/local-authority/00FC,People And Communities,Schools,Schools,Consultancy,Consultancy - Curriculum,PL102,11/4/2013,238553,360,REVENUE,KINETIC THEATRE COMPANY,101311
North East Lincolnshire Council,http://statistics.data.gov.uk/id/local-authority/00FC,People And Communities,Schools,Schools,Miscellaneous Expenses,Contingency Reserve,LL123,11/6/2013,239448,26782.05,REVENUE,WILLOWS PRIMARY ACADEMY,120478
North East Lincolnshire Council,http://statistics.data.gov.uk/id/local-authority/00FC,People And Communities,Schools,Schools,Direct Employee Expenses,Agency Supply Teachers,EA104,11/25/2013,242906,908.65,REVENUE,TEACHING PERSONNEL LTD,101305
North East Lincolnshire Council,http://statistics.data.gov.uk/id/local-authority/00FC,People And Communities,Schools,Schools,Direct Employee Expenses,Agency Supply Teachers,EA104,11/7/2013,239376,934.8,REVENUE,TEACHING PERSONNEL LTD,101305
North East Lincolnshire Council,http://statistics.data.gov.uk/id/local-authority/00FC,People And Communities,Schools,Schools,Direct Employee Expenses,Agency Supply Teachers,EA104,11/21/2013,242892,1361,REVENUE,PRINCIPAL RESOURCING LTD,101601
North East Lincolnshire Council,http://statistics.data.gov.uk/id/local-authority/00FC,People And Communities,Schools,Schools,Direct Employee Expenses,Agency Supply Teachers,EA104,11/13/2013,241084,760,REVENUE,TEACHING PERSONNEL LTD,101305
North East Lincolnshire Council,http://statistics.data.gov.uk/id/local-authority/00FC,People And Communities,Schools,Schools,Direct Employee Expenses,Agency Supply Teachers,EA104,11/13/2013,241085,725,REVENUE,PRINCIPAL RESOURCING LTD,101601
North East Lincolnshire Council,http://statistics.data.gov.uk/id/local-authority/00FC,People And Communities,Schools,Schools,Indirect Employee Expenses,Staff Training,EB122,11/25/2013,242911,600,REVENUE,SCARTHO JUNIOR ACADEMY,108738
North East Lincolnshire Council,http://statistics.data.gov.uk/id/local-authority/00FC,People And Communities,Schools,Schools,Rep Alterations Maint Building,Buildings - Repairs And Maint,GA102,11/27/2013,244005,283.5,REVENUE,SYLVESTER-KEAL LTD,100593
North East Lincolnshire Council,http://statistics.data.gov.uk/id/local-authority/00FC,People And Communities,Schools,Schools,Energy Costs,Gas,GB101,11/21/2013,242890,1438.44,REVENUE,BRITISH GAS TRADING LTD,101507
North East Lincolnshire Council,http://statistics.data.gov.uk/id/local-authority/00FC,People And Communities,Schools,Schools,Cleaning And Domestic Supplies,Cleaning - Domestic Purchases,GH105,11/19/2013,241086,255.24,REVENUE,CROMWELL GROUP (HOLDINGS) LTD,100524
North East Lincolnshire Council,http://statistics.data.gov.uk/id/local-authority/00FC,People And Communities,Schools,Schools,Cleaning And Domestic Supplies,Cleaning - Domestic Purchases,GH105,11/13/2013,241076,323.35,REVENUE,EAST RIDING OF YORKSHIRE COUNCIL,100654
North East Lincolnshire Council,http://statistics.data.gov.uk/id/local-authority/00FC,People And Communities,Schools,Schools,Cleaning And Domestic Supplies,Refuse Collection,GH104,11/6/2013,239431,559.13,REVENUE,BELL WASTE CONTROL,101433
North East Lincolnshire Council,http://statistics.data.gov.uk/id/local-authority/00FC,People And Communities,Schools,Schools,Equip / Furniture / Materials,Non-Teaching Resources,LA118,11/6/2013,239394,273.41,REVENUE,W M MORRISON SUPERMARKETS PLC,100919
North East Lincolnshire Council,http://statistics.data.gov.uk/id/local-authority/00FC,People And Communities,Schools,Schools,Equip / Furniture / Materials,Non-Teaching Resources,LA118,11/13/2013,241261,385.3,REVENUE,MOTIVATION IN LEARNING LTD,101925
North East Lincolnshire Council,http://statistics.data.gov.uk/id/local-authority/00FC,People And Communities,Schools,Schools,Equip / Furniture / Materials,Out Of School Club Expenditure,LA119,11/11/2013,239380,377,REVENUE,ACTIVE COMMUNITIES,122505
North East Lincolnshire Council,http://statistics.data.gov.uk/id/local-authority/00FC,People And Communities,Schools,Schools,Equip / Furniture / Materials,Out Of School Club Expenditure,LA119,11/18/2013,241095,1227.5,REVENUE,GRIMSBY TOWN FOOTBALL IN THE COMMUNITY,100978
North East Lincolnshire Council,http://statistics.data.gov.uk/id/local-authority/00FC,People And Communities,Schools,Schools,Print Stationery / Gen Off Exp,Photocopier - Running Costs,LD102,11/13/2013,241077,254.41,REVENUE,XEROX (UK) LIMITED,100953
North East Lincolnshire Council,http://statistics.data.gov.uk/id/local-authority/00FC,People And Communities,Schools,Schools,Communications And Computing,Computer H/Ware - Teaching,LF104,11/20/2013,242504,-26.79,REVENUE,ALLINSON PRINT & SUPPLIES,105561
North East Lincolnshire Council,http://statistics.data.gov.uk/id/local-authority/00FC,People And Communities,Schools,Schools,Communications And Computing,Computer H/Ware - Teaching,LF104,11/6/2013,239428,372.72,REVENUE,ALLINSON PRINT & SUPPLIES,105561
North East Lincolnshire Council,http://statistics.data.gov.uk/id/local-authority/00FC,People And Communities,Schools,Schools,Consultancy,Consultancy - Curriculum,PL102,11/25/2013,242775,504,REVENUE,SOLAR SPORTS COACHING LTD,101797
North East Lincolnshire Council,http://statistics.data.gov.uk/id/local-authority/00FC,People And Communities,Schools,Schools,Direct Employee Expenses,Agency Supply Teachers,EA104,11/19/2013,242244,945,REVENUE,PRINCIPAL RESOURCING LTD,101601
North East Lincolnshire Council,http://statistics.data.gov.uk/id/local-authority/00FC,People And Communities,Schools,Schools,Indirect Employee Expenses,Staff Training,EB122,11/27/2013,244044,360,REVENUE,RUPERT COLLINS LIMITED,101901
North East Lincolnshire Council,http://statistics.data.gov.uk/id/local-authority/00FC,People And Communities,Schools,Schools,Rep Alterations Maint Building,Buildings - Repairs And Maint,GA102,11/13/2013,241015,481.1,REVENUE,LUDAFLORS,100547
North East Lincolnshire Council,http://statistics.data.gov.uk/id/local-authority/00FC,People And Communities,Schools,Schools,Rep Alterations Maint Building,Buildings - Repairs And Maint,GA102,11/25/2013,242747,565,REVENUE,HAITH'S HEATING LTD,101342
North East Lincolnshire Council,http://statistics.data.gov.uk/id/local-authority/00FC,People And Communities,Schools,Schools,Rep Alterations Maint Building,Electrical Testing,GA107,11/27/2013,244048,262,REVENUE,HUMBERSIDE FIRE & RESCUE SERVICE,100667
North East Lincolnshire Council,http://statistics.data.gov.uk/id/local-authority/00FC,People And Communities,Schools,Schools,Rep Alterations Maint Building,Internal Decoration,GA119,11/7/2013,239786,735,REVENUE,PORTLOCK PAINTING,101144
North East Lincolnshire Council,http://statistics.data.gov.uk/id/local-authority/00FC,People And Communities,Schools,Schools,Energy Costs,Heating Fuel,GB103,11/27/2013,244046,2661.29,REVENUE,WATSON PETROLEUM LTD,101348
North East Lincolnshire Council,http://statistics.data.gov.uk/id/local-authority/00FC,People And Communities,Schools,Schools,Water Services,Water,GE101,11/25/2013,242771,510,REVENUE,ANGLIAN WATER,100508
North East Lincolnshire Council,http://statistics.data.gov.uk/id/local-authority/00FC,People And Communities,Schools,Schools,Grounds Maintenance Costs,Grounds Maintenance,GJ101,11/7/2013,239792,2675,REVENUE,NEWBY LEISURE LTD,101227
North East Lincolnshire Council,http://statistics.data.gov.uk/id/local-authority/00FC,People And Communities,Schools,Schools,Equip / Furniture / Materials,Equipment - Teaching,LA109,11/11/2013,239790,671.4,REVENUE,FINDEL EDUCATION LIMITED,101237
North East Lincolnshire Council,http://statistics.data.gov.uk/id/local-authority/00FC,People And Communities,Schools,Schools,Equip / Furniture / Materials,Non-Teaching Resources,LA118,11/11/2013,239782,267.6,REVENUE,CALM ATTIRE LTD,102616
North East Lincolnshire Council,http://statistics.data.gov.uk/id/local-authority/00FC,People And Communities,Schools,Schools,Equip / Furniture / Materials,Teaching Materials,LA117,11/4/2013,238190,386.76,REVENUE,EAST RIDING OF YORKSHIRE COUNCIL,100654
North East Lincolnshire Council,http://statistics.data.gov.uk/id/local-authority/00FC,People And Communities,Schools,Schools,Equip / Furniture / Materials,Teaching Materials,LA117,11/14/2013,239956,963.22,REVENUE,EAST RIDING OF YORKSHIRE COUNCIL,100654
North East Lincolnshire Council,http://statistics.data.gov.uk/id/local-authority/00FC,People And Communities,Schools,Schools,Communications And Computing,Computer H/Ware - Purchases,LF105,11/4/2013,238093,788,REVENUE,TECHNOLOGY SUPPORT SOLUTIONS LTD,119571
North East Lincolnshire Council,http://statistics.data.gov.uk/id/local-authority/00FC,People And Communities,Schools,Schools,Communications And Computing,Computer H/Ware - Purchases,LF105,11/27/2013,244045,1034.26,REVENUE,GAIA TECHNOLOGIES PLC,102572
North East Lincolnshire Council,http://statistics.data.gov.uk/id/local-authority/00FC,People And Communities,Schools,Schools,Consultancy,Consultancy,PL101,11/26/2013,242921,300,REVENUE,GTS INSPECTIONS TRAINING & CONSULTANCY,105258
North East Lincolnshire Council,http://statistics.data.gov.uk/id/local-authority/00FC,People And Communities,Schools,Schools,Consultancy,Consultancy - Curriculum,PL102,11/19/2013,242231,1039,REVENUE,EDUTRAINING,107068
North East Lincolnshire Council,http://statistics.data.gov.uk/id/local-authority/00FC,People And Communities,Schools,Schools,Consultancy,Consultancy - Curriculum,PL102,11/25/2013,242770,2257,REVENUE,PRIMARY ARTS,103567
North East Lincolnshire Council,http://statistics.data.gov.uk/id/local-authority/00FC,People And Communities,Schools,Schools,Consultancy,Consultancy - Curriculum,PL102,11/21/2013,242208,450,REVENUE,STEPHEN DISBREY EDUCATION LTD,121485
North East Lincolnshire Council,http://statistics.data.gov.uk/id/local-authority/00FC,People And Communities,Schools,Schools,Consultancy,Consultancy - Curriculum,PL102,11/20/2013,241740,450,REVENUE,STEPHANIE RAYTON,123217
North East Lincolnshire Council,http://statistics.data.gov.uk/id/local-authority/00FC,People And Communities,Schools,Schools,Direct Employee Expenses,Agency Supply Teachers,EA104,11/11/2013,239068,910,REVENUE,REED EMPLOYMENT LTD,102225
North East Lincolnshire Council,http://statistics.data.gov.uk/id/local-authority/00FC,People And Communities,Schools,Schools,Direct Employee Expenses,Agency Supply Teachers,EA104,11/12/2013,239071,728,REVENUE,REED EMPLOYMENT LTD,102225
North East Lincolnshire Council,http://statistics.data.gov.uk/id/local-authority/00FC,People And Communities,Schools,Schools,Direct Employee Expenses,Agency Supply Teachers,EA104,11/25/2013,242716,910,REVENUE,REED EMPLOYMENT LTD,102225
North East Lincolnshire Council,http://statistics.data.gov.uk/id/local-authority/00FC,People And Communities,Schools,Schools,Indirect Employee Expenses,Staff Training,EB122,11/25/2013,242846,REDACTED COMMERCIALLY SENSITIVE,REVENUE,SERCO SHARED SERVICES CENTRE,101875
North East Lincolnshire Council,http://statistics.data.gov.uk/id/local-authority/00FC,People And Communities,Schools,Schools,Rep Alterations Maint Building,Buildings - Repairs And Maint,GA102,11/12/2013,239074,425,REVENUE,ARK JOINERY AND BUILDING MAINTENANCE LTD,101126
North East Lincolnshire Council,http://statistics.data.gov.uk/id/local-authority/00FC,People And Communities,Schools,Schools,Rep Alterations Maint Building,Buildings - Repairs And Maint,GA102,11/25/2013,242815,339.5,REVENUE,JEWSON LIMITED,100991
North East Lincolnshire Council,http://statistics.data.gov.uk/id/local-authority/00FC,People And Communities,Schools,Schools,Rep Alterations Maint Building,Buildings - Repairs And Maint,GA102,11/14/2013,241460,257.2,REVENUE,W R CULLUM,100811
North East Lincolnshire Council,http://statistics.data.gov.uk/id/local-authority/00FC,People And Communities,Schools,Schools,Equip / Furniture / Materials,Teaching Materials,LA117,11/21/2013,242543,376.28,REVENUE,EAST RIDING OF YORKSHIRE COUNCIL,100654
North East Lincolnshire Council,http://statistics.data.gov.uk/id/local-authority/00FC,People And Communities,Schools,Schools,Consultancy,Consultancy - Curriculum,PL102,11/21/2013,242818,656.25,REVENUE,CRAIGLAMB LTD,119755
North East Lincolnshire Council,http://statistics.data.gov.uk/id/local-authority/00FC,People And Communities,Schools,Schools,Direct Employee Expenses,Agency Supply Teachers,EA104,11/25/2013,243478,567,REVENUE,PRINCIPAL RESOURCING LTD,101601
North East Lincolnshire Council,http://statistics.data.gov.uk/id/local-authority/00FC,People And Communities,Schools,Schools,Direct Employee Expenses,Agency Supply Teachers,EA104,11/25/2013,243480,945,REVENUE,PRINCIPAL RESOURCING LTD,101601
North East Lincolnshire Council,http://statistics.data.gov.uk/id/local-authority/00FC,People And Communities,Schools,Schools,Direct Employee Expenses,Agency Supply Teachers,EA104,11/25/2013,243481,945,REVENUE,PRINCIPAL RESOURCING LTD,101601
North East Lincolnshire Council,http://statistics.data.gov.uk/id/local-authority/00FC,People And Communities,Schools,Schools,Indirect Employee Expenses,Staff Training,EB122,11/21/2013,242817,900,REVENUE,ANDRELL EDUCATION LIMITED,101702
North East Lincolnshire Council,http://statistics.data.gov.uk/id/local-authority/00FC,People And Communities,Schools,Schools,Rep Alterations Maint Building,Buildings - Repairs And Maint,GA102,11/11/2013,240312,580,REVENUE,HAITH'S HEATING LTD,101342
North East Lincolnshire Council,http://statistics.data.gov.uk/id/local-authority/00FC,People And Communities,Schools,Schools,Rep Alterations Maint Building,Buildings - Repairs And Maint,GA102,11/11/2013,240288,302.28,REVENUE,HAITH'S HEATING LTD,101342
North East Lincolnshire Council,http://statistics.data.gov.uk/id/local-authority/00FC,People And Communities,Schools,Schools,Equip / Furniture / Materials,Teaching Materials,LA117,11/28/2013,243840,650,REVENUE,M&M PRODUCTIONS,101593
North East Lincolnshire Council,http://statistics.data.gov.uk/id/local-authority/00FC,People And Communities,Schools,Schools,Equip / Furniture / Materials,Teaching Materials,LA117,11/21/2013,242540,2247.46,REVENUE,FINDEL EDUCATION LIMITED,101237
North East Lincolnshire Council,http://statistics.data.gov.uk/id/local-authority/00FC,People And Communities,Schools,Schools,Communications And Computing,Computer H/Ware - Teaching,LF104,11/25/2013,242733,3002.4,REVENUE,TECHNOLOGY SUPPORT SOLUTIONS LTD,119571
North East Lincolnshire Council,http://statistics.data.gov.uk/id/local-authority/00FC,People And Communities,Schools,Schools,Miscellaneous Expenses,Contingency Reserve,LL123,11/27/2013,244617,12199.11,REVENUE,EASTFIELD PRIMARY ACADEMY,121907
North East Lincolnshire Council,http://statistics.data.gov.uk/id/local-authority/00FC,People And Communities,Schools,Schools,Direct Employee Expenses,Pay Teachers Supply Cover,EA106,11/19/2013,241088,3108,REVENUE,VISION FOR EDUCATION LTD,102399
North East Lincolnshire Council,http://statistics.data.gov.uk/id/local-authority/00FC,People And Communities,Schools,Schools,Indirect Employee Expenses,Staff Training,EB122,11/25/2013,243430,360,REVENUE,RUPERT COLLINS LIMITED,101901
North East Lincolnshire Council,http://statistics.data.gov.uk/id/local-authority/00FC,People And Communities,Schools,Schools,Indirect Employee Expenses,Staff Training,EB122,11/18/2013,241111,REDACTED COMMERCIALLY SENSITIVE,REVENUE,SERCO SHARED SERVICES CENTRE,101875
North East Lincolnshire Council,http://statistics.data.gov.uk/id/local-authority/00FC,People And Communities,Schools,Schools,Rep Alterations Maint Building,Buildings - Repairs And Maint,GA102,11/26/2013,243882,385,REVENUE,LINCS ELECTRICAL SERVICES LTD,102044
North East Lincolnshire Council,http://statistics.data.gov.uk/id/local-authority/00FC,People And Communities,Schools,Schools,Rep Alterations Maint Building,Buildings - Repairs And Maint,GA102,11/4/2013,238538,460,REVENUE,ARH BUILDERS & PLASTERING LTD,123128
North East Lincolnshire Council,http://statistics.data.gov.uk/id/local-authority/00FC,People And Communities,Schools,Schools,Rep Alterations Maint Building,Buildings - Repairs And Maint,GA102,11/18/2013,241028,283.5,REVENUE,SYLVESTER-KEAL LTD,100593
North East Lincolnshire Council,http://statistics.data.gov.uk/id/local-authority/00FC,People And Communities,Schools,Schools,Cleaning And Domestic Supplies,Refuse Collection,GH104,11/4/2013,238527,747.76,REVENUE,BELL WASTE CONTROL,101433
North East Lincolnshire Council,http://statistics.data.gov.uk/id/local-authority/00FC,People And Communities,Schools,Schools,Direct Transport Costs,Vehicles - Running Costs,JA104,11/26/2013,243880,1320,REVENUE,MILLMAN COACHES,100700
North East Lincolnshire Council,http://statistics.data.gov.uk/id/local-authority/00FC,People And Communities,Schools,Schools,Equip / Furniture / Materials,Furniture - Teaching,LA107,11/19/2013,240308,658.7,REVENUE,AQUILA BUSINESS PRODUCTS  USE SUPPLIER 123664,100607
North East Lincolnshire Council,http://statistics.data.gov.uk/id/local-authority/00FC,People And Communities,Schools,Schools,Equip / Furniture / Materials,Teaching Materials,LA117,11/26/2013,243877,660.41,REVENUE,OXFORD UNIVERSITY PRESS,100887
North East Lincolnshire Council,http://statistics.data.gov.uk/id/local-authority/00FC,People And Communities,Schools,Schools,Catering,Provisions,LB101,11/19/2013,240314,270,REVENUE,G W PRICE LTD,101538
North East Lincolnshire Council,http://statistics.data.gov.uk/id/local-authority/00FC,People And Communities,Schools,Schools,Print Stationery / Gen Off Exp,Photocopier - Running Costs,LD102,11/25/2013,243116,1671.14,REVENUE,DANWOOD CONTRACT RENTALS,101417
North East Lincolnshire Council,http://statistics.data.gov.uk/id/local-authority/00FC,People And Communities,Schools,Schools,Communications And Computing,Computer H/Ware - Teaching,LF104,11/13/2013,241110,1292,REVENUE,SAFE CONTROL LTD,100989
North East Lincolnshire Council,http://statistics.data.gov.uk/id/local-authority/00FC,People And Communities,Schools,Schools,Communications And Computing,Computer H/Ware - Teaching,LF104,11/13/2013,241109,300,REVENUE,TECHNOLOGY SUPPORT SOLUTIONS LTD,119571
North East Lincolnshire Council,http://statistics.data.gov.uk/id/local-authority/00FC,People And Communities,Schools,Schools,Communications And Computing,Computer H/Ware - Teaching,LF104,11/7/2013,239842,8860,REVENUE,TECHNOLOGY SUPPORT SOLUTIONS LTD,119571
North East Lincolnshire Council,http://statistics.data.gov.uk/id/local-authority/00FC,People And Communities,Schools,Schools,Consultancy,Consultancy - Curriculum,PL102,11/26/2013,243879,576,REVENUE,CHAPLINS LTD,108390
North East Lincolnshire Council,http://statistics.data.gov.uk/id/local-authority/00FC,People And Communities,Schools,Schools,Consultancy,Consultancy - Curriculum,PL102,11/7/2013,239804,2100,REVENUE,SWIMMING4SCHOOLS LTD,107232
North East Lincolnshire Council,http://statistics.data.gov.uk/id/local-authority/00FC,People And Communities,Schools,Schools,Direct Employee Expenses,Agency Supply Teachers,EA104,11/14/2013,241497,1873,REVENUE,PRINCIPAL RESOURCING LTD,101601
North East Lincolnshire Council,http://statistics.data.gov.uk/id/local-authority/00FC,People And Communities,Schools,Schools,Rep Alterations Maint Building,Vandalism  - Premises,GA109,11/14/2013,241479,373,REVENUE,KES BUILDING MAINTENANCE LIMITED,100786
North East Lincolnshire Council,http://statistics.data.gov.uk/id/local-authority/00FC,People And Communities,Schools,Schools,Energy Costs,Gas,GB101,11/12/2013,239090,269.65,REVENUE,BRITISH GAS TRADING LTD,101507
North East Lincolnshire Council,http://statistics.data.gov.uk/id/local-authority/00FC,People And Communities,Schools,Schools,Communications And Computing,Telephones,LF112,11/6/2013,239115,303.81,REVENUE,VIRGIN MEDIA,107612
North East Lincolnshire Council,http://statistics.data.gov.uk/id/local-authority/00FC,People And Communities,Schools,Schools,Miscellaneous Expenses,Exam Fees,LL115,11/20/2013,241693,-12.98,REVENUE,PEARSON,121279
North East Lincolnshire Council,http://statistics.data.gov.uk/id/local-authority/00FC,People And Communities,Childrens Hlth & Family Supp,Integrated Youth Services,Contributions To Provisions,Contributions - Other,LK103,11/13/2013,241265,5000,REVENUE,PCC HUMBERSIDE,120398
North East Lincolnshire Council,http://statistics.data.gov.uk/id/local-authority/00FC,People And Communities,Childrens Hlth & Family Supp,Integrated Youth Services,Grants And Subscriptions,Subscriptions,LJ101,11/20/2013,242045,1440,REVENUE,CASMACO LTD,109787
North East Lincolnshire Council,http://statistics.data.gov.uk/id/local-authority/00FC,People And Communities,Childrens Hlth & Family Supp,Integrated Youth Services,Equip / Furniture / Materials,Equipment - Purchase,LA101,11/5/2013,238153,9953,REVENUE,PARK LEISURE LTD,122926
North East Lincolnshire Council,http://statistics.data.gov.uk/id/local-authority/00FC,People And Communities,Childrens Hlth & Family Supp,Integrated Youth Services,Private Contractors,Third Party Prov - Private,PH101,11/11/2013,238673,5950,REVENUE,GRIMSBY TOWN FOOTBALL IN THE COMMUNITY,100978
North East Lincolnshire Council,http://statistics.data.gov.uk/id/local-authority/00FC,People And Communities,Childrens Hlth & Family Supp,Integrated Youth Services,Indirect Employee Expenses,Staff Training,EB122,11/19/2013,241531,250,REVENUE,MR NIGEL K BISHOP,109708
North East Lincolnshire Council,http://statistics.data.gov.uk/id/local-authority/00FC,People And Communities,Childrens Hlth & Family Supp,Integrated Youth Services,Indirect Employee Expenses,Staff Training,EB122,11/7/2013,238183,332.92,REVENUE,PRO-ACTIVE TEAMWEAR LTD,101069
North East Lincolnshire Council,http://statistics.data.gov.uk/id/local-authority/00FC,People And Communities,Childrens Hlth & Family Supp,Integrated Youth Services,Rents,Room Hire,GC103,11/18/2013,241963,5000,REVENUE,GRIMSBY TOWN FOOTBALL CLUB,100646
North East Lincolnshire Council,http://statistics.data.gov.uk/id/local-authority/00FC,People And Communities,Childrens Hlth & Family Supp,Integrated Youth Services,Grants And Subscriptions,Subscriptions,LJ101,11/13/2013,241278,275,REVENUE,ASDAN,100877
North East Lincolnshire Council,http://statistics.data.gov.uk/id/local-authority/00FC,People And Communities,Childrens Hlth & Family Supp,Integrated Youth Services,Communications And Computing,Computer S/Ware - Licences,LF103,11/21/2013,242566,1800,REVENUE,FIRST MEDIA SOLUTIONS LTD,101489
North East Lincolnshire Council,http://statistics.data.gov.uk/id/local-authority/00FC,People And Communities,Childrens Hlth & Family Supp,Integrated Youth Services,Direct Transport Costs,Hired Transport - Service User,JA102,11/26/2013,243159,2175,REVENUE,AMVALE LIMITED,101030
North East Lincolnshire Council,http://statistics.data.gov.uk/id/local-authority/00FC,People And Communities,Childrens Hlth & Family Supp,Integrated Youth Services,Transport Insurance,Vehicles - Insurance,JE101,11/14/2013,241487,724,REVENUE,AUTOMOBILE ASSOCIATION LIMITED,107744
North East Lincolnshire Council,http://statistics.data.gov.uk/id/local-authority/00FC,People And Communities,Childrens Hlth & Family Supp,Integrated Youth Services,Communications And Computing,Computer S/Ware - Maintenance,LF102,11/13/2013,239138,275,REVENUE,FIRST MEDIA SOLUTIONS LTD,101489
North East Lincolnshire Council,http://statistics.data.gov.uk/id/local-authority/00FC,People And Communities,Childrens Hlth & Family Supp,Integrated Youth Services,Miscellaneous Expenses,Activities - Service Users,LL114,11/6/2013,238671,5000,REVENUE,GRIMSBY TOWN FOOTBALL IN THE COMMUNITY,100978
North East Lincolnshire Council,http://statistics.data.gov.uk/id/local-authority/00FC,People And Communities,Childrens Hlth & Family Supp,Childrens Health Provision,Rents,Rent,GC101,11/5/2013,224577,715,REVENUE,GRIMSBY CENTRAL HALL TRUST,100882
North East Lincolnshire Council,http://statistics.data.gov.uk/id/local-authority/00FC,People And Communities,Childrens Hlth & Family Supp,Childrens Health Provision,Equip / Furniture / Materials,Equipment - Purchase,LA101,11/12/2013,239294,266.53,REVENUE,ERIC,108869
North East Lincolnshire Council,http://statistics.data.gov.uk/id/local-authority/00FC,People And Communities,Childrens Hlth & Family Supp,Childrens Health Provision,Equip / Furniture / Materials,Equipment - Purchase,LA101,11/12/2013,239294,399.48,REVENUE,ERIC,108869
North East Lincolnshire Council,http://statistics.data.gov.uk/id/local-authority/00FC,People And Communities,Childrens Hlth & Family Supp,Childrens Health Provision,Equip / Furniture / Materials,Furniture - Purchase,LA105,11/7/2013,238978,429.38,REVENUE,LYRECO UK LIMITED,101120
North East Lincolnshire Council,http://statistics.data.gov.uk/id/local-authority/00FC,People And Communities,Childrens Hlth & Family Supp,Childrens Health Provision,Communications And Computing,Postage,LF111,11/19/2013,242131,250,REVENUE,LYRECO UK LIMITED,101120
North East Lincolnshire Council,http://statistics.data.gov.uk/id/local-authority/00FC,People And Communities,Childrens Hlth & Family Supp,Childrens Health Provision,Rents,Rent,GC101,11/28/2013,243393,542.79,REVENUE,NPOWER LIMITED,101414
North East Lincolnshire Council,http://statistics.data.gov.uk/id/local-authority/00FC,People And Communities,Childrens Hlth & Family Supp,Childrens Health Provision,Private Contractors,Third Party Prov - Private,PH101,11/14/2013,240052,-2737,REVENUE,NHS NORTH YORKSHIRE AND HUMBER CSU,121292
North East Lincolnshire Council,http://statistics.data.gov.uk/id/local-authority/00FC,People And Communities,Childrens Hlth & Family Supp,Childrens Health Provision,Private Contractors,Third Party Prov - Private,PH101,11/7/2013,239970,2737,REVENUE,NHS NORTH YORKSHIRE AND HUMBER CSU,121292
North East Lincolnshire Council,http://statistics.data.gov.uk/id/local-authority/00FC,People And Communities,Childrens Hlth & Family Supp,Childrens Health Provision,Private Contractors,Third Party Prov - Private,PH101,11/26/2013,243168,1037,REVENUE,N LINCS & GOOLE HOSPITALS NHS,111074
North East Lincolnshire Council,http://statistics.data.gov.uk/id/local-authority/00FC,People And Communities,Childrens Hlth & Family Supp,Childrens Health Provision,Private Contractors,Third Party Prov - Private,PH101,11/26/2013,243167,1037,REVENUE,N LINCS & GOOLE HOSPITALS NHS,111074
North East Lincolnshire Council,http://statistics.data.gov.uk/id/local-authority/00FC,People And Communities,Childrens Hlth & Family Supp,Childrens Health Provision,Private Contractors,Third Party Prov - Private,PH101,11/20/2013,242116,2070,REVENUE,NAVIGO,104262
North East Lincolnshire Council,http://statistics.data.gov.uk/id/local-authority/00FC,People And Communities,Childrens Hlth & Family Supp,Childrens Health Provision,Private Contractors,Third Party Prov - Private,PH101,11/13/2013,240854,194751,REVENUE,LINCS PARTNERSHIP NHS FOUNDATION TRUST,105021
North East Lincolnshire Council,http://statistics.data.gov.uk/id/local-authority/00FC,People And Communities,Childrens Hlth & Family Supp,Childrens Health Provision,Private Contractors,Third Party Prov - Private,PH101,11/20/2013,242114,1064,REVENUE,SOUTH LONDON & MAUDSLEY NHS,122297
North East Lincolnshire Council,http://statistics.data.gov.uk/id/local-authority/00FC,People And Communities,Childrens Hlth & Family Supp,Childrens Health Provision,Private Contractors,Third Party Prov - Private,PH101,11/26/2013,243169,600,REVENUE,CATHERINE WATTERS,116974
North East Lincolnshire Council,http://statistics.data.gov.uk/id/local-authority/00FC,People And Communities,Childrens Hlth & Family Supp,Childrens Health Provision,Private Contractors,Third Party Prov - Private,PH101,11/20/2013,242111,750,REVENUE,CATHERINE WATTERS,116974
North East Lincolnshire Council,http://statistics.data.gov.uk/id/local-authority/00FC,People And Communities,Childrens Hlth & Family Supp,Childrens Centre Development,Rep Alterations Maint Building,Buildings - Repairs And Maint,GA102,11/19/2013,241929,260,REVENUE,DORMA UK LIMITED,107806
North East Lincolnshire Council,http://statistics.data.gov.uk/id/local-authority/00FC,People And Communities,Childrens Hlth & Family Supp,Childrens Centre Development,Rep Alterations Maint Building,Buildings - Repairs And Maint,GA102,11/13/2013,241024,485.5,REVENUE,UNIBUILD BUILDING CONT LTD,101469
North East Lincolnshire Council,http://statistics.data.gov.uk/id/local-authority/00FC,People And Communities,Childrens Hlth & Family Supp,Childrens Centre Development,Energy Costs,Electricity,GB102,11/26/2013,243139,1944.25,REVENUE,NPOWER LIMITED,101414
North East Lincolnshire Council,http://statistics.data.gov.uk/id/local-authority/00FC,People And Communities,Childrens Hlth & Family Supp,Childrens Centre Development,Energy Costs,Electricity,GB102,11/26/2013,243140,1419.38,REVENUE,NPOWER LIMITED,101414
North East Lincolnshire Council,http://statistics.data.gov.uk/id/local-authority/00FC,People And Communities,Childrens Hlth & Family Supp,Childrens Centre Development,Energy Costs,Gas,GB101,11/18/2013,241530,475.12,REVENUE,BRITISH GAS TRADING LTD,101507
North East Lincolnshire Council,http://statistics.data.gov.uk/id/local-authority/00FC,People And Communities,Childrens Hlth & Family Supp,Childrens Centre Development,Grounds Maintenance Costs,Grounds Maintenance,GJ101,11/20/2013,242103,325,REVENUE,STEVE AUSTWICK,109384
North East Lincolnshire Council,http://statistics.data.gov.uk/id/local-authority/00FC,People And Communities,Childrens Hlth & Family Supp,Childrens Centre Development,Print Stationery / Gen Off Exp,Printing And Stationery,LD103,11/11/2013,239250,-4.12,REVENUE,LYRECO UK LIMITED,101120
North East Lincolnshire Council,http://statistics.data.gov.uk/id/local-authority/00FC,People And Communities,Childrens Hlth & Family Supp,Childrens Centre Development,Private Contractors,Third Party Prov - Private,PH101,11/13/2013,240435,562,REVENUE,N LINCS & GOOLE HOSPITALS NHS,111074
North East Lincolnshire Council,http://statistics.data.gov.uk/id/local-authority/00FC,People And Communities,Childrens Hlth & Family Supp,Childrens Centre Development,Private Contractors,Third Party Prov - Private,PH101,11/14/2013,240391,7087.92,REVENUE,N LINCS & GOOLE HOSPITALS NHS,111074
North East Lincolnshire Council,http://statistics.data.gov.uk/id/local-authority/00FC,People And Communities,Childrens Hlth & Family Supp,Childrens Centre Development,Private Contractors,Third Party Prov - Private,PH101,11/21/2013,241755,2460,REVENUE,D BROWN PAINTING & DECORATING LTD,108214
North East Lincolnshire Council,http://statistics.data.gov.uk/id/local-authority/00FC,People And Communities,Childrens Hlth & Family Supp,Childrens Centre Development,Private Contractors,Third Party Prov - Private,PH101,11/4/2013,237590,13500,REVENUE,PRE SCHOOL LEARNING ALLIANCE,101437
North East Lincolnshire Council,http://statistics.data.gov.uk/id/local-authority/00FC,People And Communities,Childrens Hlth & Family Supp,Childrens Centre Development,Other Agencies,Child Care Payments,PJ104,11/11/2013,238689,870.22,REVENUE,PRE SCHOOL LEARNING ALLIANCE,101437
North East Lincolnshire Council,http://statistics.data.gov.uk/id/local-authority/00FC,People And Communities,Childrens Hlth & Family Supp,Childrens Centre Development,Rep Alterations Maint Building,Buildings - Repairs And Maint,GA102,11/6/2013,238899,280,REVENUE,ARNOLD SIGNS & GRAPHICS,122751
North East Lincolnshire Council,http://statistics.data.gov.uk/id/local-authority/00FC,People And Communities,Childrens Hlth & Family Supp,Childrens Centre Development,Cleaning And Domestic Supplies,Cleaning - Services,GH102,11/11/2013,238893,1274.04,REVENUE,FUTURE CLEANING SERVICES LTD,102557
North East Lincolnshire Council,http://statistics.data.gov.uk/id/local-authority/00FC,People And Communities,Childrens Hlth & Family Supp,Childrens Centre Development,Equip / Furniture / Materials,Non-Teaching Resources,LA118,11/27/2013,243530,285,REVENUE,MILLMAN COACHES,100700
North East Lincolnshire Council,http://statistics.data.gov.uk/id/local-authority/00FC,People And Communities,Childrens Hlth & Family Supp,Childrens Centre Development,Equip / Furniture / Materials,Non-Teaching Resources,LA118,11/11/2013,238328,359.95,REVENUE,DAVID BURY LTD,103135
North East Lincolnshire Council,http://statistics.data.gov.uk/id/local-authority/00FC,People And Communities,Childrens Hlth & Family Supp,Childrens Centre Development,Equip / Furniture / Materials,Non-Teaching Resources,LA118,11/4/2013,237985,387.89,REVENUE,W BOYES & CO LTD,100581
North East Lincolnshire Council,http://statistics.data.gov.uk/id/local-authority/00FC,People And Communities,Childrens Hlth & Family Supp,Childrens Centre Development,Other Agencies,Child Care Payments,PJ104,11/29/2013,244923,364.88,REVENUE,FOR UNDER FIVES,101931
North East Lincolnshire Council,http://statistics.data.gov.uk/id/local-authority/00FC,People And Communities,Childrens Hlth & Family Supp,Childrens Centre Development,Other Agencies,Child Care Payments,PJ104,11/18/2013,238901,525.53,REVENUE,FOR UNDER FIVES,101931
North East Lincolnshire Council,http://statistics.data.gov.uk/id/local-authority/00FC,People And Communities,Childrens Hlth & Family Supp,Childrens Centre Development,Other Agencies,Child Care Payments,PJ104,11/27/2013,243534,349.96,REVENUE,FOR UNDER FIVES,101931
North East Lincolnshire Council,http://statistics.data.gov.uk/id/local-authority/00FC,People And Communities,Childrens Hlth & Family Supp,Childrens Centre Development,Other Agencies,Child Care Payments,PJ104,11/14/2013,240474,409.7,REVENUE,FOR UNDER FIVES,101931
North East Lincolnshire Council,http://statistics.data.gov.uk/id/local-authority/00FC,People And Communities,Childrens Hlth & Family Supp,Childrens Centre Development,Rep Alterations Maint Building,Buildings - Repairs And Maint,GA102,11/26/2013,243881,335,REVENUE,LINCS ELECTRICAL SERVICES LTD,102044
North East Lincolnshire Council,http://statistics.data.gov.uk/id/local-authority/00FC,People And Communities,Childrens Hlth & Family Supp,Childrens Centre Development,Rep Alterations Maint Building,Buildings - Repairs And Maint,GA102,11/4/2013,238372,-73,REVENUE,CHUBB FIRE,105360
North East Lincolnshire Council,http://statistics.data.gov.uk/id/local-authority/00FC,People And Communities,Childrens Hlth & Family Supp,Childrens Centre Development,Equip / Furniture / Materials,Furniture - Purchase,LA105,11/11/2013,238963,324.6,REVENUE,LYRECO UK LIMITED,101120
North East Lincolnshire Council,http://statistics.data.gov.uk/id/local-authority/00FC,People And Communities,Childrens Hlth & Family Supp,Childrens Centre Development,Equip / Furniture / Materials,Furniture - Purchase,LA105,11/28/2013,244144,627.88,REVENUE,PETER HOGARTH & SONS LTD,100815
North East Lincolnshire Council,http://statistics.data.gov.uk/id/local-authority/00FC,People And Communities,Childrens Hlth & Family Supp,Childrens Centre Development,Equip / Furniture / Materials,Non-Teaching Resources,LA118,11/26/2013,243458,339.9,REVENUE,TECHNOLOGY TEACHING SYSTEMS LTD,100996
North East Lincolnshire Council,http://statistics.data.gov.uk/id/local-authority/00FC,People And Communities,Childrens Hlth & Family Supp,Childrens Centre Development,Other Agencies,Child Care Payments,PJ104,11/5/2013,238184,668.02,REVENUE,PRE SCHOOL LEARNING ALLIANCE,101437
North East Lincolnshire Council,http://statistics.data.gov.uk/id/local-authority/00FC,People And Communities,Childrens Hlth & Family Supp,Childrens Centre Development,Other Agencies,Educational Visits,PJ152,11/26/2013,243178,800,REVENUE,CLEETHORPES SENIOR CITIZENS CLUB,103967
North East Lincolnshire Council,http://statistics.data.gov.uk/id/local-authority/00FC,People And Communities,Childrens Hlth & Family Supp,Childrens Centre Development,Rep Alterations Maint Building,Buildings - Repairs And Maint,GA102,11/13/2013,241062,690,REVENUE,FUTURE CLEANING SERVICES LTD,102557
North East Lincolnshire Council,http://statistics.data.gov.uk/id/local-authority/00FC,People And Communities,Childrens Hlth & Family Supp,Childrens Centre Development,Rep Alterations Maint Building,Buildings - Repairs And Maint,GA102,11/13/2013,241082,431,REVENUE,HAITH'S HEATING LTD,101342
North East Lincolnshire Council,http://statistics.data.gov.uk/id/local-authority/00FC,People And Communities,Childrens Hlth & Family Supp,Childrens Centre Development,Rates,Rates,GD101,11/21/2013,242578,473.08,REVENUE,EASTFIELD PRIMARY ACADEMY,121907
North East Lincolnshire Council,http://statistics.data.gov.uk/id/local-authority/00FC,People And Communities,Childrens Hlth & Family Supp,Childrens Centre Development,Water Services,Water,GE101,11/21/2013,242578,329.58,REVENUE,EASTFIELD PRIMARY ACADEMY,121907
North East Lincolnshire Council,http://statistics.data.gov.uk/id/local-authority/00FC,People And Communities,Childrens Hlth & Family Supp,Childrens Centre Development,Equip / Furniture / Materials,Non-Teaching Resources,LA118,11/25/2013,243392,-1,REVENUE,EAST RIDING OF YORKSHIRE COUNCIL,100654
North East Lincolnshire Council,http://statistics.data.gov.uk/id/local-authority/00FC,People And Communities,Childrens Hlth & Family Supp,Childrens Centre Development,Equip / Furniture / Materials,Non-Teaching Resources,LA118,11/26/2013,243817,-29.67,REVENUE,EAST RIDING OF YORKSHIRE COUNCIL,100654
North East Lincolnshire Council,http://statistics.data.gov.uk/id/local-authority/00FC,People And Communities,Childrens Hlth & Family Supp,Childrens Centre Development,Other Agencies,Child Care Payments,PJ104,11/28/2013,243586,1140,REVENUE,CHAPPILLS DAY NURSERY,100998
North East Lincolnshire Council,http://statistics.data.gov.uk/id/local-authority/00FC,People And Communities,Childrens Hlth & Family Supp,Childrens Centre Development,Direct Employee Expenses,Agency Staff,EA105,11/11/2013,239884,375.44,REVENUE,THRUNSCOE PRIMARY AND NURSERY ACADEMY,118749
North East Lincolnshire Council,http://statistics.data.gov.uk/id/local-authority/00FC,People And Communities,Childrens Hlth & Family Supp,Childrens Centre Development,Direct Employee Expenses,Agency Staff,EA105,11/11/2013,239884,587.72,REVENUE,THRUNSCOE PRIMARY AND NURSERY ACADEMY,118749
North East Lincolnshire Council,http://statistics.data.gov.uk/id/local-authority/00FC,People And Communities,Childrens Hlth & Family Supp,Childrens Centre Development,Rep Alterations Maint Building,Fire Safety,GA106,11/11/2013,239884,324.34,REVENUE,THRUNSCOE PRIMARY AND NURSERY ACADEMY,118749
North East Lincolnshire Council,http://statistics.data.gov.uk/id/local-authority/00FC,People And Communities,Childrens Hlth & Family Supp,Childrens Centre Development,Equip / Furniture / Materials,Non-Teaching Resources,LA118,11/4/2013,237927,695,REVENUE,ROMPA INTERNATIONAL,100790
North East Lincolnshire Council,http://statistics.data.gov.uk/id/local-authority/00FC,People And Communities,Childrens Hlth & Family Supp,Childrens Centre Development,Other Agencies,Child Care Payments,PJ104,11/29/2013,244595,1249.5,REVENUE,CLEETHORPES CHILDCARE,101591
North East Lincolnshire Council,http://statistics.data.gov.uk/id/local-authority/00FC,People And Communities,Childrens Hlth & Family Supp,Childrens Centre Development,Rep Alterations Maint Building,Buildings - Repairs And Maint,GA102,11/4/2013,238579,355,REVENUE,LINCS ELECTRICAL SERVICES LTD,102044
North East Lincolnshire Council,http://statistics.data.gov.uk/id/local-authority/00FC,People And Communities,Childrens Hlth & Family Supp,Childrens Centre Development,Water Services,Water,GE101,11/11/2013,240283,-4.14,REVENUE,ANGEL SPRINGS LTD,103845
North East Lincolnshire Council,http://statistics.data.gov.uk/id/local-authority/00FC,People And Communities,Childrens Hlth & Family Supp,Childrens Centre Development,Rep Alterations Maint Building,Buildings - Repairs And Maint,GA102,11/13/2013,241017,365,REVENUE,LINCS ELECTRICAL SERVICES LTD,102044
North East Lincolnshire Council,http://statistics.data.gov.uk/id/local-authority/00FC,People And Communities,Childrens Hlth & Family Supp,Childrens Centre Development,Cleaning And Domestic Supplies,Refuse Collection,GH104,11/7/2013,238900,-93.29,REVENUE,BELL WASTE CONTROL,101433
North East Lincolnshire Council,http://statistics.data.gov.uk/id/local-authority/00FC,People And Communities,Childrens Hlth & Family Supp,Childrens Centre Development,Equip / Furniture / Materials,Equipment - Purchase,LA101,11/18/2013,241682,-32.94,REVENUE,PETER HOGARTH & SONS LTD,100815
North East Lincolnshire Council,http://statistics.data.gov.uk/id/local-authority/00FC,People And Communities,Childrens Hlth & Family Supp,Childrens Centre Development,Equip / Furniture / Materials,Equipment - Purchase,LA101,11/7/2013,239251,-2.96,REVENUE,LYRECO UK LIMITED,101120
North East Lincolnshire Council,http://statistics.data.gov.uk/id/local-authority/00FC,People And Communities,Childrens Hlth & Family Supp,Childrens Centre Development,Equip / Furniture / Materials,Furniture - Purchase,LA105,11/20/2013,241217,695,REVENUE,NEWBY LEISURE LTD,101227
North East Lincolnshire Council,http://statistics.data.gov.uk/id/local-authority/00FC,People And Communities,Childrens Hlth & Family Supp,Childrens Centre Development,Equip / Furniture / Materials,Furniture - Purchase,LA105,11/18/2013,241183,595,REVENUE,NEWBY LEISURE LTD,101227
North East Lincolnshire Council,http://statistics.data.gov.uk/id/local-authority/00FC,People And Communities,Childrens Hlth & Family Supp,Childrens Centre Development,Communications And Computing,Computer H/Ware - Purchases,LF105,11/25/2013,240210,883.4,REVENUE,INSIGHT DIRECT (UK) LTD,101011
North East Lincolnshire Council,http://statistics.data.gov.uk/id/local-authority/00FC,People And Communities,Childrens Hlth & Family Supp,Head Of Child Hlth - Fam Supp,Rents,Service Charge,GC102,11/25/2013,242913,833.66,REVENUE,MEDICX PROPERTIES VII LTD,121936
North East Lincolnshire Council,http://statistics.data.gov.uk/id/local-authority/00FC,People And Communities,Childrens Hlth & Family Supp,Head Of Child Hlth - Fam Supp,Rents,Service Charge,GC102,11/25/2013,242915,6637.5,REVENUE,PHP INVESTMENTS NO. 1 LTD,121299
North East Lincolnshire Council,http://statistics.data.gov.uk/id/local-authority/00FC,People And Communities,Childrens Hlth & Family Supp,Head Of Child Hlth - Fam Supp,Miscellaneous Expenses,Legal Fees - General,LL103,11/14/2013,241493,1977.5,REVENUE,WILKIN CHAPMAN SOLICITORS,100948
North East Lincolnshire Council,http://statistics.data.gov.uk/id/local-authority/00FC,People And Communities,Childrens Hlth & Family Supp,Palliative / Complex Care,Private Contractors,Third Party Prov - Private,PH101,11/20/2013,242107,3092.72,REVENUE,INDEPENDENT COMMUNITY CARE MANAGEMENT LTD,105477
North East Lincolnshire Council,http://statistics.data.gov.uk/id/local-authority/00FC,People And Communities,Childrens Hlth & Family Supp,Palliative / Complex Care,Private Contractors,Third Party Prov - Private,PH101,11/20/2013,242105,6349.27,REVENUE,INDEPENDENT COMMUNITY CARE MANAGEMENT LTD,105477
North East Lincolnshire Council,http://statistics.data.gov.uk/id/local-authority/00FC,People And Communities,Improved Health,Env Commerce Food & Health,Customer And Client Receipts,Fees/Chrgs-O/Side Scope Vat 4,VC125,11/11/2013,240289,912,REVENUE,NORTHCOAST SEAFOODS LTD,114038
North East Lincolnshire Council,http://statistics.data.gov.uk/id/local-authority/00FC,People And Communities,Improved Health,Trading Standards,Indirect Employee Expenses,Staff Training,EB122,11/27/2013,243639,375,REVENUE,WAKEFIELD MD COUNCIL,100967
North East Lincolnshire Council,http://statistics.data.gov.uk/id/local-authority/00FC,People And Communities,Improved Health,Trading Standards,Indirect Employee Expenses,Staff Training,EB122,11/28/2013,242580,1250,REVENUE,LAFOJE LTD,109582
North East Lincolnshire Council,http://statistics.data.gov.uk/id/local-authority/00FC,People And Communities,Improved Health,Trading Standards,Indirect Employee Expenses,Staff Training,EB122,11/18/2013,223574,397,REVENUE,TRADING STANDARDS INSTITUTE,101249
North East Lincolnshire Council,http://statistics.data.gov.uk/id/local-authority/00FC,People And Communities,Improved Health,Trading Standards,Equip / Furniture / Materials,Equipment - Purchase,LA101,11/27/2013,243588,300,REVENUE,TEXTVERTISING LTD,101818
North East Lincolnshire Council,http://statistics.data.gov.uk/id/local-authority/00FC,People And Communities,Improved Health,Trading Standards,Other Local Authorities,Third Pp - Other Local Auth,PC101,11/11/2013,239026,5810,REVENUE,EAST RIDING OF YORKSHIRE,100377
North East Lincolnshire Council,http://statistics.data.gov.uk/id/local-authority/00FC,People And Communities,Improved Health,Supporting People,Other Agencies,Third Pp - Block Gross,PJ103,11/26/2013,244019,REDACTED COMMERCIALLY SENSITIVE,REVENUE,DOORSTEP,100310
North East Lincolnshire Council,http://statistics.data.gov.uk/id/local-authority/00FC,People And Communities,Improved Health,Supporting People,Other Agencies,Third Pp - Block Gross,PJ103,11/26/2013,244017,REDACTED COMMERCIALLY SENSITIVE,REVENUE,DOORSTEP,100310
North East Lincolnshire Council,http://statistics.data.gov.uk/id/local-authority/00FC,People And Communities,Improved Health,Supporting People,Other Agencies,Third Pp - Block Gross,PJ103,11/26/2013,244021,REDACTED COMMERCIALLY SENSITIVE,REVENUE,DOORSTEP,100310
North East Lincolnshire Council,http://statistics.data.gov.uk/id/local-authority/00FC,People And Communities,Improved Health,Supporting People,Other Agencies,Third Pp - Block Gross,PJ103,11/26/2013,244031,REDACTED COMMERCIALLY SENSITIVE,REVENUE,YORK HOUSING ASSOCIATION LTD,100341
North East Lincolnshire Council,http://statistics.data.gov.uk/id/local-authority/00FC,People And Communities,Improved Health,Supporting People,Other Agencies,Third Pp - Block Gross,PJ103,11/26/2013,244015,REDACTED COMMERCIALLY SENSITIVE,REVENUE,THE SALVATION ARMY,100309
North East Lincolnshire Council,http://statistics.data.gov.uk/id/local-authority/00FC,People And Communities,Improved Health,Supporting People,Other Agencies,Third Pp - Block Gross,PJ103,11/26/2013,244016,REDACTED COMMERCIALLY SENSITIVE,REVENUE,THE SALVATION ARMY,100309
North East Lincolnshire Council,http://statistics.data.gov.uk/id/local-authority/00FC,People And Communities,Improved Health,Supporting People,Other Agencies,Third Pp - Block Gross,PJ103,11/26/2013,244025,REDACTED COMMERCIALLY SENSITIVE,REVENUE,HOUSING 21,100320
North East Lincolnshire Council,http://statistics.data.gov.uk/id/local-authority/00FC,People And Communities,Improved Health,Supporting People,Other Agencies,Third Pp - Block Gross,PJ103,11/26/2013,244024,REDACTED COMMERCIALLY SENSITIVE,REVENUE,CARE LTD,100314
North East Lincolnshire Council,http://statistics.data.gov.uk/id/local-authority/00FC,People And Communities,Improved Health,Supporting People,Other Agencies,Third Pp - Block Gross,PJ103,11/26/2013,244029,REDACTED COMMERCIALLY SENSITIVE,REVENUE,ANCHOR TRUST,100327
North East Lincolnshire Council,http://statistics.data.gov.uk/id/local-authority/00FC,People And Communities,Improved Health,Supporting People,Other Agencies,Third Pp - Block Gross,PJ103,11/7/2013,239954,REDACTED COMMERCIALLY SENSITIVE,REVENUE,UNI CONSULTING UNIQUE IMPROVEMENTS LTD,112344
North East Lincolnshire Council,http://statistics.data.gov.uk/id/local-authority/00FC,People And Communities,Improved Health,Supporting People,Other Agencies,Third Pp - Block Gross,PJ103,11/26/2013,244027,REDACTED COMMERCIALLY SENSITIVE,REVENUE,WOMENS AID,100326
North East Lincolnshire Council,http://statistics.data.gov.uk/id/local-authority/00FC,People And Communities,Improved Health,Supporting People,Other Agencies,Third Pp - Block Gross,PJ103,11/26/2013,244012,REDACTED COMMERCIALLY SENSITIVE,REVENUE,GRIMSBY AND CLEETHORPES YMCA,100305
North East Lincolnshire Council,http://statistics.data.gov.uk/id/local-authority/00FC,People And Communities,Improved Health,Supporting People,Other Agencies,Third Pp - Block Gross,PJ103,11/26/2013,244035,REDACTED COMMERCIALLY SENSITIVE,REVENUE,LONGHURST AND HAVELOK HOMES LTD,100342
North East Lincolnshire Council,http://statistics.data.gov.uk/id/local-authority/00FC,People And Communities,Improved Health,Supporting People,Other Agencies,Third Pp - Block Gross,PJ103,11/26/2013,244011,REDACTED COMMERCIALLY SENSITIVE,REVENUE,GRIMSBY AND CLEETHORPES YMCA,100305
North East Lincolnshire Council,http://statistics.data.gov.uk/id/local-authority/00FC,People And Communities,Improved Health,Supporting People,Other Agencies,Third Pp - Block Gross,PJ103,11/26/2013,244040,REDACTED COMMERCIALLY SENSITIVE,REVENUE,LONGHURST AND HAVELOK HOMES LTD,100342
North East Lincolnshire Council,http://statistics.data.gov.uk/id/local-authority/00FC,People And Communities,Improved Health,Supporting People,Other Agencies,Third Pp - Block Gross,PJ103,11/26/2013,244034,REDACTED COMMERCIALLY SENSITIVE,REVENUE,LONGHURST AND HAVELOK HOMES LTD,100342
North East Lincolnshire Council,http://statistics.data.gov.uk/id/local-authority/00FC,People And Communities,Improved Health,Supporting People,Other Agencies,Third Pp - Block Gross,PJ103,11/26/2013,244036,REDACTED COMMERCIALLY SENSITIVE,REVENUE,LONGHURST AND HAVELOK HOMES LTD,100342
North East Lincolnshire Council,http://statistics.data.gov.uk/id/local-authority/00FC,People And Communities,Improved Health,Supporting People,Other Agencies,Third Pp - Block Gross,PJ103,11/26/2013,244033,REDACTED COMMERCIALLY SENSITIVE,REVENUE,LONGHURST AND HAVELOK HOMES LTD,100342
North East Lincolnshire Council,http://statistics.data.gov.uk/id/local-authority/00FC,People And Communities,Improved Health,Supporting People,Other Agencies,Third Pp - Block Gross,PJ103,11/26/2013,244038,REDACTED COMMERCIALLY SENSITIVE,REVENUE,LONGHURST AND HAVELOK HOMES LTD,100342
North East Lincolnshire Council,http://statistics.data.gov.uk/id/local-authority/00FC,People And Communities,Improved Health,Supporting People,Other Agencies,Third Pp - Block Gross,PJ103,11/26/2013,244032,REDACTED COMMERCIALLY SENSITIVE,REVENUE,LONGHURST AND HAVELOK HOMES LTD,100342
North East Lincolnshire Council,http://statistics.data.gov.uk/id/local-authority/00FC,People And Communities,Improved Health,Supporting People,Other Agencies,Third Pp - Block Gross,PJ103,11/26/2013,244039,REDACTED COMMERCIALLY SENSITIVE,REVENUE,LONGHURST AND HAVELOK HOMES LTD,100342
North East Lincolnshire Council,http://statistics.data.gov.uk/id/local-authority/00FC,People And Communities,Improved Health,Supporting People,Other Agencies,Third Pp - Block Gross,PJ103,11/26/2013,244026,REDACTED COMMERCIALLY SENSITIVE,REVENUE,HOUSING 21,100320
North East Lincolnshire Council,http://statistics.data.gov.uk/id/local-authority/00FC,People And Communities,Improved Health,Supporting People,Other Agencies,Third Pp - Block Gross,PJ103,11/26/2013,244041,REDACTED COMMERCIALLY SENSITIVE,REVENUE,OPEN DOOR (HEALTH) LTD,103147
North East Lincolnshire Council,http://statistics.data.gov.uk/id/local-authority/00FC,People And Communities,Improved Health,Supporting People,Other Agencies,Third Pp - Block Gross,PJ103,11/26/2013,244037,REDACTED COMMERCIALLY SENSITIVE,REVENUE,LONGHURST AND HAVELOK HOMES LTD,100342
North East Lincolnshire Council,http://statistics.data.gov.uk/id/local-authority/00FC,People And Communities,Improved Health,Supporting People,Other Agencies,Third Pp - Block Gross,PJ103,11/26/2013,244028,REDACTED COMMERCIALLY SENSITIVE,REVENUE,WOMENS AID,100326
North East Lincolnshire Council,http://statistics.data.gov.uk/id/local-authority/00FC,People And Communities,Improved Health,Supporting People,Other Agencies,Third Pp - Block Gross,PJ103,11/26/2013,244042,REDACTED COMMERCIALLY SENSITIVE,REVENUE,SANCTUARY HOUSING ASSOCIATION,103289
North East Lincolnshire Council,http://statistics.data.gov.uk/id/local-authority/00FC,People And Communities,Improved Health,Supporting People,Other Agencies,Third Pp - Block Gross,PJ103,11/26/2013,244043,REDACTED COMMERCIALLY SENSITIVE,REVENUE,SANCTUARY HOUSING ASSOCIATION,103289
North East Lincolnshire Council,http://statistics.data.gov.uk/id/local-authority/00FC,People And Communities,Improved Health,Supporting People,Other Agencies,Third Pp - Block Gross,PJ103,11/26/2013,244018,REDACTED COMMERCIALLY SENSITIVE,REVENUE,DOORSTEP,100310
North East Lincolnshire Council,http://statistics.data.gov.uk/id/local-authority/00FC,People And Communities,Improved Health,Supporting People,Other Agencies,Third Pp - Block Gross,PJ103,11/26/2013,244020,REDACTED COMMERCIALLY SENSITIVE,REVENUE,DOORSTEP,100310
North East Lincolnshire Council,http://statistics.data.gov.uk/id/local-authority/00FC,People And Communities,Improved Health,Supporting People,Other Agencies,Third Pp - Block Gross,PJ103,11/26/2013,244022,REDACTED COMMERCIALLY SENSITIVE,REVENUE,HUMBERCARE LTD,100311
North East Lincolnshire Council,http://statistics.data.gov.uk/id/local-authority/00FC,People And Communities,Improved Health,Supporting People,Other Agencies,Third Pp - Block Gross,PJ103,11/26/2013,244023,REDACTED COMMERCIALLY SENSITIVE,REVENUE,HUMBERCARE LTD,100311
North East Lincolnshire Council,http://statistics.data.gov.uk/id/local-authority/00FC,People And Communities,Improved Health,Supporting People,Other Agencies,Third Pp - Block Subsidy,PJ102,11/26/2013,244109,REDACTED COMMERCIALLY SENSITIVE,REVENUE,HUMBERCARE LTD,100311
North East Lincolnshire Council,http://statistics.data.gov.uk/id/local-authority/00FC,People And Communities,Improved Health,Supporting People,Other Agencies,Third Pp - Block Subsidy,PJ102,11/26/2013,244110,REDACTED COMMERCIALLY SENSITIVE,REVENUE,HICA,100319
North East Lincolnshire Council,http://statistics.data.gov.uk/id/local-authority/00FC,People And Communities,Improved Health,Supporting People,Other Agencies,Third Pp - Block Subsidy,PJ102,11/26/2013,244111,REDACTED COMMERCIALLY SENSITIVE,REVENUE,HOUSING & SUPPORT SOLUTIONS,100321
North East Lincolnshire Council,http://statistics.data.gov.uk/id/local-authority/00FC,People And Communities,Improved Health,Supporting People,Other Agencies,Third Pp - Block Subsidy,PJ102,11/26/2013,244113,REDACTED COMMERCIALLY SENSITIVE,REVENUE,LONGHURST AND HAVELOK HOMES LTD,100342
North East Lincolnshire Council,http://statistics.data.gov.uk/id/local-authority/00FC,People And Communities,Improved Health,Supporting People,Other Agencies,Third Pp - Block Subsidy,PJ102,11/26/2013,244114,REDACTED COMMERCIALLY SENSITIVE,REVENUE,NAVIGO,104262
North East Lincolnshire Council,http://statistics.data.gov.uk/id/local-authority/00FC,People And Communities,Improved Health,Supporting People,Other Agencies,Third Pp - Block Subsidy,PJ102,11/26/2013,244115,REDACTED COMMERCIALLY SENSITIVE,REVENUE,CARE PLUS GROUP,106467
North East Lincolnshire Council,http://statistics.data.gov.uk/id/local-authority/00FC,People And Communities,Improved Health,Supporting People,Other Agencies,Third Pp - Block Subsidy,PJ102,11/26/2013,244116,REDACTED COMMERCIALLY SENSITIVE,REVENUE,CREATIVE SUPPORT LTD,107198
North East Lincolnshire Council,http://statistics.data.gov.uk/id/local-authority/00FC,People And Communities,Improved Health,Supporting People,Other Agencies,Third Pp - Block Subsidy,PJ102,11/13/2013,240393,REDACTED COMMERCIALLY SENSITIVE,REVENUE,CARE PLUS GROUP,106467
North East Lincolnshire Council,http://statistics.data.gov.uk/id/local-authority/00FC,People And Communities,Improved Health,Improved Health Operational,Equip / Furniture / Materials,Health & Safety Supplies,LA116,11/21/2013,242559,1395.37,REVENUE,PRISM MEDICAL UK,119507
North East Lincolnshire Council,http://statistics.data.gov.uk/id/local-authority/00FC,People And Communities,Improved Health,Improved Health Operational,Equip / Furniture / Materials,Health & Safety Supplies,LA116,11/21/2013,242760,597.5,REVENUE,DRIVE MEDICAL,101627
North East Lincolnshire Council,http://statistics.data.gov.uk/id/local-authority/00FC,People And Communities,Improved Health,Improved Health Operational,Equip / Furniture / Materials,Health & Safety Supplies,LA116,11/4/2013,237573,372.48,REVENUE,SUNRISE MEDICAL LTD,100990
North East Lincolnshire Council,http://statistics.data.gov.uk/id/local-authority/00FC,People And Communities,Improved Health,Improved Health Operational,Equip / Furniture / Materials,Health & Safety Supplies,LA116,11/18/2013,241234,376,REVENUE,SIDHIL LTD,101166
North East Lincolnshire Council,http://statistics.data.gov.uk/id/local-authority/00FC,People And Communities,Improved Health,Improved Health Operational,Equip / Furniture / Materials,Health & Safety Supplies,LA116,11/27/2013,243503,3955,REVENUE,APOLLO HEALTHCARE TECHNOLOGIES LTD,122614
North East Lincolnshire Council,http://statistics.data.gov.uk/id/local-authority/00FC,People And Communities,Improved Health,Improved Health Operational,Equip / Furniture / Materials,Health & Safety Supplies,LA116,11/11/2013,240172,390,REVENUE,AQUAJOY BATHLIFTS LTD,101315
North East Lincolnshire Council,http://statistics.data.gov.uk/id/local-authority/00FC,People And Communities,Improved Health,Improved Health Operational,Equip / Furniture / Materials,Health & Safety Supplies,LA116,11/11/2013,240172,890,REVENUE,AQUAJOY BATHLIFTS LTD,101315
North East Lincolnshire Council,http://statistics.data.gov.uk/id/local-authority/00FC,People And Communities,Improved Health,Improved Health Operational,Equip / Furniture / Materials,Health & Safety Supplies,LA116,11/11/2013,240172,294,REVENUE,AQUAJOY BATHLIFTS LTD,101315
North East Lincolnshire Council,http://statistics.data.gov.uk/id/local-authority/00FC,People And Communities,Improved Health,Improved Health Operational,Equip / Furniture / Materials,Health & Safety Supplies,LA116,11/12/2013,240727,275,REVENUE,LISCLARE LTD,101785
North East Lincolnshire Council,http://statistics.data.gov.uk/id/local-authority/00FC,People And Communities,Improved Health,Improved Health Operational,Equip / Furniture / Materials,Health & Safety Supplies,LA116,11/7/2013,239255,-2.19,REVENUE,NOTTINGHAM REHAB LIMITED,101715
North East Lincolnshire Council,http://statistics.data.gov.uk/id/local-authority/00FC,People And Communities,Improved Health,Improved Health Operational,Equip / Furniture / Materials,Health & Safety Supplies,LA116,11/11/2013,240172,1820,REVENUE,AQUAJOY BATHLIFTS LTD,101315
North East Lincolnshire Council,http://statistics.data.gov.uk/id/local-authority/00FC,People And Communities,Improved Health,Improved Health Operational,Equip / Furniture / Materials,Health & Safety Supplies,LA116,11/12/2013,240727,2889,REVENUE,LISCLARE LTD,101785
North East Lincolnshire Council,http://statistics.data.gov.uk/id/local-authority/00FC,People And Communities,Improved Health,Improved Health Operational,Equip / Furniture / Materials,Health & Safety Supplies,LA116,11/11/2013,240209,1330.62,REVENUE,ORCHID MEDICARE,122349
North East Lincolnshire Council,http://statistics.data.gov.uk/id/local-authority/00FC,People And Communities,Improved Health,Improved Health Operational,Equip / Furniture / Materials,Health & Safety Supplies,LA116,11/7/2013,239255,-126.49,REVENUE,NOTTINGHAM REHAB LIMITED,101715
North East Lincolnshire Council,http://statistics.data.gov.uk/id/local-authority/00FC,People And Communities,Improved Health,Improved Health Operational,Equip / Furniture / Materials,Health & Safety Supplies,LA116,11/11/2013,240209,1159.49,REVENUE,ORCHID MEDICARE,122349
North East Lincolnshire Council,http://statistics.data.gov.uk/id/local-authority/00FC,People And Communities,Improved Health,Improved Health Operational,Equip / Furniture / Materials,Health & Safety Supplies,LA116,11/4/2013,237942,676,REVENUE,DIRECT HEALTHCARE,102678
North East Lincolnshire Council,http://statistics.data.gov.uk/id/local-authority/00FC,People And Communities,Improved Health,Improved Health Operational,Equip / Furniture / Materials,Health & Safety Supplies,LA116,11/29/2013,244625,359.92,REVENUE,DIRECT HEALTHCARE,102678
North East Lincolnshire Council,http://statistics.data.gov.uk/id/local-authority/00FC,People And Communities,Improved Health,Improved Health Operational,Equip / Furniture / Materials,Health & Safety Supplies,LA116,11/14/2013,239440,1900,REVENUE,KAROMED LTD,111508
North East Lincolnshire Council,http://statistics.data.gov.uk/id/local-authority/00FC,People And Communities,Improved Health,Improved Health Operational,Equip / Furniture / Materials,Health & Safety Supplies,LA116,11/26/2013,242924,1900,REVENUE,KAROMED LTD,111508
North East Lincolnshire Council,http://statistics.data.gov.uk/id/local-authority/00FC,People And Communities,Improved Health,Improved Health Operational,Equip / Furniture / Materials,Health & Safety Supplies,LA116,11/29/2013,244701,1153,REVENUE,THE HELPING HAND COMPANY (LEDBURY) LTD,101134
North East Lincolnshire Council,http://statistics.data.gov.uk/id/local-authority/00FC,People And Communities,Improved Health,Improved Health Operational,Equip / Furniture / Materials,Health & Safety Supplies,LA116,11/19/2013,241560,530,REVENUE,DOLPHIN MOBILITY EAST MIDLANDS LTD,101317
North East Lincolnshire Council,http://statistics.data.gov.uk/id/local-authority/00FC,People And Communities,Improved Health,Improved Health Operational,Equip / Furniture / Materials,Health & Safety Supplies,LA116,11/6/2013,238636,295,REVENUE,NORTHERN HEALTHCARE,120177
North East Lincolnshire Council,http://statistics.data.gov.uk/id/local-authority/00FC,People And Communities,Improved Health,Improved Health Operational,Equip / Furniture / Materials,Health & Safety Supplies,LA116,11/29/2013,244603,1335.6,REVENUE,LISCLARE LTD,101785
North East Lincolnshire Council,http://statistics.data.gov.uk/id/local-authority/00FC,People And Communities,Improved Health,Improved Health Operational,Equip / Furniture / Materials,Health & Safety Supplies,LA116,11/21/2013,242523,962.7,REVENUE,SPECIALISED ORTHOTIC SERVICES LTD,110463
North East Lincolnshire Council,http://statistics.data.gov.uk/id/local-authority/00FC,People And Communities,Improved Health,Improved Health Operational,Equip / Furniture / Materials,Health & Safety Supplies,LA116,11/27/2013,241601,918,REVENUE,KEY MOBILITY,101985
North East Lincolnshire Council,http://statistics.data.gov.uk/id/local-authority/00FC,People And Communities,Improved Health,Improved Health Operational,Equip / Furniture / Materials,Health & Safety Supplies,LA116,11/18/2013,241188,305,REVENUE,THE HELPING HAND COMPANY (LEDBURY) LTD,101134
North East Lincolnshire Council,http://statistics.data.gov.uk/id/local-authority/00FC,People And Communities,Improved Health,Improved Health Operational,Equip / Furniture / Materials,Health & Safety Supplies,LA116,11/21/2013,242174,295,REVENUE,WINDMILL SPECIAL NEEDS,102467
North East Lincolnshire Council,http://statistics.data.gov.uk/id/local-authority/00FC,People And Communities,Improved Health,Improved Health Operational,Equip / Furniture / Materials,Health & Safety Supplies,LA116,11/7/2013,236334,2003,REVENUE,R82 UK LTD,101710
North East Lincolnshire Council,http://statistics.data.gov.uk/id/local-authority/00FC,People And Communities,Improved Health,Improved Health Operational,Equip / Furniture / Materials,Health & Safety Supplies,LA116,11/7/2013,236332,2003,REVENUE,R82 UK LTD,101710
North East Lincolnshire Council,http://statistics.data.gov.uk/id/local-authority/00FC,People And Communities,Improved Health,Improved Health Operational,Equip / Furniture / Materials,Health & Safety Supplies,LA116,11/19/2013,242060,260,REVENUE,HANDICARE ACCESSIIBILITY LTD,102647
North East Lincolnshire Council,http://statistics.data.gov.uk/id/local-authority/00FC,People And Communities,Improved Health,Improved Health Operational,Equip / Furniture / Materials,Health & Safety Supplies,LA116,11/11/2013,240050,-14.62,REVENUE,PICKERINGS EUROPE LIMITED,100897
North East Lincolnshire Council,http://statistics.data.gov.uk/id/local-authority/00FC,People And Communities,Improved Health,Improved Health Operational,Equip / Furniture / Materials,Health & Safety Supplies,LA116,11/21/2013,241285,418.06,REVENUE,R82 UK LTD,101710
North East Lincolnshire Council,http://statistics.data.gov.uk/id/local-authority/00FC,People And Communities,Improved Health,Improved Health Operational,Equip / Furniture / Materials,Health & Safety Supplies,LA116,11/11/2013,232154,1150,REVENUE,SILVALEA,101260
North East Lincolnshire Council,http://statistics.data.gov.uk/id/local-authority/00FC,People And Communities,Improved Health,Improved Health Operational,Equip / Furniture / Materials,Health & Safety Supplies,LA116,11/11/2013,232154,1150,REVENUE,SILVALEA,101260
North East Lincolnshire Council,http://statistics.data.gov.uk/id/local-authority/00FC,People And Communities,Improved Health,Improved Health Operational,Equip / Furniture / Materials,Health & Safety Supplies,LA116,11/19/2013,242311,1425,REVENUE,SIDHIL LTD,101166
North East Lincolnshire Council,http://statistics.data.gov.uk/id/local-authority/00FC,People And Communities,Improved Health,Improved Health Operational,Equip / Furniture / Materials,Health & Safety Supplies,LA116,11/25/2013,242314,1425,REVENUE,SIDHIL LTD,101166
North East Lincolnshire Council,http://statistics.data.gov.uk/id/local-authority/00FC,People And Communities,Improved Health,Improved Health Operational,Equip / Furniture / Materials,Health & Safety Supplies,LA116,11/19/2013,242311,2725,REVENUE,SIDHIL LTD,101166
North East Lincolnshire Council,http://statistics.data.gov.uk/id/local-authority/00FC,People And Communities,Improved Health,Improved Health Operational,Equip / Furniture / Materials,Health & Safety Supplies,LA116,11/25/2013,242314,2725,REVENUE,SIDHIL LTD,101166
North East Lincolnshire Council,http://statistics.data.gov.uk/id/local-authority/00FC,People And Communities,Improved Health,Improved Health Operational,Equip / Furniture / Materials,Health & Safety Supplies,LA116,11/20/2013,242292,610,REVENUE,ULTIMATE CARE GROUP LTD,103469
North East Lincolnshire Council,http://statistics.data.gov.uk/id/local-authority/00FC,People And Communities,Improved Health,Improved Health Operational,Equip / Furniture / Materials,Health & Safety Supplies,LA116,11/12/2013,240317,486.57,REVENUE,NORTHGATE VEHICLE HIRE LTD,109432
North East Lincolnshire Council,http://statistics.data.gov.uk/id/local-authority/00FC,People And Communities,Improved Health,Improved Health Operational,Equip / Furniture / Materials,Health & Safety Supplies,LA116,11/29/2013,244603,353.5,REVENUE,LISCLARE LTD,101785
North East Lincolnshire Council,http://statistics.data.gov.uk/id/local-authority/00FC,People And Communities,Improved Health,Prevention And Wellbeing,Health Authorities,Third Pp - Health Auth,PD101,11/19/2013,242042,29539.5,REVENUE,NORTH BANK FORUM,120031
North East Lincolnshire Council,http://statistics.data.gov.uk/id/local-authority/00FC,People And Communities,Improved Health,Prevention And Wellbeing,Private Contractors,Contract Payments,PH105,11/21/2013,242582,1253.72,REVENUE,MP CONSULTING (UK) LTD,123037
North East Lincolnshire Council,http://statistics.data.gov.uk/id/local-authority/00FC,People And Communities,Improved Health,Prevention And Wellbeing,Private Contractors,Contract Payments,PH105,11/12/2013,240017,1153.24,REVENUE,MP CONSULTING (UK) LTD,123037
North East Lincolnshire Council,http://statistics.data.gov.uk/id/local-authority/00FC,People And Communities,Vulnerable Young People,School Access Governor Student,Grants And Subscriptions,Subscriptions,LJ101,11/18/2013,241917,555,REVENUE,LEXISNEXIS UK,101447
North East Lincolnshire Council,http://statistics.data.gov.uk/id/local-authority/00FC,People And Communities,Vulnerable Young People,School Access Governor Student,Contract Hire-Operating Leases,Vehicles - Contract Hire,JC101,11/7/2013,239883,REDACTED COMMERCIALLY SENSITIVE,REVENUE,MINICABS CLEETHORPES (LINCS) LTD,102124
North East Lincolnshire Council,http://statistics.data.gov.uk/id/local-authority/00FC,People And Communities,Vulnerable Young People,School Access Governor Student,Contract Hire-Operating Leases,Vehicles - Contract Hire,JC101,11/13/2013,240486,REDACTED COMMERCIALLY SENSITIVE,REVENUE,LINKS TAXIS,100546
North East Lincolnshire Council,http://statistics.data.gov.uk/id/local-authority/00FC,People And Communities,Vulnerable Young People,School Access Governor Student,Contract Hire-Operating Leases,Vehicles - Contract Hire,JC101,11/19/2013,241692,REDACTED COMMERCIALLY SENSITIVE,REVENUE,LINKS TAXIS,100546
North East Lincolnshire Council,http://statistics.data.gov.uk/id/local-authority/00FC,People And Communities,Vulnerable Young People,School Access Governor Student,Contract Hire-Operating Leases,Vehicles - Contract Hire,JC101,11/18/2013,241699,REDACTED COMMERCIALLY SENSITIVE,REVENUE,LINKS TAXIS,100546
North East Lincolnshire Council,http://statistics.data.gov.uk/id/local-authority/00FC,People And Communities,Vulnerable Young People,School Access Governor Student,Contract Hire-Operating Leases,Vehicles - Contract Hire,JC101,11/13/2013,240485,REDACTED COMMERCIALLY SENSITIVE,REVENUE,LINKS TAXIS,100546
North East Lincolnshire Council,http://statistics.data.gov.uk/id/local-authority/00FC,People And Communities,Vulnerable Young People,School Access Governor Student,Contract Hire-Operating Leases,Vehicles - Contract Hire,JC101,11/21/2013,241951,REDACTED COMMERCIALLY SENSITIVE,REVENUE,REVELLS TAXIS (ED/SOC SERV),100559
North East Lincolnshire Council,http://statistics.data.gov.uk/id/local-authority/00FC,People And Communities,Vulnerable Young People,School Access Governor Student,Contract Hire-Operating Leases,Vehicles - Contract Hire,JC101,11/20/2013,240884,REDACTED COMMERCIALLY SENSITIVE,REVENUE,COUNTRY CABS,101999
North East Lincolnshire Council,http://statistics.data.gov.uk/id/local-authority/00FC,People And Communities,Vulnerable Young People,School Access Governor Student,Contract Hire-Operating Leases,Vehicles - Contract Hire,JC101,11/11/2013,239991,REDACTED COMMERCIALLY SENSITIVE,REVENUE,COXONS CARS LIMITED,100578
North East Lincolnshire Council,http://statistics.data.gov.uk/id/local-authority/00FC,People And Communities,Vulnerable Young People,School Access Governor Student,Contract Hire-Operating Leases,Vehicles - Contract Hire,JC101,11/14/2013,240875,REDACTED COMMERCIALLY SENSITIVE,REVENUE,COUNTRY CABS,101999
North East Lincolnshire Council,http://statistics.data.gov.uk/id/local-authority/00FC,People And Communities,Vulnerable Young People,School Access Governor Student,Contract Hire-Operating Leases,Vehicles - Contract Hire,JC101,11/21/2013,242567,REDACTED COMMERCIALLY SENSITIVE,REVENUE,REVELLS TAXIS (ED/SOC SERV),100559
North East Lincolnshire Council,http://statistics.data.gov.uk/id/local-authority/00FC,People And Communities,Vulnerable Young People,School Access Governor Student,Contract Hire-Operating Leases,Vehicles - Contract Hire,JC101,11/21/2013,241949,REDACTED COMMERCIALLY SENSITIVE,REVENUE,REVELLS TAXIS (ED/SOC SERV),100559
North East Lincolnshire Council,http://statistics.data.gov.uk/id/local-authority/00FC,People And Communities,Vulnerable Young People,School Access Governor Student,Contract Hire-Operating Leases,Vehicles - Contract Hire,JC101,11/7/2013,239945,REDACTED COMMERCIALLY SENSITIVE,REVENUE,WHEELCHAIR FRIENDLY TAXI SERVICE,101915
North East Lincolnshire Council,http://statistics.data.gov.uk/id/local-authority/00FC,People And Communities,Vulnerable Young People,School Access Governor Student,Contract Hire-Operating Leases,Vehicles - Contract Hire,JC101,11/21/2013,241632,REDACTED COMMERCIALLY SENSITIVE,REVENUE,REVELLS TAXIS (ED/SOC SERV),100559
North East Lincolnshire Council,http://statistics.data.gov.uk/id/local-authority/00FC,People And Communities,Vulnerable Young People,School Access Governor Student,Contract Hire-Operating Leases,Vehicles - Contract Hire,JC101,11/21/2013,242568,REDACTED COMMERCIALLY SENSITIVE,REVENUE,REVELLS TAXIS (ED/SOC SERV),100559
North East Lincolnshire Council,http://statistics.data.gov.uk/id/local-authority/00FC,People And Communities,Vulnerable Young People,School Access Governor Student,Contract Hire-Operating Leases,Vehicles - Contract Hire,JC101,11/13/2013,240469,REDACTED COMMERCIALLY SENSITIVE,REVENUE,LINKS TAXIS,100546
North East Lincolnshire Council,http://statistics.data.gov.uk/id/local-authority/00FC,People And Communities,Vulnerable Young People,School Access Governor Student,Contract Hire-Operating Leases,Vehicles - Contract Hire,JC101,11/18/2013,241947,REDACTED COMMERCIALLY SENSITIVE,REVENUE,REVELLS TAXIS (ED/SOC SERV),100559
North East Lincolnshire Council,http://statistics.data.gov.uk/id/local-authority/00FC,People And Communities,Vulnerable Young People,School Access Governor Student,Contract Hire-Operating Leases,Vehicles - Contract Hire,JC101,11/14/2013,240472,REDACTED COMMERCIALLY SENSITIVE,REVENUE,LINKS TAXIS,100546
North East Lincolnshire Council,http://statistics.data.gov.uk/id/local-authority/00FC,People And Communities,Vulnerable Young People,School Access Governor Student,Contract Hire-Operating Leases,Vehicles - Contract Hire,JC101,11/20/2013,240495,REDACTED COMMERCIALLY SENSITIVE,REVENUE,COXONS CARS LIMITED,100578
North East Lincolnshire Council,http://statistics.data.gov.uk/id/local-authority/00FC,People And Communities,Vulnerable Young People,School Access Governor Student,Contract Hire-Operating Leases,Vehicles - Contract Hire,JC101,11/11/2013,239871,REDACTED COMMERCIALLY SENSITIVE,REVENUE,MINICABS CLEETHORPES (LINCS) LTD,102124
North East Lincolnshire Council,http://statistics.data.gov.uk/id/local-authority/00FC,People And Communities,Vulnerable Young People,School Access Governor Student,Contract Hire-Operating Leases,Vehicles - Contract Hire,JC101,11/12/2013,240028,REDACTED COMMERCIALLY SENSITIVE,REVENUE,COXONS CARS LIMITED,100578
North East Lincolnshire Council,http://statistics.data.gov.uk/id/local-authority/00FC,People And Communities,Vulnerable Young People,School Access Governor Student,Contract Hire-Operating Leases,Vehicles - Contract Hire,JC101,11/11/2013,240020,REDACTED COMMERCIALLY SENSITIVE,REVENUE,LINKS TAXIS,100546
North East Lincolnshire Council,http://statistics.data.gov.uk/id/local-authority/00FC,People And Communities,Vulnerable Young People,School Access Governor Student,Contract Hire-Operating Leases,Vehicles - Contract Hire,JC101,11/18/2013,241686,REDACTED COMMERCIALLY SENSITIVE,REVENUE,LINKS TAXIS,100546
North East Lincolnshire Council,http://statistics.data.gov.uk/id/local-authority/00FC,People And Communities,Vulnerable Young People,School Access Governor Student,Contract Hire-Operating Leases,Vehicles - Contract Hire,JC101,11/19/2013,241566,REDACTED COMMERCIALLY SENSITIVE,REVENUE,REVELLS TAXIS (ED/SOC SERV),100559
North East Lincolnshire Council,http://statistics.data.gov.uk/id/local-authority/00FC,People And Communities,Vulnerable Young People,School Access Governor Student,Contract Hire-Operating Leases,Vehicles - Contract Hire,JC101,11/21/2013,242572,REDACTED COMMERCIALLY SENSITIVE,REVENUE,REVELLS TAXIS (ED/SOC SERV),100559
North East Lincolnshire Council,http://statistics.data.gov.uk/id/local-authority/00FC,People And Communities,Vulnerable Young People,School Access Governor Student,Contract Hire-Operating Leases,Vehicles - Contract Hire,JC101,11/19/2013,241563,REDACTED COMMERCIALLY SENSITIVE,REVENUE,REVELLS TAXIS (ED/SOC SERV),100559
North East Lincolnshire Council,http://statistics.data.gov.uk/id/local-authority/00FC,People And Communities,Vulnerable Young People,School Access Governor Student,Contract Hire-Operating Leases,Vehicles - Contract Hire,JC101,11/21/2013,242569,REDACTED COMMERCIALLY SENSITIVE,REVENUE,REVELLS TAXIS (ED/SOC SERV),100559
North East Lincolnshire Council,http://statistics.data.gov.uk/id/local-authority/00FC,People And Communities,Vulnerable Young People,School Access Governor Student,Contract Hire-Operating Leases,Vehicles - Contract Hire,JC101,11/18/2013,241969,REDACTED COMMERCIALLY SENSITIVE,REVENUE,LINKS TAXIS,100546
North East Lincolnshire Council,http://statistics.data.gov.uk/id/local-authority/00FC,People And Communities,Vulnerable Young People,School Access Governor Student,Contract Hire-Operating Leases,Vehicles - Contract Hire,JC101,11/13/2013,240878,REDACTED COMMERCIALLY SENSITIVE,REVENUE,COUNTRY CABS,101999
North East Lincolnshire Council,http://statistics.data.gov.uk/id/local-authority/00FC,People And Communities,Vulnerable Young People,School Access Governor Student,Contract Hire-Operating Leases,Vehicles - Contract Hire,JC101,11/11/2013,239975,REDACTED COMMERCIALLY SENSITIVE,REVENUE,AA RADIO CARS LTD,101222
North East Lincolnshire Council,http://statistics.data.gov.uk/id/local-authority/00FC,People And Communities,Vulnerable Young People,School Access Governor Student,Contract Hire-Operating Leases,Vehicles - Contract Hire,JC101,11/14/2013,240863,REDACTED COMMERCIALLY SENSITIVE,REVENUE,AA RADIO CARS LTD,101222
North East Lincolnshire Council,http://statistics.data.gov.uk/id/local-authority/00FC,People And Communities,Vulnerable Young People,School Access Governor Student,Contract Hire-Operating Leases,Vehicles - Contract Hire,JC101,11/11/2013,239977,REDACTED COMMERCIALLY SENSITIVE,REVENUE,AA RADIO CARS LTD,101222
North East Lincolnshire Council,http://statistics.data.gov.uk/id/local-authority/00FC,People And Communities,Vulnerable Young People,School Access Governor Student,Contract Hire-Operating Leases,Vehicles - Contract Hire,JC101,11/18/2013,240866,REDACTED COMMERCIALLY SENSITIVE,REVENUE,AA RADIO CARS LTD,101222
North East Lincolnshire Council,http://statistics.data.gov.uk/id/local-authority/00FC,People And Communities,Vulnerable Young People,School Access Governor Student,Contract Hire-Operating Leases,Vehicles - Contract Hire,JC101,11/18/2013,241948,REDACTED COMMERCIALLY SENSITIVE,REVENUE,REVELLS TAXIS (ED/SOC SERV),100559
North East Lincolnshire Council,http://statistics.data.gov.uk/id/local-authority/00FC,People And Communities,Vulnerable Young People,School Access Governor Student,Contract Hire-Operating Leases,Vehicles - Contract Hire,JC101,11/7/2013,239872,REDACTED COMMERCIALLY SENSITIVE,REVENUE,MINICABS CLEETHORPES (LINCS) LTD,102124
North East Lincolnshire Council,http://statistics.data.gov.uk/id/local-authority/00FC,People And Communities,Vulnerable Young People,School Access Governor Student,Contract Hire-Operating Leases,Vehicles - Contract Hire,JC101,11/14/2013,240471,REDACTED COMMERCIALLY SENSITIVE,REVENUE,LINKS TAXIS,100546
North East Lincolnshire Council,http://statistics.data.gov.uk/id/local-authority/00FC,People And Communities,Vulnerable Young People,School Access Governor Student,Contract Hire-Operating Leases,Vehicles - Contract Hire,JC101,11/18/2013,241687,REDACTED COMMERCIALLY SENSITIVE,REVENUE,LINKS TAXIS,100546
North East Lincolnshire Council,http://statistics.data.gov.uk/id/local-authority/00FC,People And Communities,Vulnerable Young People,School Access Governor Student,Contract Hire-Operating Leases,Vehicles - Contract Hire,JC101,11/13/2013,240014,REDACTED COMMERCIALLY SENSITIVE,REVENUE,COXONS CARS LIMITED,100578
North East Lincolnshire Council,http://statistics.data.gov.uk/id/local-authority/00FC,People And Communities,Vulnerable Young People,School Access Governor Student,Contract Hire-Operating Leases,Vehicles - Contract Hire,JC101,11/18/2013,241968,REDACTED COMMERCIALLY SENSITIVE,REVENUE,LINKS TAXIS,100546
North East Lincolnshire Council,http://statistics.data.gov.uk/id/local-authority/00FC,People And Communities,Vulnerable Young People,School Access Governor Student,Private Contractors,Concessionary Fares,PH104,11/21/2013,241945,REDACTED COMMERCIALLY SENSITIVE,REVENUE,STAGECOACH SERVICES,101404
North East Lincolnshire Council,http://statistics.data.gov.uk/id/local-authority/00FC,People And Communities,Vulnerable Young People,School Access Governor Student,Contract Hire-Operating Leases,Vehicles - Contract Hire,JC101,11/11/2013,239989,REDACTED COMMERCIALLY SENSITIVE,REVENUE,AA RADIO CARS LTD,101222
North East Lincolnshire Council,http://statistics.data.gov.uk/id/local-authority/00FC,People And Communities,Vulnerable Young People,School Access Governor Student,Contract Hire-Operating Leases,Vehicles - Contract Hire,JC101,11/14/2013,240876,REDACTED COMMERCIALLY SENSITIVE,REVENUE,AA RADIO CARS LTD,101222
North East Lincolnshire Council,http://statistics.data.gov.uk/id/local-authority/00FC,People And Communities,Vulnerable Young People,School Access Governor Student,Contract Hire-Operating Leases,Vehicles - Contract Hire,JC101,11/11/2013,239871,REDACTED COMMERCIALLY SENSITIVE,REVENUE,MINICABS CLEETHORPES (LINCS) LTD,102124
North East Lincolnshire Council,http://statistics.data.gov.uk/id/local-authority/00FC,People And Communities,Vulnerable Young People,School Access Governor Student,Contract Hire-Operating Leases,Vehicles - Contract Hire,JC101,11/7/2013,239867,REDACTED COMMERCIALLY SENSITIVE,REVENUE,MINICABS CLEETHORPES (LINCS) LTD,102124
North East Lincolnshire Council,http://statistics.data.gov.uk/id/local-authority/00FC,People And Communities,Vulnerable Young People,School Access Governor Student,Contract Hire-Operating Leases,Vehicles - Contract Hire,JC101,11/18/2013,241542,REDACTED COMMERCIALLY SENSITIVE,REVENUE,AMVALE LIMITED,101030
North East Lincolnshire Council,http://statistics.data.gov.uk/id/local-authority/00FC,People And Communities,Vulnerable Young People,School Access Governor Student,Contract Hire-Operating Leases,Vehicles - Contract Hire,JC101,11/19/2013,241543,REDACTED COMMERCIALLY SENSITIVE,REVENUE,AMVALE LIMITED,101030
North East Lincolnshire Council,http://statistics.data.gov.uk/id/local-authority/00FC,People And Communities,Vulnerable Young People,School Access Governor Student,Contract Hire-Operating Leases,Vehicles - Contract Hire,JC101,11/19/2013,241545,REDACTED COMMERCIALLY SENSITIVE,REVENUE,AMVALE LIMITED,101030
North East Lincolnshire Council,http://statistics.data.gov.uk/id/local-authority/00FC,People And Communities,Vulnerable Young People,School Access Governor Student,Contract Hire-Operating Leases,Vehicles - Contract Hire,JC101,11/7/2013,239952,REDACTED COMMERCIALLY SENSITIVE,REVENUE,REDACTED PERSONAL INFORMATION,REDACTED PERSONAL INFORMATION
North East Lincolnshire Council,http://statistics.data.gov.uk/id/local-authority/00FC,People And Communities,Vulnerable Young People,School Access Governor Student,Contract Hire-Operating Leases,Vehicles - Contract Hire,JC101,11/5/2013,238179,REDACTED COMMERCIALLY SENSITIVE,REVENUE,SHERWOOD TRAVEL,100868
North East Lincolnshire Council,http://statistics.data.gov.uk/id/local-authority/00FC,People And Communities,Vulnerable Young People,School Access Governor Student,Contract Hire-Operating Leases,Vehicles - Contract Hire,JC101,11/19/2013,242033,REDACTED COMMERCIALLY SENSITIVE,REVENUE,FISHERS OF GRIMSBY,111965
North East Lincolnshire Council,http://statistics.data.gov.uk/id/local-authority/00FC,People And Communities,Vulnerable Young People,School Access Governor Student,Contract Hire-Operating Leases,Vehicles - Contract Hire,JC101,11/21/2013,241549,REDACTED COMMERCIALLY SENSITIVE,REVENUE,AMVALE LIMITED,101030
North East Lincolnshire Council,http://statistics.data.gov.uk/id/local-authority/00FC,People And Communities,Vulnerable Young People,School Access Governor Student,Contract Hire-Operating Leases,Vehicles - Contract Hire,JC101,11/19/2013,241625,REDACTED COMMERCIALLY SENSITIVE,REVENUE,COOPERS TOURS (LINCS) LTD,111878
North East Lincolnshire Council,http://statistics.data.gov.uk/id/local-authority/00FC,People And Communities,Vulnerable Young People,School Access Governor Student,Contract Hire-Operating Leases,Vehicles - Contract Hire,JC101,11/19/2013,241548,REDACTED COMMERCIALLY SENSITIVE,REVENUE,AMVALE LIMITED,101030
North East Lincolnshire Council,http://statistics.data.gov.uk/id/local-authority/00FC,People And Communities,Vulnerable Young People,School Access Governor Student,Contract Hire-Operating Leases,Vehicles - Contract Hire,JC101,11/11/2013,240021,REDACTED COMMERCIALLY SENSITIVE,REVENUE,LINKS TAXIS,100546
North East Lincolnshire Council,http://statistics.data.gov.uk/id/local-authority/00FC,People And Communities,Vulnerable Young People,School Access Governor Student,Contract Hire-Operating Leases,Vehicles - Contract Hire,JC101,11/12/2013,240031,REDACTED COMMERCIALLY SENSITIVE,REVENUE,COXONS CARS LIMITED,100578
North East Lincolnshire Council,http://statistics.data.gov.uk/id/local-authority/00FC,People And Communities,Vulnerable Young People,School Access Governor Student,Contract Hire-Operating Leases,Vehicles - Contract Hire,JC101,11/11/2013,240005,REDACTED COMMERCIALLY SENSITIVE,REVENUE,COXONS CARS LIMITED,100578
North East Lincolnshire Council,http://statistics.data.gov.uk/id/local-authority/00FC,People And Communities,Vulnerable Young People,School Access Governor Student,Contract Hire-Operating Leases,Vehicles - Contract Hire,JC101,11/18/2013,241712,REDACTED COMMERCIALLY SENSITIVE,REVENUE,COXONS CARS LIMITED,100578
North East Lincolnshire Council,http://statistics.data.gov.uk/id/local-authority/00FC,People And Communities,Vulnerable Young People,School Access Governor Student,Private Contractors,Concessionary Fares,PH104,11/21/2013,241945,REDACTED COMMERCIALLY SENSITIVE,REVENUE,STAGECOACH SERVICES,101404
North East Lincolnshire Council,http://statistics.data.gov.uk/id/local-authority/00FC,People And Communities,Vulnerable Young People,School Access Governor Student,Contract Hire-Operating Leases,Vehicles - Contract Hire,JC101,11/12/2013,240906,REDACTED COMMERCIALLY SENSITIVE,REVENUE,LINKS TAXIS,100546
North East Lincolnshire Council,http://statistics.data.gov.uk/id/local-authority/00FC,People And Communities,Vulnerable Young People,School Access Governor Student,Contract Hire-Operating Leases,Vehicles - Contract Hire,JC101,11/20/2013,240496,REDACTED COMMERCIALLY SENSITIVE,REVENUE,LINKS TAXIS,100546
North East Lincolnshire Council,http://statistics.data.gov.uk/id/local-authority/00FC,People And Communities,Vulnerable Young People,School Access Governor Student,Contract Hire-Operating Leases,Vehicles - Contract Hire,JC101,11/5/2013,238176,REDACTED COMMERCIALLY SENSITIVE,REVENUE,REDACTED PERSONAL INFORMATION,REDACTED PERSONAL INFORMATION
North East Lincolnshire Council,http://statistics.data.gov.uk/id/local-authority/00FC,People And Communities,Vulnerable Young People,School Access Governor Student,Contract Hire-Operating Leases,Vehicles - Contract Hire,JC101,11/19/2013,241707,REDACTED COMMERCIALLY SENSITIVE,REVENUE,LINKS TAXIS,100546
North East Lincolnshire Council,http://statistics.data.gov.uk/id/local-authority/00FC,People And Communities,Vulnerable Young People,School Access Governor Student,Contract Hire-Operating Leases,Vehicles - Contract Hire,JC101,11/27/2013,243528,REDACTED COMMERCIALLY SENSITIVE,REVENUE,LINKS TAXIS,100546
North East Lincolnshire Council,http://statistics.data.gov.uk/id/local-authority/00FC,People And Communities,Vulnerable Young People,School Access Governor Student,Contract Hire-Operating Leases,Vehicles - Contract Hire,JC101,11/13/2013,240459,REDACTED COMMERCIALLY SENSITIVE,REVENUE,LINKS TAXIS,100546
North East Lincolnshire Council,http://statistics.data.gov.uk/id/local-authority/00FC,People And Communities,Vulnerable Young People,School Access Governor Student,Contract Hire-Operating Leases,Vehicles - Contract Hire,JC101,11/20/2013,240497,REDACTED COMMERCIALLY SENSITIVE,REVENUE,LINKS TAXIS,100546
North East Lincolnshire Council,http://statistics.data.gov.uk/id/local-authority/00FC,People And Communities,Vulnerable Young People,School Access Governor Student,Contract Hire-Operating Leases,Vehicles - Contract Hire,JC101,11/11/2013,239974,REDACTED COMMERCIALLY SENSITIVE,REVENUE,AA RADIO CARS LTD,101222
North East Lincolnshire Council,http://statistics.data.gov.uk/id/local-authority/00FC,People And Communities,Vulnerable Young People,School Access Governor Student,Contract Hire-Operating Leases,Vehicles - Contract Hire,JC101,11/12/2013,240865,REDACTED COMMERCIALLY SENSITIVE,REVENUE,AA RADIO CARS LTD,101222
